Workbook

Sheet Sichtfeld (hidden)
A1: Bildbreite [px] | C1: 1280
A2: Bildhöhe [px] | C2: 800
A3: Pixelgröße [µm] | C3: 3
A4: Abstand Gehäusefront zu Sensor [mm] | C4: 34
A5: Sensorbreite [mm] | C5: =$C$3/1000*C1 -> 3.84
A6: Sensorhöhe [mm] | C6: =$C$3/1000*C2 -> 2.4
A7: Min. Breite Modul 1D-Code [px] | C7: 1.5
A8: Min. Breite Modul 2D-Code [px] | C8: 3
A10: Hersteller | C10: YTOT | K10: YTOT | S10: EVETAR
A11: Objektiv | C11: YT1028-2MP | K11: YT10051-2MP | S11: M13B1618IRM12R1
A12: Daten allg. | C12: \\emea.baumernet.org\de04d\Projekte\34600180_Plattform_Stage_3\3_kon\01_Optik\3_Objektive_YTOT\Datenblätter\YT1028-2MP.pdf | K12: \\emea.baumernet.org\de04d\Projekte\34600180_Plattform_Stage_3\3_kon\01_Optik\3_Objektive_YTOT\Datenblätter\YT10051-2MP.pdf
A13: Daten H1/H2 | C13: \\emea.baumernet.org\de04d\Projekte\34600180_Plattform_Stage_3\3_kon\01_Optik\3_Objektive_YTOT\Datenblätter\YT10028_H1H2.pdf | K13: \\emea.baumernet.org\de04d\Projekte\34600180_Plattform_Stage_3\3_kon\01_Optik\3_Objektive_YTOT\Datenblätter\YT10051_H1H2.pdf | S13: \\emea.baumernet.org\de04d\Projekte\34600180_Plattform_Stage_3\3_kon\01_Optik\2_Objektive_Evetar\Datenblätter\16mmF1,8_11162414.pdf
A14: Brennweite f [mm] | C14: 6 | K14: 8 | S14: 16
A15: Hauptebene 1 [mm] | C15: =C$17-5.63-7.55 -> 9.02 | K15: =K$17-4.9-9.02 -> 8.28 | S15: =S$17-16.29 -> 5.85
A16: Hauptebene 2 [mm] | C16: =C$17-5.63-0.2 -> 16.37 | K16: =K$17-4.9-3.19 -> 14.11 | S16: =9.17+0.5 -> 9.67
A17: Bildebene [mm] | C17: 22.2 | K17: 22.2 | S17: =15.8+6.34 -> 22.14
A18: Position Front Objektiv bei unendlich | C18: =C17 -> 22.2 | K18: =K17 -> 22.2 | S18: =S17 -> 22.14
A19: Abstand Gehäusefront zu H1 bei unendlich => g_i [mm] | C19: =$C$4-C17+C15 -> 20.82 | K19: =$C$4-K17+K15 -> 20.08 | S19: =$C$4-S17+S15 -> 17.71
A20: x_max [mm] | C20: 2.6 | K20: 2.6 | S20: 2.6
F22: Sichtfeld [mm] | H22: Mindestbreite Modul [µm] | N22: Sichtfeld [mm] | P22: Mindestbreite Modul [µm] | V22: Sichtfeld [mm] | X22: Mindestbreite Modul [µm]
A23: Nutzabstand g_a [mm] | C23: p | D23: x | E23: beta | F23: Breite | G23: Höhe | H23: 1D-Code | I23: 2D-Code | K23: p | L23: x | M23: beta | N23: Breite | O23: Höhe | P23: 1D-Code | Q23: 2D-Code | S23: p | T23: x | U23: beta | V23: Breite | W23: Höhe | X23: 1D-Code | Y23: 2D-Code
A24: 0 | C24: =C$14-$A24-C$19 -> -14.82 | D24: =IF(C24^2/4-C$14^2 >=0,-C24/2-SQRT(C24^2/4-C$14^2),"") -> 3.061655487 | E24: =IF(AND(ISNUMBER(D24),D24<C$20),(C$14+D24)/($A24+C$19-D24),"") ->  | F24: =IF(ISNUMBER(E24),$C$5/E24,"") ->  | G24: =IF(ISNUMBER(E24),$C$6/E24,"") ->  | H24: =IF(ISNUMBER(E24),$C$7*$C$3/E24,"") ->  | I24: =IF(ISNUMBER(E24),$C$8*$C$3/E24,"") ->  | K24: =K$14-$A24-K$19 -> -12.08 | L24: =IF(K24^2/4-K$14^2 >=0,-K24/2-SQRT(K24^2/4-K$14^2),"") ->  | M24: =IF(AND(ISNUMBER(L24),L24<K$20),(K$14+L24)/($A24+K$19-L24),"") ->  | N24: =IF(ISNUMBER(M24),$C$5/M24,"") ->  | O24: =IF(ISNUMBER(M24),$C$6/M24,"") ->  | P24: =IF(ISNUMBER(M24),$C$7*$C$3/M24,"") ->  | Q24: =IF(ISNUMBER(M24),$C$8*$C$3/M24,"") ->  | S24: =S$14-$A24-S$19 -> -1.71 | T24: =IF(S24^2/4-S$14^2 >=0,-S24/2-SQRT(S24^2/4-S$14^2),"") ->  | U24: =IF(AND(ISNUMBER(T24),T24<S$20),(S$14+T24)/($A24+S$19-T24),"") ->  | V24: =IF(ISNUMBER(U24),$C$5/U24,"") ->  | W24: =IF(ISNUMBER(U24),$C$6/U24,"") ->  | X24: =IF(ISNUMBER(U24),$C$7*$C$3/U24,"") ->  | Y24: =IF(ISNUMBER(U24),$C$8*$C$3/U24,"") -> 
A25: =A24+10 -> 10 | C25: =C$14-$A25-C$19 -> -24.82 | D25: =IF(C25^2/4-C$14^2 >=0,-C25/2-SQRT(C25^2/4-C$14^2),"") -> 1.546846682 | E25: =IF(AND(ISNUMBER(D25),D25<C$20),(C$14+D25)/($A25+C$19-D25),"") -> 0.2578077804 | F25: =IF(ISNUMBER(E25),$C$5/E25,"") -> 14.89481812 | G25: =IF(ISNUMBER(E25),$C$6/E25,"") -> 9.309261327 | H25: 17.45486499 | I25: 34.90972998 | K25: =K$14-$A25-K$19 -> -22.08 | L25: =IF(K25^2/4-K$14^2 >=0,-K25/2-SQRT(K25^2/4-K$14^2),"") -> 3.432004206 | M25: =IF(AND(ISNUMBER(L25),L25<K$20),(K$14+L25)/($A25+K$19-L25),"") ->  | N25: =IF(ISNUMBER(M25),$C$5/M25,"") ->  | O25: =IF(ISNUMBER(M25),$C$6/M25,"") ->  | S25: =S$14-$A25-S$19 -> -11.71 | T25: =IF(S25^2/4-S$14^2 >=0,-S25/2-SQRT(S25^2/4-S$14^2),"") ->  | U25: =IF(AND(ISNUMBER(T25),T25<S$20),(S$14+T25)/($A25+S$19-T25),"") ->  | V25: =IF(ISNUMBER(U25),$C$5/U25,"") ->  | W25: =IF(ISNUMBER(U25),$C$6/U25,"") -> 
A26: =A25+10 -> 20 | C26: -34.82 | D26: 1.06655789 | E26: 0.1777596483 | F26: 21.60220295 | G26: 13.50137684 | H26: 25.31508158 | I26: 50.63016316 | K26: -32.08 | L26: 2.137424699 | M26: 0.2671780874 | N26: 14.37243614 | O26: 8.98277259 | P26: 16.84269861 | Q26: 33.68539721 | S26: -21.71
A27: 30 | C27: -44.82 | D27: 0.8181473699 | E27: 0.136357895 | F27: 28.16118568 | G27: 17.60074105 | H27: 33.00138947 | I27: 66.00277895 | K27: -42.08 | L27: 1.580256939 | M27: 0.1975321174 | N27: 19.43987667 | O27: 12.14992292 | P27: 22.78110547 | Q27: 45.56221094 | S27: -31.71
A28: 40 | C28: -54.82 | D28: 0.6647555629 | E28: 0.1107925938 | F28: 34.65935644 | G28: 21.66209777 | H28: 40.61643333 | I28: 81.23286666 | K28: -52.08 | L28: 1.259330114 | M28: 0.1574162642 | N28: 24.39392155 | O28: 15.24620097 | P28: 28.58662681 | Q28: 57.17325362 | S28: -41.71 | T28: 7.478489805
A29: 50 | C29: -64.82 | D29: 0.5602260605 | E29: 0.09337101008 | F29: 41.12625532 | G29: 25.70390958 | H29: 48.19483045 | I29: 96.38966091 | K29: -62.08 | L29: 1.048641245 | M29: =IF(AND(ISNUMBER(L29),L29<K$20),(K$14+L29)/($A29+K$19-L29),"") -> 0.1310801556 | N29: 29.2950522 | O29: 18.30940763 | P29: 34.3301393 | Q29: 68.6602786 | S29: -51.71 | T29: 5.545371126
A30: 60 | C30: -74.82 | D30: 0.4842894449 | E30: 0.08071490748 | F30: 47.57485476 | G30: 29.73428422 | H30: =IF(ISNUMBER(E30),$C$7*$C$3/E30,"") -> 55.75178292 | I30: =IF(ISNUMBER(E30),$C$8*$C$3/E30,"") -> 111.5035658 | K30: -72.08 | L30: 0.8991178255 | M30: 0.1123897282 | N30: 34.16682344 | O30: 21.35426465 | P30: =IF(ISNUMBER(M30),$C$7*$C$3/M30,"") -> 40.03924622 | Q30: =IF(ISNUMBER(M30),$C$8*$C$3/M30,"") -> 80.07849245 | S30: -61.71 | T30: 4.47260009 | X30: =IF(ISNUMBER(U30),$C$7*$C$3/U30,"") ->  | Y30: =IF(ISNUMBER(U30),$C$8*$C$3/U30,"") -> 
A31: 70 | C31: -84.82 | D31: 0.4265735081 | E31: 0.07109558468 | F31: 54.01179295 | G31: 33.7573706 | H31: 63.29506987 | I31: 126.5901397 | K31: -82.08 | L31: 0.7872783529 | M31: 0.09840979411 | N31: 39.02050639 | O31: 24.38781649 | P31: 45.72715593 | Q31: 91.45431185 | S31: -71.71 | T31: 3.767914981
A32: 80 | C32: -94.82 | D32: 0.3811992498 | E32: 0.0635332083 | F32: 60.44083248 | G32: 37.7755203 | H32: 70.82910056 | I32: 141.6582011 | K32: -92.08 | L32: 0.7003749464 | M32: 0.0875468683 | N32: 43.86222003 | O32: 27.41388752 | P32: 51.40103909 | Q32: 102.8020782 | S32: -81.71 | T32: 3.26336496
A33: 90 | C33: -104.82 | D33: 0.3445786534 | E33: 0.05742977557 | F33: 66.86426966 | G33: 41.79016854 | H33: 78.35656601 | I33: 156.713132 | K33: -102.08 | L33: 0.630857972 | M33: 0.0788572465 | N33: 48.69558817 | O33: 30.43474261 | P33: 57.06514239 | Q33: 114.1302848 | S33: -91.71 | T33: 2.881973286
A34: 100 | C34: -114.82 | D34: 0.3143950903 | E34: 0.05239918172 | F34: 73.28358714 | G34: 45.80224196 | H34: 85.87920368 | I34: 171.7584074 | K34: -112.08 | L34: 0.5739599394 | M34: 0.07174499243 | N34: 53.52289923 | O34: 33.45181202 | P34: 62.72214753 | Q34: 125.4442951 | S34: -101.71 | T34: 2.582533469 | U34: 0.1614083418 | V34: 23.79059197 | W34: 14.86911998 | X34: 27.87959996 | Y34: 55.75919992
A35: 110 | C35: -124.82 | D35: 0.2890848425 | E35: 0.04818080709 | F35: 79.6997857 | G35: 49.81236606 | H35: 93.39818637 | I35: 186.7963727 | K35: -122.08 | L35: 0.5265172048 | M35: 0.06581465061 | N35: 58.34567174 | O35: 36.46604484 | P35: 68.37383407 | Q35: 136.7476681 | S35: -111.71 | T35: 2.340693268 | U35: 0.1462933293 | V35: 26.24863362 | W35: 16.40539601 | X35: 30.76011752 | Y35: 61.52023504
A36: 120 | C36: -134.82 | D36: 0.2675536639 | E36: 0.04459227731 | F36: 86.11356566 | G36: 53.82097853 | H36: 100.9143348 | I36: 201.8286695 | K36: -132.08 | L36: 0.4863456396 | M36: 0.06079320495 | N36: 63.16495409 | O36: 39.47809631 | P36: 74.02143058 | Q36: 148.0428612 | S36: -121.71 | T36: 2.141023597 | U36: 0.1338139748 | V36: 28.69655434 | W36: 17.93534646 | X36: 33.62877461 | Y36: 67.25754923
A37: 130 | C37: -144.82 | D37: 0.2490126176 | E37: 0.04150210294 | F37: 92.52543192 | G37: 57.82839495 | H37: 108.4282405 | I37: 216.8564811 | K37: -142.08 | L37: 0.4518876864 | M37: 0.0564859608 | N37: 67.98149391 | O37: 42.48843369 | P37: 79.66581318 | Q37: 159.3316264 | S37: -131.71 | T37: 1.973226191 | U37: 0.1233266369 | V37: 31.13682571 | W37: 19.46051607 | X37: 36.48846763 | Y37: 72.97693527
A38: 140 | C38: -154.82 | D38: 0.23287839 | E38: 0.03881306501 | F38: 98.93575783 | G38: 61.83484864 | H38: 115.9403412 | I38: 231.8806824 | K38: -152.08 | L38: 0.4220021423 | M38: 0.05275026779 | N38: 72.79583897 | O38: 45.49739936 | P38: 85.30762379 | Q38: 170.6152476 | S38: -141.71 | T38: 1.830141978 | U38: 0.1143838736 | V38: 33.57116593 | W38: 20.9819787 | X38: 39.34121007 | Y38: 78.68242014
A39: 150 | C39: -164.82 | D39: 0.2187103155 | E39: 0.03645171925 | F39: 105.3448254 | G39: 65.84051587 | H39: 123.4509673 | I39: 246.9019345 | K39: -162.08 | L39: 0.395833441 | M39: 0.04947918012 | N39: 77.60839995 | O39: 48.50524997 | P39: 90.94734369 | Q39: 181.8946874 | S39: -151.71 | T39: 1.706628305 | U39: 0.1066642691 | V39: 36.00080921 | W39: 22.50050575 | X39: 42.18844829 | Y39: 84.37689658
A40: 160 | C40: -174.82 | D40: 0.2061692355 | E40: 0.03436153925 | F40: 111.7528517 | G40: 69.84553231 | H40: 130.9603731 | I40: 261.9207461 | K40: -172.08 | L40: 0.3727273692 | M40: 0.04659092115 | N40: 82.41949086 | O40: 51.51218179 | P40: 96.58534085 | Q40: 193.1706817 | S40: -161.71 | T40: 1.598889668 | U40: 0.09993060423 | V40: 38.42666648 | W40: 24.01666655 | X40: 45.03124978 | Y40: 90.06249956
A41: 170 | C41: -184.82 | D41: 0.1949898335 | E41: 0.03249830559 | F41: 118.1600065 | G41: 73.85000407 | H41: 138.4687576 | I41: 276.9375152 | K41: -182.08 | L41: 0.3521750178 | M41: 0.04402187723 | N41: 87.22935599 | O41: 54.51834749 | P41: 102.2219016 | Q41: 204.4438031 | S41: -171.71 | T41: 1.504060319 | U41: 0.09400376996 | V41: 40.84942552 | W41: 25.53089095 | X41: 47.87042054 | Y41: 95.74084107
A42: 180 | C42: -194.82 | D42: 0.1849615582 | E42: 0.03082692637 | F42: 124.5664246 | G42: 77.85401538 | H42: 145.9762788 | I42: 291.9525577 | K42: -192.08 | L42: 0.3337744972 | M42: 0.04172181215 | N42: 92.03818824 | O42: 57.52386765 | P42: 107.8572518 | Q42: 215.7145037 | S42: -181.71 | T42: 1.41993403 | U42: 0.0887458769 | V42: 43.26961583 | W42: 27.0435099 | X42: 50.70658105 | Y42: 101.4131621
A43: 190 | C43: -204.82 | D43: 0.175915175 | E43: 0.02931919584 | F43: 130.9722143 | G43: 81.85763393 | H43: 153.4830636 | I43: 306.9661272 | K43: -202.08 | L43: 0.3172041691 | M43: 0.03965052113 | N43: 96.846142 | O43: 60.52883875 | P43: 113.4915727 | Q43: 226.9831453 | S43: -191.71 | T43: 1.344783489 | U43: 0.08404896805 | V43: 45.68765196 | W43: 28.55478248 | X43: 53.54021714 | Y43: 107.0804343
A44: 200 | C44: -214.82 | D44: 0.1677130979 | E44: 0.02795218298 | F44: 137.3774636 | G44: 85.86091476 | H44: 160.9892152 | I44: 321.9784304 | K44: -212.08 | L44: 0.302203541 | M44: 0.03777544263 | N44: 101.6533423 | O44: 63.53333894 | P44: 119.1250105 | Q44: 238.250021 | S44: -201.71 | T44: 1.277236292 | U44: 0.07982726828 | V44: 48.10386329 | W44: 30.06491456 | X44: 56.37171479 | Y44: 112.7434296
A45: 210 | C45: -224.82 | D45: 0.1602423165 | E45: 0.02670705275 | F45: 143.7822449 | G45: 89.86390307 | H45: 168.4948183 | I45: 336.9896365 | K45: -222.08 | L45: 0.2885593773 | M45: 0.03606992216 | N45: 106.4598915 | O45: 66.53743219 | P45: 124.7576854 | Q45: 249.5153707 | S45: -211.71 | T45: 1.21618777 | U45: 0.0760117356 | V45: 50.51851494 | W45: 31.57407183 | X45: 59.20138469 | Y45: 118.4027694
A46: 220 | C46: -234.82 | D46: 0.1534091405 | E46: 0.02556819008 | F46: 150.1866182 | G46: 93.86663634 | H46: 175.9999431 | I46: 351.9998863 | K46: -232.08 | L46: 0.2760954356 | M46: 0.03451192945 | N46: 111.2658742 | O46: 69.54117137 | P46: 130.3896963 | Q46: 260.7793926 | S46: -221.71 | T46: 1.160738414 | U46: 0.07254615085 | V46: 52.93182278 | W46: 33.08238924 | X46: 62.02947982 | Y46: 124.0589596
A47: 230 | C47: -244.82 | D47: 0.1471352372 | E47: 0.02452253954 | F47: 156.5906334 | G47: 97.86914591 | H47: 183.5046486 | I47: 367.0092971 | K47: -242.08 | L47: 0.2646647697 | M47: 0.03308309621 | N47: 116.0713609 | O47: 72.54460057 | P47: 136.0211261 | Q47: 272.0422521 | S47: -231.71 | T47: 1.110148155 | U47: 0.06938425967 | V47: 55.34396444 | W47: 34.58997778 | X47: 64.85620833 | Y47: 129.7124167
A48: 240 | C48: -254.82 | D48: 0.1413546077 | E48: 0.02355910128 | F48: 162.9943331 | G48: 101.8714582 | H48: 191.008984 | I48: 382.0179681 | K48: -252.08 | L48: 0.2541438794 | M48: 0.03176798492 | N48: 120.8764109 | O48: 75.54775684 | P48: 141.6520441 | Q48: 283.3040881 | S48: -241.71 | T48: 1.063802389 | U48: 0.06648764933 | V48: 57.75508743 | W48: 36.09692964 | X48: 67.68174308 | Y48: 135.3634862
A49: 250 | C49: -264.82 | D49: 0.1360112494 | E49: 0.02266854156 | F49: 169.3977528 | G49: 105.8735955 | H49: 198.5129916 | I49: 397.0259831 | K49: -262.08 | L49: 0.2444282095 | M49: 0.03055352619 | N49: 125.6810745 | O49: 78.55067154 | P49: 147.2825091 | Q49: 294.5650183 | S49: -251.71 | T49: 1.021186372 | U49: 0.06382414823 | V49: 60.16531527 | W49: 37.60332204 | X49: 70.50622883 | Y49: 141.0124577
A50: 260 | C50: -274.82 | D50: 0.1310573322 | E50: 0.02184288869 | F50: 175.8009233 | G50: 109.8755771 | H50: 206.016707 | I50: 412.033414 | K50: -272.08 | L50: 0.2354286484 | M50: 0.02942858105 | N50: 130.4853942 | O50: 81.55337141 | P50: 152.9125714 | Q50: 305.8251428 | S50: -261.71 | T50: 0.9818656534 | U50: 0.06136660334 | V50: 62.57475224 | W50: 39.10922015 | X50: 73.32978778 | Y50: 146.6595756
A51: 270 | C51: -284.82 | D51: 0.1264517592 | E51: 0.0210752932 | F51: 182.2038709 | G51: 113.8774193 | H51: 213.5201612 | I51: 427.0403224 | K51: -282.08 | L51: 0.2270687756 | M51: 0.02838359695 | N51: 135.289407 | O51: 84.55587937 | P51: 158.5422738 | Q51: 317.0845476 | S51: -271.71 | T51: 0.9454709629 | U51: 0.05909193518 | V51: 64.98348697 | W51: 40.61467936 | X51: 76.15252379 | Y51: 152.3050476
A52: 280 | C52: -294.82 | D52: 0.1221590219 | E52: 0.02035983698 | F52: 188.6066182 | G52: 117.8791364 | H52: 221.0233807 | I52: 442.0467615 | K52: -292.08 | L52: 0.219282679 | M52: 0.02741033488 | N52: 140.0931443 | O52: 87.5582152 | P52: 164.1716535 | Q52: 328.343307 | S52: -281.71 | T52: 0.911686387 | U52: 0.05698039918 | V52: 67.39159527 | W52: 42.11974704 | X52: 78.9745257 | Y52: 157.9490514
A53: 290 | C53: -304.82 | D53: 0.118148281 | E53: 0.01969138017 | F53: 195.0091851 | G53: 121.8807407 | H53: 228.5263888 | I53: 457.0527776 | K53: -302.08 | L53: 0.2120132071 | M53: 0.02650165089 | N53: 144.8966337 | O53: 90.56039604 | P53: 169.8007426 | Q53: 339.6014851 | S53: -291.71 | T53: 0.8802400416 | U53: 0.0550150026 | V53: 69.79914239 | W53: 43.62446399 | X53: 81.79586999 | Y53: 163.59174
A54: 300 | C54: -314.82 | D54: 0.1143926233 | E54: 0.01906543722 | F54: 201.4115887 | G54: 125.882243 | H54: 236.0292055 | I54: 472.0584111 | K54: -312.08 | L54: 0.2052105594 | M54: 0.02565131992 | N54: 149.6998989 | O54: 93.56243683 | P54: 175.4295691 | Q54: 350.8591381 | S54: -301.71 | T54: 0.8508966395 | U54: 0.05318103997 | V54: 72.20618481 | W54: 45.1288655 | X54: 84.61662282 | Y54: 169.2332456
A55: 310 | C55: -324.82 | D55: 0.1108684558 | E55: 0.01847807597 | F55: 207.8138442 | G55: 129.8836526 | H55: 243.5318487 | I55: 487.0636973 | K55: -322.08 | L55: 0.1988311408 | M55: 0.0248538926 | N55: 154.5029611 | O55: 96.56435066 | P55: 181.0581575 | Q55: 362.116315 | S55: -311.71 | T55: 0.8234515171 | U55: 0.05146571982 | V55: 74.61277164 | W55: 46.63298227 | X55: 87.43684176 | Y55: 174.8736835
A56: 320 | C56: -334.82 | D56: 0.1075550089 | E56: 0.01792583482 | F56: 214.2159648 | G56: 133.884978 | H56: 251.0343337 | I56: 502.0686675 | K56: -332.08 | L56: 0.1928366236 | M56: 0.02410457795 | N56: 159.3058384 | O56: 99.56614901 | P56: 186.6865294 | Q56: 373.3730588 | S56: -321.71 | T56: 0.7977257979 | U56: 0.04985786237 | V56: 77.01894581 | W56: 48.13684113 | X56: 90.25657712 | Y56: 180.5131542
A57: 330 | C57: -344.82 | D57: 0.1044339262 | E57: 0.01740565437 | F57: 220.6179623 | G57: 137.8862264 | H57: 258.5366746 | I57: 517.0733491 | K57: -342.08 | L57: 0.1871931749 | M57: 0.02339914687 | N57: 164.1085473 | O57: 102.567842 | P57: 192.3147038 | Q57: 384.6294077 | S57: -331.71 | T57: 0.7735624457 | U57: 0.04834765286 | V57: 79.42474501 | W57: 49.64046563 | X57: 93.07587306 | Y57: 186.1517461
A58: 340 | C58: -354.82 | D58: 0.101488924 | E58: 0.01691482066 | F58: 227.0198471 | G58: 141.8874044 | H58: 266.0388833 | I58: 532.0777666 | K58: -352.08 | L58: 0.1818708163 | M58: 0.02273385203 | N58: 168.911102 | O58: 105.5694388 | P58: 197.9426977 | Q58: 395.8853953 | S58: -341.71 | T58: 0.7508230231 | U58: 0.04692643894 | V58: 81.83020247 | W58: 51.14387655 | X58: 95.89476852 | Y58: 191.789537
A59: 350 | C59: -364.82 | D59: 0.09870550621 | E59: 0.0164509177 | F59: 233.4216285 | G59: 145.8885178 | H59: 273.5409709 | I59: 547.0819417 | K59: -362.08 | L59: 0.1768428894 | M59: 0.02210536118 | N59: 173.7135154 | O59: 108.5709471 | P59: 203.5705259 | Q59: 407.1410517 | S59: -351.71 | T59: 0.7293850118 | U59: 0.04558656324 | V59: 84.2353476 | W59: 52.64709225 | X59: 98.71329797 | Y59: 197.4265959
A60: 360 | C60: -374.82 | D60: 0.09607072617 | E60: 0.0160117877 | F60: 239.8233147 | G60: 149.8895717 | H60: 281.042947 | I60: 562.0858939 | K60: -372.08 | L60: 0.1720856092 | M60: 0.02151070115 | N60: 178.5157989 | O60: 111.5723743 | P60: 209.1982018 | Q60: 418.3964037 | S60: -361.71 | T60: 0.7091395841 | U60: 0.044321224 | V60: 86.6402065 | W60: 54.15012906 | X60: 101.531492 | Y60: 203.062984
A61: 370 | C61: -384.82 | D61: 0.09357298452 | E61: 0.01559549742 | F61: 246.2249133 | G61: 153.8905708 | H61: 288.5448203 | I61: 577.0896405 | K61: -382.08 | L61: 0.167577686 | M61: 0.02094721075 | N61: 183.3179627 | O61: 114.5737267 | P61: 214.8257376 | Q61: 429.6514751 | S61: -371.71 | T61: 0.6899897389 | U61: 0.04312435868 | V61: 89.04480246 | W61: 55.65300154 | X61: 104.3493779 | Y61: 208.6987558
A62: 380 | C62: -394.82 | D62: 0.09120185852 | E62: 0.01520030975 | F62: 252.6264308 | G62: 157.8915193 | H62: 296.0465986 | I62: 592.0931972 | K62: -392.08 | L62: 0.1633000074 | M62: 0.02041250092 | N62: 188.120016 | O62: 117.57501 | P62: 220.4531437 | Q62: 440.9062875 | S62: -381.71 | T62: 0.6718487352 | U62: 0.04199054595 | V62: 91.4491563 | W62: 57.15572269 | X62: 107.16698 | Y62: 214.3339601
A63: 390 | C63: -404.82 | D63: 0.08894795647 | E63: 0.01482465941 | F63: 259.0278733 | G63: 161.8924208 | H63: 303.548289 | I63: 607.0965781 | K63: -402.08 | L63: 0.1592353659 | M63: 0.01990442073 | N63: 192.921967 | O63: 120.5762294 | P63: 226.0804301 | Q63: 452.1608602 | S63: -391.71 | T63: 0.6546387683 | U63: 0.04091492302 | V63: 93.8532867 | W63: 58.65830418 | X63: 109.9843203 | Y63: 219.9686407
A64: 400 | C64: -414.82 | D64: 0.08680279332 | E64: 0.01446713222 | F64: 265.4292462 | G64: 165.8932789 | H64: 311.0498979 | I64: 622.0997958 | K64: -412.08 | L64: 0.1553682277 | M64: 0.01942102847 | N64: 197.7238233 | O64: 123.5773895 | P64: 231.7076054 | Q64: 463.4152107 | S64: -401.71 | T64: 0.6382898457 | U64: 0.03989311536 | V64: 96.25721044 | W64: 60.16075652 | X64: 112.8014185 | Y64: 225.602837
A65: 410 | C65: -424.82 | D65: 0.08475868376 | E65: 0.01412644729 | F65: 271.8305544 | G65: 169.8940965 | H65: 318.551431 | I65: 637.102862 | K65: -422.08 | L65: 0.1516845342 | M65: 0.01896056678 | N65: 202.5255914 | O65: 126.5784946 | P65: 237.3346774 | Q65: 474.6693549 | S65: -411.71 | T65: 0.6227388299 | U65: 0.03892117687 | V65: 98.66094268 | W65: 61.66308918 | X65: 115.6182922 | Y65: 231.2365844
A66: 420 | C66: -434.82 | D66: 0.08280865018 | E66: 0.0138014417 | F66: 278.2318025 | G66: 173.8948765 | H66: 326.0528935 | I66: 652.105787 | K66: -432.08 | L66: 0.1481715303 | M66: 0.01852144128 | N66: 207.3272777 | O66: 129.5795485 | P66: 242.9616535 | Q66: 485.923307 | S66: -421.71 | T66: 0.6079286173 | U66: 0.03799553858 | V66: 101.0644971 | W66: 63.16531071 | X66: 118.4349576 | Y66: 236.8699152
A67: 430 | C67: -444.82 | D67: 0.08094634304 | E67: 0.01349105717 | F67: 284.6329943 | G67: 177.8956215 | H67: 333.5542902 | I67: 667.1085805 | K67: -442.08 | L67: 0.144817617 | M67: 0.01810220213 | N67: 212.1288875 | O67: 132.5805547 | P67: 248.5885401 | Q67: 497.1770802 | S67: -431.71 | T67: 0.5938074339 | U67: 0.03711296462 | V67: 103.4678862 | W67: 64.66742888 | X67: 121.2514292 | Y67: 242.5028583
A68: 440 | C68: -454.82 | D68: 0.07916597171 | E68: 0.01319432862 | F68: 291.0341338 | G68: 181.8963336 | H68: 341.0556255 | I68: 682.111251 | K68: -452.08 | L68: 0.1416122235 | M68: 0.01770152794 | N68: 216.9304261 | O68: 135.5815163 | P68: 254.2153431 | Q68: 508.4306862 | S68: -441.71 | T68: 0.5803282263 | U68: 0.03627051415 | V68: 105.8711212 | W68: 66.16945077 | X68: 124.0677202 | Y68: 248.1354404
A69: 450 | C69: -464.82 | D69: 0.07746224431 | E69: 0.01291037405 | F69: 297.4352242 | G69: 185.8970151 | H69: 348.5569033 | I69: 697.1138066 | K69: -462.08 | L69: 0.1385456954 | M69: 0.01731821192 | N69: 221.7318981 | O69: 138.5824363 | P69: 259.842068 | Q69: 519.6841361 | S69: -451.71 | T69: 0.5674481357 | U69: 0.03546550848 | V69: 108.2742124 | W69: 67.67138278 | X69: 126.8838427 | Y69: 253.7676854
A70: 460 | C70: -474.82 | D70: 0.07583031514 | E70: 0.01263838586 | F70: 303.8362686 | G70: 189.8976679 | H70: 356.0581273 | I70: 712.1162545 | K70: -472.08 | L70: 0.1356091973 | M70: 0.01695114966 | N70: 226.5333076 | O70: 141.5833172 | P70: 265.4687198 | Q70: 530.9374397 | S70: -461.71 | T70: 0.5551280395 | U70: 0.03469550247 | V70: 110.6771693 | W70: 69.17323079 | X70: 129.6998077 | Y70: 259.3996155
A71: 470 | C71: -484.82 | D71: 0.07426573862 | E71: 0.0123776231 | F71: 310.2372699 | G71: 193.8982937 | H71: 363.5593007 | I71: 727.1186014 | K71: -482.08 | L71: 0.1327946283 | M71: 0.01659932854 | N71: 231.3346586 | O71: 144.5841616 | P71: 271.095303 | Q71: 542.190606 | S71: -471.71 | T71: 0.5433321529 | U71: 0.03395825955 | V71: 113.0800003 | W71: 70.67500018 | X71: 132.5156253 | Y71: 265.0312507
A72: 480 | C72: -494.82 | D72: 0.07276442881 | E72: 0.0121274048 | F72: 316.6382308 | G72: 197.8988942 | H72: 371.0604267 | I72: 742.1208534 | K72: -492.08 | L72: 0.1300945468 | M72: 0.01626181835 | N72: 236.1359546 | O72: 147.5849716 | P72: 276.7218218 | Q72: 553.4436436 | S72: -481.71 | T72: 0.5320276794 | U72: 0.03325172996 | V72: 115.4827134 | W72: 72.17669585 | X72: 135.3313047 | Y72: 270.6626094
A73: 490 | C73: -504.82 | D73: 0.07132262374 | E73: 0.01188710396 | F73: 323.0391535 | G73: 201.899471 | H73: 378.561508 | I73: 757.1230161 | K73: -502.08 | L73: 0.1275021048 | M73: 0.0159377631 | N73: 240.937199 | O73: 150.5857494 | P73: 282.3482801 | Q73: 564.6965601 | S73: -491.71 | T73: 0.5211845057 | U73: 0.03257403161 | V73: 117.8853157 | W73: 73.67832232 | X73: 138.1468544 | Y73: 276.2937087
A74: 500 | C74: -514.82 | D74: 0.06993685398 | E74: 0.01165614233 | F74: 329.4400404 | G74: 205.9000253 | H74: 386.0625474 | I74: 772.1250947 | K74: -512.08 | L74: 0.12501099 | M74: 0.01562637375 | N74: 245.7383947 | O74: 153.5864967 | P74: 287.9746813 | Q74: 575.9493626 | S74: -501.71 | T74: 0.5107749318 | U74: 0.03192343324 | V74: 120.287814 | W74: 75.17988376 | X74: 140.9622821 | Y74: 281.9245641
A75: 510 | C75: -524.82 | D75: 0.06860391467 | E75: 0.01143398578 | F75: 335.8408935 | G75: 209.9005584 | H75: 393.5635471 | I75: 787.1270941 | K75: -522.08 | L75: 0.1226153741 | M75: 0.01532692177 | N75: 250.5395446 | O75: 156.5872154 | P75: 293.6010289 | Q75: 587.2020577 | S75: -511.71 | T75: 0.5007734342 | U75: 0.03129833964 | V75: 122.6902144 | W75: 76.68138398 | X75: 143.777595 | Y75: 287.5551899
A76: 520 | C76: -534.82 | D76: 0.06732084084 | E76: 0.01122014014 | F76: 342.2417147 | G76: 213.9010717 | H76: 401.0645094 | I76: 802.1290187 | K76: -532.08 | L76: 0.1203098678 | M76: 0.01503873348 | N76: 255.3406513 | O76: 159.587907 | P76: 299.2273257 | Q76: 598.4546514 | S76: -521.71 | T76: 0.491156456 | U76: 0.0306972785 | V76: 125.0925225 | W76: 78.18282653 | X76: 146.5927997 | Y76: 293.1855995
A77: 530 | C77: -544.82 | D77: 0.06608488531 | E77: 0.01101414755 | F77: 348.6425057 | G77: 217.901566 | H77: 408.5654363 | I77: 817.1308727 | K77: -542.08 | L77: 0.1180894796 | M77: 0.01476118496 | N77: 260.141717 | O77: 162.5885732 | P77: 304.8535747 | Q77: 609.7071493 | S77: -531.71 | T77: 0.4819022207 | U77: 0.03011888879 | V77: 127.4947435 | W77: 79.68421467 | X77: 149.4079025 | Y77: 298.815805
A78: 540 | C78: -554.82 | D78: 0.06489349909 | E78: 0.01081558318 | F78: 355.0432682 | G78: 221.9020426 | H78: 416.0663299 | I78: 832.1326598 | K78: -552.08 | L78: 0.1159495803 | M78: 0.01449369754 | N78: 264.9427442 | O78: 165.5892151 | P78: 310.4797784 | Q78: 620.9595567 | S78: -541.71 | T78: 0.472990567 | U78: 0.02956191044 | V78: 129.8968823 | W78: 81.18555141 | X78: 152.2229089 | Y78: 304.4458178
A79: 550 | C79: -564.82 | D79: 0.06374431383 | E79: 0.01062405231 | F79: 361.4440036 | G79: 225.9025023 | H79: 423.5671918 | I79: 847.1343835 | K79: -562.08 | L79: 0.1138858703 | M79: 0.01423573379 | N79: 269.7437348 | O79: 168.5898342 | P79: 316.1059392 | Q79: 632.2118784 | S79: -551.71 | T79: 0.4644028021 | U79: 0.02902517513 | V79: 132.2989433 | W79: 82.68683958 | X79: 155.0378242 | Y79: 310.0756484
A80: 560 | C80: -574.82 | D80: 0.06263512606 | E80: 0.01043918768 | F80: 367.8447135 | G80: 229.9029459 | H80: 431.0680237 | I80: 862.1360473 | K80: -572.08 | L80: 0.111894351 | M80: 0.01398679388 | N80: 274.5446907 | O80: 171.5904317 | P80: 321.7320594 | Q80: 643.4641189 | S80: -561.71 | T80: 0.4561215696 | U80: 0.0285075981 | V80: 134.7009308 | W80: 84.18808176 | X80: 157.8526533 | Y80: 315.7053066
A81: 570 | C81: -584.82 | D81: 0.0615638831 | E81: 0.01026064718 | F81: 374.2453991 | G81: 233.9033744 | H81: 438.5688271 | I81: 877.1376542 | K81: -582.08 | L81: 0.1099712989 | M81: 0.01374641237 | N81: 279.3456138 | O81: 174.5910086 | P81: 327.3581411 | Q81: 654.7162823 | S81: -571.71 | T81: 0.4481307326 | U81: 0.02800817079 | V81: 137.1028486 | W81: 85.68928039 | X81: 160.6674007 | Y81: 321.3348015
A82: 580 | C82: -594.82 | D82: 0.06052867039 | E82: 0.01008811173 | F82: 380.6460617 | G82: 237.9037885 | H82: 446.0696035 | I82: 892.139207 | K82: -592.08 | L82: 0.1081132423 | M82: 0.01351415528 | N82: 284.1465056 | O82: 177.591566 | P82: 332.9841863 | Q82: 665.9683726 | S82: -581.71 | T82: 0.4404152681 | U82: 0.02752595426 | V82: 139.5047003 | W82: 87.19043771 | X82: 163.4820707 | Y82: 326.9641414
A83: 590 | C83: -604.82 | D83: 0.05952770005 | E83: 0.009921283342 | F83: 387.0467023 | G83: 241.9041889 | H83: 453.5703542 | I83: 907.1407084 | K83: -602.08 | L83: 0.1063169401 | M83: 0.01328961751 | N83: 288.9473679 | O83: 180.5921049 | P83: 338.6101967 | Q83: 677.2203934 | S83: -591.71 | T83: 0.4329611725 | U83: 0.02706007328 | V83: 141.9064893 | W83: 88.69155582 | X83: 166.2966672 | Y83: 332.5933343
A84: 600 | C84: -614.82 | D84: 0.05855930059 | E84: 0.009759883432 | F84: 393.447322 | G84: 245.9045763 | H84: 461.0710805 | I84: 922.142161 | K84: -612.08 | L84: 0.1045793636 | M84: 0.01307242044 | N84: 293.7482019 | O84: 183.5926262 | P84: 344.2361741 | Q84: 688.4723482 | S84: -601.71 | T84: 0.4257553766 | U84: 0.02660971104 | V84: 144.3082187 | W84: 90.19263669 | X84: 169.1111938 | Y84: 338.2223876
A85: 610 | C85: -624.82 | D85: 0.05762190756 | E85: 0.009603651261 | F85: 399.847922 | G85: 249.9049512 | H85: 468.5717836 | I85: 937.1435671 | K85: -622.08 | L85: 0.1028976786 | M85: 0.01286220983 | N85: 298.5490091 | O85: 186.5931307 | P85: 349.8621201 | Q85: 699.7242401 | S85: -611.71 | T85: 0.4187856688 | U85: 0.0261741043 | V85: 146.7098914 | W85: 91.69368215 | X85: 171.925654 | Y85: 343.8513081
A86: 620 | C86: -634.82 | D86: 0.05671405514 | E86: 0.009452342523 | F86: 406.248503 | G86: 253.9053144 | H86: 476.0724645 | I86: 952.1449289 | K86: -632.08 | L86: 0.1012692309 | M86: 0.01265865386 | N86: 303.3497908 | O86: 189.5936192 | P86: 355.4880361 | Q86: 710.9760721 | S86: -621.71 | T86: 0.4120406258 | U86: 0.02575253911 | V86: 149.1115102 | W86: 93.19469391 | X86: 174.7400511 | Y86: 349.4801021
A87: 630 | C87: -644.82 | D87: 0.05583436847 | E87: 0.009305728078 | F87: 412.649066 | G87: 257.9056663 | H87: 483.5731242 | I87: 967.1462484 | K87: -642.08 | L87: 0.09969153128 | M87: 0.01246144141 | N87: 308.1505481 | O87: 192.5940925 | P87: 361.1139235 | Q87: 722.227847 | S87: -631.71 | T87: 0.4055095503 | U87: 0.02534434689 | V87: 151.5130777 | W87: 94.69567357 | X87: 177.5543879 | Y87: 355.1087759
A88: 640 | C88: -654.82 | D88: 0.05498155672 | E88: 0.009163592787 | F88: 419.0496118 | G88: 261.9060074 | H88: 491.0737638 | I88: 982.1475277 | K88: -652.08 | L88: 0.09816224363 | M88: 0.01227028045 | N88: 312.9512821 | O88: 195.5945513 | P88: 366.7397837 | Q88: 733.4795675 | S88: -641.71 | T88: 0.3991824136 | U88: 0.02494890085 | V88: 153.9145962 | W88: 96.19662264 | X88: 180.3686674 | Y88: 360.7373349
A89: 650 | C89: =C$14-$A89-C$19 -> -664.82 | D89: =IF(C89^2/4-C$14^2 >=0,-C89/2-SQRT(C89^2/4-C$14^2),"") -> 0.05415440676 | E89: =IF(AND(ISNUMBER(D89),D89<C$20),(C$14+D89)/($A89+C$19-D89),"") -> 0.009025734459 | F89: =IF(ISNUMBER(E89),$C$5/E89,"") -> 425.4501412 | G89: =IF(ISNUMBER(E89),$C$6/E89,"") -> 265.9063382 | H89: 498.5743842 | I89: 997.1487684 | K89: =K$14-$A89-K$19 -> -662.08 | L89: =IF(K89^2/4-K$14^2 >=0,-K89/2-SQRT(K89^2/4-K$14^2),"") -> 0.096679173 | M89: =IF(AND(ISNUMBER(L89),L89<K$20),(K$14+L89)/($A89+K$19-L89),"") -> 0.01208489663 | N89: =IF(ISNUMBER(M89),$C$5/M89,"") -> 317.751994 | O89: =IF(ISNUMBER(M89),$C$6/M89,"") -> 198.5949962 | P89: 372.365618 | Q89: 744.7312359 | S89: =S$14-$A89-S$19 -> -651.71 | T89: =IF(S89^2/4-S$14^2 >=0,-S89/2-SQRT(S89^2/4-S$14^2),"") -> 0.3930498046 | U89: =IF(AND(ISNUMBER(T89),T89<S$20),(S$14+T89)/($A89+S$19-T89),"") -> 0.02456561279 | V89: =IF(ISNUMBER(U89),$C$5/U89,"") -> 156.316068 | W89: =IF(ISNUMBER(U89),$C$6/U89,"") -> 97.69754253 | X89: 183.1828922 | Y89: 366.3657845
A90: =A89+10 -> 660 | C90: -674.82 | D90: 0.05335177738 | E90: 0.008891962897 | F90: 431.8506549 | G90: 269.9066593 | H90: 506.0749862 | I90: 1012.149972 | K90: -672.08 | L90: 0.09524025519 | M90: 0.0119050319 | N90: 322.5526847 | O90: 201.5954279 | P90: 377.9914274 | Q90: 755.9828547 | S90: -661.71 | T90: 0.3871028829 | U90: 0.02419393018 | V90: 158.7174953 | W90: 99.19843457 | X90: 185.9970648 | Y90: 371.9941296
A91: 670 | C91: -684.82 | D91: 0.05257259408 | E91: 0.008762099013 | F91: 438.2511535 | G91: 273.906971 | H91: 513.5755706 | I91: 1027.151141 | K91: -682.08 | L91: 0.09384354711 | M91: 0.01173044339 | N91: 327.3533551 | O91: 204.5958469 | P91: 383.617213 | Q91: 767.234426 | S91: -671.71 | T91: 0.381333336 | U91: 0.0238333335 | V91: 161.11888 | W91: 100.6993 | X91: 188.8111875 | Y91: 377.622375
A92: 680 | C92: -694.82 | D92: 0.05181584422 | E92: 0.008635974037 | F92: 444.6516379 | G92: 277.9072737 | H92: 521.0761381 | I92: 1042.152276 | K92: -692.08 | L92: 0.09248721808 | M92: 0.01156090226 | N92: 332.1540061 | O92: 207.5962538 | P92: 389.2429759 | Q92: 778.4859519 | S92: -681.71 | T92: 0.3757333405 | U92: 0.02348333378 | V92: 163.520224 | W92: 102.20014 | X92: 191.6252625 | Y92: 383.250525
A93: 690 | C93: -704.82 | D93: 0.05108057266 | E93: 0.008513428777 | F93: 451.0521084 | G93: 281.9075678 | H93: 528.5766896 | I93: 1057.153379 | K93: -702.08 | L93: 0.09116954177 | M93: 0.01139619272 | N93: 336.9546386 | O93: 210.5966491 | P93: 394.8687171 | Q93: 789.7374343 | S93: -691.71 | T93: 0.3702955267 | U93: 0.02314347042 | V93: 165.9215291 | W93: 103.7009557 | X93: 194.4392919 | Y93: 388.8785838
A94: 700 | C94: -714.82 | D94: 0.05036587773 | E94: 0.008394312956 | F94: 457.4525658 | G94: 285.9078536 | H94: =IF(ISNUMBER(E94),$C$7*$C$3/E94,"") -> 536.0772256 | I94: =IF(ISNUMBER(E94),$C$8*$C$3/E94,"") -> 1072.154451 | K94: -712.08 | L94: 0.08988888891 | M94: 0.01123611111 | N94: 341.7552533 | O94: 213.5970333 | P94: =IF(ISNUMBER(M94),$C$7*$C$3/M94,"") -> 400.4944375 | Q94: =IF(ISNUMBER(M94),$C$8*$C$3/M94,"") -> 800.988875 | S94: -701.71 | T94: 0.3650129462 | U94: 0.02281330914 | V94: 168.3227969 | W94: 105.2017481 | X94: =IF(ISNUMBER(U94),$C$7*$C$3/U94,"") -> 197.2532776 | Y94: =IF(ISNUMBER(U94),$C$8*$C$3/U94,"") -> 394.5065552
A95: 710 | C95: -724.82 | D95: 0.04967090753 | E95: 0.008278484589 | F95: 463.8530106 | G95: 289.9081316 | H95: 543.5777468 | I95: 1087.155494 | K95: -722.08 | L95: 0.08864372051 | M95: 0.01108046506 | N95: 346.555851 | O95: 216.5974069 | P95: 406.1201379 | Q95: 812.2402758 | S95: -711.71 | T95: 0.3598790419 | U95: 0.02249244012 | V95: 170.724029 | W95: 106.7025181 | X95: 200.0672215 | Y95: 400.134443
A96: 720 | C96: -734.82 | D96: 0.04899485656 | E96: 0.008165809426 | F96: 470.2534433 | G96: 293.9084021 | H96: 551.0782539 | I96: 1102.156508 | K96: -732.08 | L96: 0.08743258176 | M96: 0.01092907272 | N96: 351.3564324 | O96: 219.5977702 | P96: 411.7458192 | Q96: 823.4916383 | S96: -721.71 | T96: 0.3548876214 | U96: 0.02218047634 | V96: 173.125227 | W96: 108.2032669 | X96: 202.8811254 | Y96: 405.7622507
A97: 730 | C97: -744.82 | D97: 0.04833696257 | E97: 0.008056160428 | F97: 476.6538643 | G97: 297.9086652 | H97: 558.5787473 | I97: 1117.157495 | K97: -742.08 | L97: 0.08625409628 | M97: 0.01078176204 | N97: 356.156998 | O97: 222.5981238 | P97: 417.3714821 | Q97: 834.7429641 | S97: -731.71 | T97: 0.3500328313 | U97: 0.02187705196 | V97: 175.5263921 | W97: 109.7039951 | X97: 205.6949908 | Y97: 411.3899815
A98: 740 | C98: -754.82 | D98: 0.04769650374 | E98: 0.007949417291 | F98: 483.0542742 | G98: 301.9089214 | H98: 566.0792276 | I98: 1132.158455 | K98: -752.08 | L98: 0.08510696095 | M98: 0.01063837012 | N98: 360.9575487 | O98: 225.5984679 | P98: 422.9971273 | Q98: 845.9942547 | S98: -741.71 | T98: 0.3453091348 | U98: 0.02158182093 | V98: 177.9275258 | W98: 111.2047036 | X98: 208.5088193 | Y98: 417.0176386
A99: 750 | C99: -764.82 | D99: 0.04707279601 | E99: 0.007845466002 | F99: 489.4546734 | G99: 305.9091709 | H99: 573.5796954 | I99: 1147.159391 | K99: -762.08 | L99: 0.0839899411 | M99: 0.01049874264 | N99: 365.7580848 | O99: 228.598803 | P99: 428.6227557 | Q99: 857.2455113 | S99: -751.71 | T99: 0.3407112905 | U99: 0.02129445566 | V99: 180.3286293 | W99: 112.7053933 | X99: 211.3226124 | Y99: 422.6452249
A100: 760 | C100: -774.82 | D100: 0.04646519064 | E100: 0.00774419844 | F100: 495.8550623 | G100: 309.9094139 | H100: 581.0801511 | I100: 1162.160302 | K100: -772.08 | L100: 0.08290186602 | M100: 0.01036273325 | N100: 370.5586071 | O100: 231.5991294 | P100: 434.2483677 | Q100: 868.4967354 | S100: -761.71 | T100: 0.3362343327 | U100: 0.02101464579 | V100: 182.7297038 | W100: 114.2060649 | X100: 214.1363716 | Y100: 428.2727432
A101: 770 | C101: -784.82 | D101: 0.04587307196 | E101: 0.007645511994 | F101: 502.2554412 | G101: 313.9096508 | H101: 588.5805952 | I101: 1177.16119 | K101: -782.08 | L101: 0.08184162496 | M101: 0.01023020312 | N101: 375.359116 | O101: 234.5994475 | P101: 439.8739641 | Q101: 879.7479282 | S101: -771.71 | T101: 0.3318735536 | U101: 0.0207420971 | V101: 185.1307503 | W101: 115.706719 | X101: 216.9500981 | Y101: 433.9001961
A102: 780 | C102: -794.82 | D102: 0.04529585531 | E102: 0.007549309218 | F102: 508.6558107 | G102: 317.9098817 | H102: 596.0810281 | I102: 1192.162056 | K102: -792.08 | L102: 0.08080816327 | M102: 0.01010102041 | N102: 380.1596121 | O102: 237.5997576 | P102: 445.4995454 | Q102: 890.9990908 | S102: -781.71 | T102: 0.3276244871 | U102: 0.02047653044 | V102: 187.5317701 | W102: 117.2073563 | X102: 219.7637931 | Y102: 439.5275862
A103: 790 | C103: -804.82 | D103: 0.04473298506 | E103: 0.007455497511 | F103: 515.0561709 | G103: 321.9101068 | H103: 603.5814503 | I103: 1207.162901 | K103: -802.08 | L103: 0.0798004789 | M103: 0.009975059863 | N103: 384.9600958 | O103: 240.6000599 | P103: 451.1251122 | Q103: 902.2502245 | S103: -791.71 | T103: 0.323482893 | U103: 0.02021768081 | V103: 189.9327641 | W103: 118.7079776 | X103: 222.5774579 | Y103: 445.1549159
A104: 800 | C104: -814.82 | D104: 0.04418393292 | E104: 0.00736398882 | F104: 521.4565223 | G104: 325.9103264 | H104: 611.0818621 | I104: 1222.163724 | K104: -812.08 | L104: 0.07881761922 | M104: 0.009852202403 | N104: 389.7605675 | O104: 243.6003547 | P104: 456.7506651 | Q104: 913.5013302 | S104: -801.71 | T104: 0.319444743 | U104: 0.01996529644 | V104: 192.3337333 | W104: 120.2085833 | X104: 225.3910937 | Y104: 450.7821873
A105: 810 | C105: -824.82 | D105: 0.04364819617 | E105: 0.007274699362 | F105: 527.8568652 | G105: 329.9105407 | H105: 618.5822639 | I105: 1237.164528 | K105: -822.08 | L105: 0.07785867796 | M105: 0.009732334744 | N105: 394.5610278 | O105: 246.6006424 | P105: 462.3762045 | Q105: 924.752409 | S105: -811.71 | T105: 0.3155062081 | U105: 0.01971913801 | V105: 194.7346785 | W105: 121.7091741 | X105: 228.2047014 | Y105: 456.4094028
A106: 820 | C106: -834.82 | D106: 0.04312529622 | E106: 0.00718754937 | F106: 534.2571998 | G106: 333.9107499 | H106: 626.082656 | I106: 1252.165312 | K106: -832.08 | L106: 0.07692279242 | M106: 0.009615349052 | N106: 399.3614771 | O106: 249.6009232 | P106: 468.0017309 | Q106: 936.0034619 | S106: -821.71 | T106: 0.3116636456 | U106: 0.01947897785 | V106: 197.1356007 | W106: 123.2097505 | X106: 231.0182821 | Y106: 462.0365642
A107: 830 | C107: -844.82 | D107: 0.04261477714 | E107: 0.007102462856 | F107: 540.6575265 | G107: 337.9109541 | H107: 633.5830389 | I107: 1267.166078 | K107: -842.08 | L107: 0.07600914092 | M107: 0.009501142616 | N107: 404.1619156 | O107: 252.6011973 | P107: 473.6272449 | Q107: 947.2544897 | S107: -831.71 | T107: 0.3079135886 | U107: 0.01924459929 | V107: 199.5365007 | W107: 124.710313 | X107: 233.8318368 | Y107: 467.6636736
A108: 840 | C108: -854.82 | D108: 0.04211620432 | E108: 0.007019367386 | F108: 547.0578456 | G108: 341.9111535 | H108: 641.0834128 | I108: 1282.166826 | K108: -852.08 | L108: 0.07511694038 | M108: 0.009389617547 | N108: 408.9623439 | O108: 255.6014649 | P108: 479.2527467 | Q108: 958.5054934 | S108: -841.71 | T108: 0.3042527352 | U108: 0.01901579595 | V108: 201.9373793 | W108: 126.2108621 | X108: 236.6453664 | Y108: 473.2907328
A109: 850 | C109: -864.82 | D109: 0.04162916328 | E109: 0.00693819388 | F109: 553.4581573 | G109: 345.9113483 | H109: 648.5837781 | I109: 1297.167556 | K109: -862.08 | L109: 0.07424544403 | M109: 0.009280680503 | N109: 413.7627622 | O109: 258.6017264 | P109: 484.8782369 | Q109: 969.7564739 | S109: -851.71 | T109: 0.3006779388 | U109: 0.01879237117 | V109: 204.3382373 | W109: 127.7113983 | X109: 239.4588718 | Y109: 478.9177437
A110: 860 | C110: -874.82 | D110: 0.04115325849 | E110: 0.006858876415 | F110: 559.8584619 | G110: 349.9115387 | H110: 656.0841351 | I110: 1312.16827 | K110: -872.08 | L110: 0.0733939394 | M110: 0.009174242425 | N110: 418.5631709 | O110: 261.6019818 | P110: 490.5037159 | Q110: 981.0074318 | S110: -861.71 | T110: 0.2971861991 | U110: 0.01857413744 | V110: 206.7390753 | W110: 129.2119221 | X110: 242.2723539 | Y110: 484.5447078
A111: 870 | C111: -884.82 | D111: 0.0406881123 | E111: 0.006781352049 | F111: 566.2587596 | G111: 353.9117248 | H111: 663.5844839 | I111: 1327.168968 | K111: -882.08 | L111: 0.07256174633 | M111: 0.009070218292 | N111: 423.3635704 | O111: 264.6022315 | P111: 496.129184 | Q111: 992.258368 | S111: -871.71 | T111: 0.2937746539 | U111: 0.01836091587 | V111: 209.1398941 | W111: 130.7124338 | X111: 245.0858134 | Y111: 490.1716268
A112: 880 | C112: -894.82 | D112: 0.04023336394 | E112: 0.006705560657 | F112: 572.6590506 | G112: 357.9119067 | H112: 671.084825 | I112: 1342.16965 | K112: -892.08 | L112: 0.07174821519 | M112: 0.008968526899 | N112: 428.1639609 | O112: 267.6024755 | P112: 501.7546416 | Q112: 1003.509283 | S112: -881.71 | T112: 0.2904405709 | U112: 0.01815253568 | V112: 211.5406943 | W112: 132.2129339 | X112: 247.8992511 | Y112: 495.7985022
A113: 890 | C113: -904.82 | D113: 0.03978866862 | E113: 0.00663144477 | F113: 579.0593353 | G113: 361.9120845 | H113: 678.5851585 | I113: 1357.170317 | K113: -902.08 | L113: 0.07095272513 | M113: 0.008869090642 | N113: 432.9643427 | O113: 270.6027142 | P113: 507.3800891 | Q113: 1014.760178 | S113: -891.71 | T113: 0.2871813405 | U113: 0.01794883378 | V113: 213.9414765 | W113: 133.7134228 | X113: 250.7126677 | Y113: 501.4253355
A114: 900 | C114: -914.82 | D114: 0.03935369659 | E114: 0.006558949431 | F114: 585.4596136 | G114: 365.9122585 | H114: 686.0854847 | I114: 1372.170969 | K114: -912.08 | L114: 0.07017468258 | M114: 0.008771835322 | N114: 437.7647162 | O114: 273.6029476 | P114: 513.0055267 | Q114: 1026.011053 | S114: -901.71 | T114: 0.2839944692 | U114: 0.01774965433 | V114: 216.3422413 | W114: 135.2139008 | X114: 253.5260641 | Y114: 507.0521281
A115: 910 | C115: -924.82 | D115: 0.03892813239 | E115: 0.006488022065 | F115: 591.859886 | G115: 369.9124287 | H115: 693.5858039 | I115: 1387.171608 | K115: -922.08 | L115: 0.06941351969 | M115: 0.008676689961 | N115: 442.5650815 | O115: 276.6031759 | P115: 518.6309549 | Q115: 1037.26191 | S115: -911.71 | T115: 0.2808775731 | U115: 0.01755484832 | V115: 218.7429894 | W115: 136.7143684 | X115: 256.3394407 | Y115: 512.6788814
A116: 920 | C116: -934.82 | D116: 0.03851167406 | E116: 0.006418612344 | F116: 598.2601525 | G116: 373.9125953 | H116: 701.0861162 | I116: 1402.172232 | K116: -932.08 | L116: 0.06866869302 | M116: 0.008583586627 | N116: 447.365439 | O116: 279.6033994 | P116: 524.2563739 | Q116: 1048.512748 | S116: -921.71 | T116: 0.2778283718 | U116: 0.01736427324 | V116: 221.1437212 | W116: 138.2148257 | X116: 259.1527983 | Y116: 518.3055965
A117: 930 | C117: -944.82 | D117: 0.03810403243 | E117: 0.006350672071 | F117: 604.6604134 | G117: 377.9127584 | H117: 708.586422 | I117: 1417.172844 | K117: -942.08 | L117: 0.06793968219 | M117: 0.008492460274 | N117: 452.165789 | O117: 282.6036181 | P117: 529.8817839 | Q117: 1059.763568 | S117: -931.71 | T117: 0.274844683 | U117: 0.01717779269 | V117: 223.5444373 | W117: 139.7152733 | X117: 261.9661374 | Y117: 523.9322749
A118: 940 | C118: -954.82 | D118: 0.03770493042 | E118: 0.00628415507 | F118: 611.0606688 | G118: 381.912918 | H118: 716.0867213 | I118: 1432.173443 | K118: -952.08 | L118: 0.06722598871 | M118: 0.008403248589 | N118: 456.9661315 | O118: 285.6038322 | P118: 535.5071854 | Q118: 1071.014371 | S118: -941.71 | T118: 0.2719244172 | U118: 0.01699527607 | V118: 225.9451381 | W118: 141.2157113 | X118: 264.7794588 | Y118: 529.5589175
A119: 950 | C119: -964.82 | D119: 0.03731410247 | E119: 0.006219017078 | F119: 617.460919 | G119: 385.9130744 | H119: 723.5870144 | I119: 1447.174029 | K119: -962.08 | L119: 0.06652713481 | M119: 0.008315891851 | N119: 461.766467 | O119: 288.6040419 | P119: 541.1325785 | Q119: 1082.265157 | S119: -951.71 | T119: 0.2690655728 | U119: 0.0168165983 | V119: 228.3458243 | W119: 142.7161402 | X119: 267.5927628 | Y119: 535.1855256
A120: 960 | C120: -974.82 | D120: 0.0369312939 | E120: 0.00615521565 | F120: 623.861164 | G120: 389.9132275 | H120: 731.0873015 | I120: 1462.174603 | K120: -972.08 | L120: 0.06584266239 | M120: 0.008230332799 | N120: 466.5667955 | O120: 291.6042472 | P120: 546.7579635 | Q120: 1093.515927 | S120: -961.71 | T120: 0.2662662317 | U120: 0.01664163948 | V120: 230.7464961 | W120: 144.2165601 | X120: 270.4060501 | Y120: 540.8121002
A121: 970 | C121: -984.82 | D121: 0.03655626039 | E121: 0.006092710065 | F121: 630.261404 | G121: 393.9133775 | H121: 738.5875828 | I121: 1477.175166 | K121: -982.08 | L121: 0.06517213201 | M121: 0.008146516502 | N121: 471.3671174 | O121: 294.6044484 | P121: 552.3833407 | Q121: 1104.766681 | S121: -971.71 | T121: 0.2635245548 | U121: 0.01647028468 | V121: 233.1471541 | W121: 145.7169713 | X121: 273.2193212 | Y121: 546.4386424
A122: 980 | C122: -994.82 | D122: 0.03618876744 | E122: 0.00603146124 | F122: 636.6616392 | G122: 397.9135245 | H122: 746.0878584 | I122: 1492.175717 | K122: -992.08 | L122: 0.06451512197 | M122: 0.008064390246 | N122: 476.1674327 | O122: 297.6046455 | P122: 558.0087102 | Q122: 1116.01742 | S122: -981.71 | T122: 0.2608387781 | U122: 0.01630242363 | V122: 235.5477987 | W122: 147.2173742 | X122: 276.0325766 | Y122: 552.0651532
A123: 990 | C123: -1004.82 | D123: 0.03582858988 | E123: 0.005971431647 | F123: 643.0618697 | G123: 401.9136686 | H123: 753.5881286 | I123: 1507.176257 | K123: -1002.08 | L123: 0.06387122738 | M123: 0.007983903423 | N123: 480.9677418 | O123: 300.6048386 | P123: 563.6340724 | Q123: 1127.268145 | S123: -991.71 | T123: 0.2582072087 | U123: 0.01613795055 | V123: 237.9484303 | W123: 148.7177689 | X123: 278.8458167 | Y123: 557.6916334
A124: 1000 | C124: -1014.82 | D124: 0.03547551143 | E124: 0.005912585239 | F124: 649.4620957 | G124: 405.9138098 | H124: 761.0883934 | I124: 1522.176787 | K124: -1012.08 | L124: 0.06324005939 | M124: 0.007905007423 | N124: 485.7680448 | O124: 303.605028 | P124: 569.2594275 | Q124: 1138.518855 | S124: -1001.71 | T124: 0.2556282215 | U124: 0.01597676385 | V124: 240.3490492 | W124: 150.2181558 | X124: 281.6590421 | Y124: 563.3180841
C128: pos | K128: pos | S128: pos
A129: =A29 -> 50 | C129: =(D$29-D29)/0.5*92.5 -> 0 | K129: =(L$29-L29)/0.5*92.5 -> 0
A130: =A30 -> 60 | C130: 14.04827388 | K130: 27.66183251
A131: 70 | C131: 24.72572218 | K131: 48.35213495
A132: 80 | C132: 33.11995997 | K132: 64.42926515
A133: 90 | C133: 39.89477031 | K133: 77.28990542
A134: 100 | C134: 45.47872947 | K134: 87.81604144 | S134: =(T$34-T34)/0.5*92.5 -> 0
A135: 110 | C135: 50.16112531 | K135: 96.59294734 | S135: 44.74043715
A136: 120 | C136: 54.14439337 | K136: 104.0246869 | S136: 81.67932621
A137: 130 | C137: 57.57448692 | K137: 110.3994083 | S137: 112.7218464
A138: 140 | C138: 60.55931903 | K138: 115.9282339 | S138: 139.1924259
A139: 150 | C139: 63.18041282 | K139: 120.7694437 | S139: 162.0424553
A140: 160 | C140: 65.50051261 | K140: 125.0440669 | S140: 181.9741032
A141: 170 | C141: 67.56870198 | K141: 128.8462519 | S141: 199.5175326
A142: 180 | C142: 69.42393291 | K142: 132.2503483 | S142: 215.0808961
A143: 190 | C143: 71.0975138 | K143: 135.315859 | S143: 228.9837463
A144: 200 | C144: 72.61489808 | K144: 138.0909751 | S144: 241.4799776
A145: 210 | C145: 73.99699263 | K145: 140.6151454 | S145: 252.7739544
A146: 220 | C146: 75.2611302 | K146: 142.9209747 | S146: 263.0320852
A147: 230 | C147: 76.4218023 | K147: 145.0356478 | S147: 272.3912831
A148: 240 | C148: 77.49121877 | K148: 146.9820126 | S148: 280.9652497
A149: 250 | C149: 78.47974005 | K149: 148.7794115 | S149: 288.849213
A150: 260 | C150: 79.39621473 | K150: 150.4443303 | S150: 296.1235459
A151: 270 | C151: 80.24824574 | K151: 151.9909067 | S151: 302.8565636
A152: 280 | C152: 81.04240214 | K152: 153.4313346 | S152: 309.1067102
A153: 290 | C153: 81.7843892 | K153: 154.7761869 | S153: 314.924284
A154: 300 | C154: 82.47918587 | K154: 156.0346767 | S154: 320.3528134
A155: 310 | C155: 83.13115686 | K155: 157.2148692 | S155: 325.4301611
A156: 320 | C156: 83.74414454 | K156: 158.3238549 | S156: 330.1894191
A157: 330 | C157: 84.32154483 | K157: 159.3678929 | S157: 334.6596393
A158: 340 | C158: 84.86637025 | K158: 160.3525292 | S158: 338.8664325
A159: 350 | C159: 85.38130253 | K159: 161.2826957 | S159: 342.8324646
A160: 360 | C160: 85.86873684 | K160: 162.1627925 | S160: 346.5778687
A161: 370 | C161: =(D$29-D61)/0.5*92.5 -> 86.33081905 | K161: =(L$29-L61)/0.5*92.5 -> 162.9967583 | S161: 350.12059
A162: 380 | C162: 86.76947736 | K162: 163.7881289 | S162: 353.4766757
A163: 390 | C163: 87.18644924 | K163: 164.5400876 | S163: 356.6605196
A164: 400 | C164: 87.58330442 | K164: 165.2555081 | S164: 359.6850703
A165: 410 | C165: 87.96146469 | K165: 165.9369914 | S165: 362.5620082
A166: 420 | C166: 88.3222209 | K166: 166.5868971 | S166: =(T$34-T66)/0.5*92.5 -> 365.3018975
A167: 430 | C167: 88.66674772 | K167: 167.2073711 | S167: 367.9143165
A168: 440 | C168: 88.99611642 | K168: 167.8003689 | S168: 370.4079699
A169: 450 | C169: 89.31130599 | K169: 168.3676766 | S169: 372.7907866
A170: 460 | C170: 89.61321288 | K170: 168.9109287 | S170: 375.0700044
A171: 470 | C171: 89.90265954 | K171: 169.431624 | S171: 377.2522435
A172: 480 | C172: 90.18040186 | K172: 169.9311391 | S172: 379.343571
A173: 490 | C173: 90.44713579 | K173: 170.4107408 | S173: 381.3495582
A174: 500 | C174: 90.7035032 | K174: 170.8715971 | S174: 383.2753294
A175: 510 | C175: 90.95009697 | K175: 171.314786 | S175: 385.1256064
A176: 520 | C176: 91.18746563 | K176: 171.7413047 | S176: 386.9047474
A177: 530 | C177: 91.4161174 | K177: 172.1520765 | S177: 388.6167809
A178: 540 | C178: 91.63652385 | K178: 172.5479579 | S178: 390.2654368
A179: 550 | C179: 91.84912313 | K179: 172.9297442 | S179: 391.8541733
A180: 560 | C180: 92.05432286 | K180: 173.2981753 | S180: 393.3862014
A181: 570 | C181: 92.25250281 | K181: 173.6539399 | S181: 394.8645062
A182: 580 | C182: 92.44401716 | K182: 173.9976804 | S182: 396.2918671
A183: 590 | C183: 92.62919667 | K183: 174.3299963 | S183: 397.6708748
A184: 600 | C184: 92.80835057 | K184: 174.651448 | S184: 399.0039471
A185: 610 | C185: 92.98176829 | K185: 174.9625597 | S185: 400.293343
A186: 620 | C186: 93.14972098 | K186: 175.2638225 | S186: 401.541176
A187: 630 | C187: 93.31246302 | K187: 175.5556969 | S187: 402.7494249
A188: 640 | C188: 93.47023319 | K188: 175.8386152 | S188: 403.9199452
A189: 650 | C189: 93.62325593 | K189: 176.1129832 | S189: 405.0544779
A190: 660 | C190: 93.77174237 | K190: 176.379183 | S190: 406.1546584
A191: 670 | C191: 93.91589128 | K191: 176.637574 | S191: 407.2220246
A192: 680 | C192: 94.05589 | K192: 176.8884949 | S192: 408.2580237
A193: 690 | C193: =(D$29-D93)/0.5*92.5 -> 94.19191524 | K193: =(L$29-L93)/0.5*92.5 -> 177.132265 | S193: 409.2640193
A194: 700 | C194: 94.3241338 | K194: 177.3691858 | S194: 410.2412967
A195: =A95 -> 710 | C195: 94.45270329 | K195: 177.5995419 | S195: 411.191069
A196: 720 | C196: 94.57777272 | K196: 177.8236026 | S196: 412.1144818
A197: 730 | C197: 94.69948311 | K197: 178.0416224 | S197: 413.012618
A198: 740 | C198: 94.81796799 | K198: 178.2538425 | S198: =(T$34-T98)/0.5*92.5 -> 413.8865018
A199: 750 | C199: 94.93335392 | K199: 178.4604911 | S199: 414.737103
A200: 760 | C200: 95.04576092 | K200: 178.661785 | S200: 415.5653402
A201: 770 | C201: 95.15530287 | K201: 178.8579296 | S201: 416.3720843
A202: 780 | C202: 95.26208795 | K202: 179.04912 | S202: 417.1581616
A203: 790 | C203: 95.36621895 | K203: 179.2355416 | S203: 417.9243565
A204: 800 | C204: 95.46779359 | K204: 179.4173707 | S204: 418.6714143
A205: 810 | C205: 95.56690489 | K205: 179.5947748 | S205: 419.4000432
... 67 more rows

Sheet Bewegung 1D (hidden)
A1: Belichtungszeit [µs] | B1: 100 | E1: Bewegung [Modul] | F1: Kontrast
A2: Maximale Bewegung [Modul] | B2: 0.7 | E2: 0 | F2: 1
E3: =E2+0.1 -> 0.1 | F3: 0.992
E4: =E3+0.1 -> 0.2 | F4: 0.976
E5: 0.3 | F5: 0.955
E6: 0.4 | F6: 0.927
E7: 0.5 | F7: 0.892
E8: 0.6 | F8: 0.851
E9: 0.7 | F9: 0.804
E10: 0.8 | F10: 0.75
E11: 0.9 | F11: 0.69
E12: 1 | F12: 0.623
D14: =Sichtfeld!C10 -> YTOT | H14: =Sichtfeld!K10 -> YTOT | L14: =Sichtfeld!S10 -> EVETAR
D15: =Sichtfeld!C11 -> YT1028-2MP | H15: =Sichtfeld!K11 -> YT10051-2MP | L15: =Sichtfeld!S11 -> M13B1618IRM12R1
D17: =Sichtfeld!H22 -> Mindestbreite Modul [µm] | H17: =Sichtfeld!P22 -> Mindestbreite Modul [µm] | L17: =Sichtfeld!X22 -> Mindestbreite Modul [µm]
A18: =Sichtfeld!A23 -> Nutzabstand g_a [mm] | D18: =Sichtfeld!H23 -> 1D-Code | E18: v_max [m/s] | H18: =Sichtfeld!P23 -> 1D-Code | I18: v_max [m/s] | L18: =Sichtfeld!X23 -> 1D-Code | M18: v_max [m/s]
A19: =Sichtfeld!A24 -> 0 | D19: =Sichtfeld!H24 ->  | H19: =Sichtfeld!P24 ->  | L19: =Sichtfeld!X24 -> 
A20: =Sichtfeld!A25 -> 10 | L20: =Sichtfeld!X25 -> 
A21: =Sichtfeld!A26 -> 20 | L21: =Sichtfeld!X26 -> 
A22: =Sichtfeld!A27 -> 30 | L22: =Sichtfeld!X27 -> 
A23: =Sichtfeld!A28 -> 40 | L23: =Sichtfeld!X28 -> 
A24: =Sichtfeld!A29 -> 50 | D24: =Sichtfeld!H29 -> 48.19483045 | E24: =D24*$B$2/$B$1 -> 0.3373638132 | H24: =Sichtfeld!P29 -> 34.3301393 | I24: =H24*$B$2/$B$1 -> 0.2403109751 | L24: =Sichtfeld!X29 -> 
A25: =Sichtfeld!A30 -> 60 | D25: =Sichtfeld!H30 -> 55.75178292 | E25: =D25*$B$2/$B$1 -> 0.3902624804 | H25: =Sichtfeld!P30 -> 40.03924622 | I25: =H25*$B$2/$B$1 -> 0.2802747236 | L25: =Sichtfeld!X30 -> 
A26: =Sichtfeld!A31 -> 70 | D26: =Sichtfeld!H31 -> 63.29506987 | E26: 0.4430654891 | H26: =Sichtfeld!P31 -> 45.72715593 | I26: 0.3200900915 | L26: =Sichtfeld!X31 -> 
A27: =Sichtfeld!A32 -> 80 | D27: =Sichtfeld!H32 -> 70.82910056 | E27: 0.4958037039 | H27: =Sichtfeld!P32 -> 51.40103909 | I27: 0.3598072736 | L27: =Sichtfeld!X32 -> 
A28: =Sichtfeld!A33 -> 90 | D28: =Sichtfeld!H33 -> 78.35656601 | E28: 0.5484959621 | H28: =Sichtfeld!P33 -> 57.06514239 | I28: 0.3994559967 | L28: =Sichtfeld!X33 -> 
A29: =Sichtfeld!A34 -> 100 | D29: =Sichtfeld!H34 -> 85.87920368 | E29: 0.6011544258 | H29: =Sichtfeld!P34 -> 62.72214753 | I29: 0.4390550327 | L29: =Sichtfeld!X34 -> 27.87959996 | M29: =L29*$B$2/$B$1 -> 0.1951571997
A30: =Sichtfeld!A35 -> 110 | D30: =Sichtfeld!H35 -> 93.39818637 | E30: 0.6537873046 | H30: =Sichtfeld!P35 -> 68.37383407 | I30: 0.4786168385 | L30: =Sichtfeld!X35 -> 30.76011752 | M30: 0.2153208226
A31: =Sichtfeld!A36 -> 120 | D31: =Sichtfeld!H36 -> 100.9143348 | E31: 0.7064003433 | H31: =Sichtfeld!P36 -> 74.02143058 | I31: 0.518150014 | L31: =Sichtfeld!X36 -> 33.62877461 | M31: 0.2354014223
A32: =Sichtfeld!A37 -> 130 | D32: =Sichtfeld!H37 -> 108.4282405 | E32: 0.7589976838 | H32: =Sichtfeld!P37 -> 79.66581318 | I32: 0.5576606922 | L32: =Sichtfeld!X37 -> 36.48846763 | M32: 0.2554192734
A33: =Sichtfeld!A38 -> 140 | D33: =Sichtfeld!H38 -> 115.9403412 | E33: 0.8115823885 | H33: =Sichtfeld!P38 -> 85.30762379 | I33: 0.5971533666 | L33: =Sichtfeld!X38 -> 39.34121007 | M33: 0.2753884705
A34: =Sichtfeld!A39 -> 150 | D34: =Sichtfeld!H39 -> 123.4509673 | E34: 0.8641567708 | H34: =Sichtfeld!P39 -> 90.94734369 | I34: 0.6366314058 | L34: =Sichtfeld!X39 -> 42.18844829 | M34: 0.295319138
A35: =Sichtfeld!A40 -> 160 | D35: =Sichtfeld!H40 -> 130.9603731 | E35: 0.9167226115 | H35: =Sichtfeld!P40 -> 96.58534085 | I35: 0.676097386 | L35: =Sichtfeld!X40 -> 45.03124978 | M35: 0.3152187485
A36: =Sichtfeld!A41 -> 170 | D36: =Sichtfeld!H41 -> 138.4687576 | E36: 0.9692813034 | H36: =Sichtfeld!P41 -> 102.2219016 | I36: 0.7155533109 | L36: =Sichtfeld!X41 -> 47.87042054 | M36: 0.3350929437
A37: =Sichtfeld!A42 -> 180 | D37: =Sichtfeld!H42 -> 145.9762788 | E37: 1.021833952 | H37: =Sichtfeld!P42 -> 107.8572518 | I37: 0.7550007629 | L37: =Sichtfeld!X42 -> 50.70658105 | M37: 0.3549460674
A38: =Sichtfeld!A43 -> 190 | D38: =Sichtfeld!H43 -> 153.4830636 | E38: 1.074381445 | H38: =Sichtfeld!P43 -> 113.4915727 | I38: 0.7944410086 | L38: =Sichtfeld!X43 -> 53.54021714 | M38: 0.37478152
A39: =Sichtfeld!A44 -> 200 | D39: =Sichtfeld!H44 -> 160.9892152 | E39: 1.126924506 | H39: =Sichtfeld!P44 -> 119.1250105 | I39: 0.8338750736 | L39: =Sichtfeld!X44 -> 56.37171479 | M39: 0.3946020035
A40: =Sichtfeld!A45 -> 210 | D40: =Sichtfeld!H45 -> 168.4948183 | E40: 1.179463728 | H40: =Sichtfeld!P45 -> 124.7576854 | I40: 0.8733037975 | L40: =Sichtfeld!X45 -> 59.20138469 | M40: 0.4144096928
A41: =Sichtfeld!A46 -> 220 | D41: =Sichtfeld!H46 -> 175.9999431 | E41: 1.231999602 | H41: =Sichtfeld!P46 -> 130.3896963 | I41: 0.9127278742 | L41: =Sichtfeld!X46 -> 62.02947982 | M41: 0.4342063587
A42: =Sichtfeld!A47 -> 230 | D42: =Sichtfeld!H47 -> 183.5046486 | E42: 1.28453254 | H42: =Sichtfeld!P47 -> 136.0211261 | I42: 0.9521478825 | L42: =Sichtfeld!X47 -> 64.85620833 | M42: 0.4539934583
A43: =Sichtfeld!A48 -> 240 | D43: =Sichtfeld!H48 -> 191.008984 | E43: 1.337062888 | H43: =Sichtfeld!P48 -> 141.6520441 | I43: 0.9915643085 | L43: =Sichtfeld!X48 -> 67.68174308 | M43: 0.4737722015
A44: =Sichtfeld!A49 -> 250 | D44: =Sichtfeld!H49 -> 198.5129916 | E44: 1.389590941 | H44: =Sichtfeld!P49 -> 147.2825091 | I44: 1.030977564 | L44: =Sichtfeld!X49 -> 70.50622883 | M44: 0.4935436018
A45: =Sichtfeld!A50 -> 260 | D45: =Sichtfeld!H50 -> 206.016707 | E45: 1.442116949 | H45: =Sichtfeld!P50 -> 152.9125714 | I45: 1.070388 | L45: =Sichtfeld!X50 -> 73.32978778 | M45: 0.5133085145
A46: =Sichtfeld!A51 -> 270 | D46: =Sichtfeld!H51 -> 213.5201612 | E46: 1.494641128 | H46: =Sichtfeld!P51 -> 158.5422738 | I46: 1.109795917 | L46: =Sichtfeld!X51 -> 76.15252379 | M46: 0.5330676665
A47: =Sichtfeld!A52 -> 280 | D47: =Sichtfeld!H52 -> 221.0233807 | E47: 1.547163665 | H47: =Sichtfeld!P52 -> 164.1716535 | I47: 1.149201574 | L47: =Sichtfeld!X52 -> 78.9745257 | M47: 0.5528216799
A48: =Sichtfeld!A53 -> 290 | D48: =Sichtfeld!H53 -> 228.5263888 | E48: 1.599684722 | H48: =Sichtfeld!P53 -> 169.8007426 | I48: 1.188605198 | L48: =Sichtfeld!X53 -> 81.79586999 | M48: 0.5725710899
A49: =Sichtfeld!A54 -> 300 | D49: =Sichtfeld!H54 -> 236.0292055 | E49: 1.652204439 | H49: =Sichtfeld!P54 -> 175.4295691 | I49: 1.228006983 | L49: =Sichtfeld!X54 -> 84.61662282 | M49: 0.5923163597
A50: =Sichtfeld!A55 -> 310 | D50: =Sichtfeld!H55 -> 243.5318487 | E50: 1.704722941 | H50: =Sichtfeld!P55 -> 181.0581575 | I50: 1.267407102 | L50: =Sichtfeld!X55 -> 87.43684176 | M50: 0.6120578923
A51: =Sichtfeld!A56 -> 320 | D51: =Sichtfeld!H56 -> 251.0343337 | E51: 1.757240336 | H51: =Sichtfeld!P56 -> 186.6865294 | I51: 1.306805706 | L51: =Sichtfeld!X56 -> 90.25657712 | M51: 0.6317960398
A52: =Sichtfeld!A57 -> 330 | D52: =Sichtfeld!H57 -> 258.5366746 | E52: 1.809756722 | H52: =Sichtfeld!P57 -> 192.3147038 | I52: 1.346202927 | L52: =Sichtfeld!X57 -> 93.07587306 | M52: 0.6515311114
A53: =Sichtfeld!A58 -> 340 | D53: =Sichtfeld!H58 -> 266.0388833 | E53: 1.862272183 | H53: =Sichtfeld!P58 -> 197.9426977 | I53: 1.385598884 | L53: =Sichtfeld!X58 -> 95.89476852 | M53: 0.6712633797
A54: =Sichtfeld!A59 -> 350 | D54: =Sichtfeld!H59 -> 273.5409709 | E54: 1.914786796 | H54: =Sichtfeld!P59 -> 203.5705259 | I54: 1.424993681 | L54: =Sichtfeld!X59 -> 98.71329797 | M54: 0.6909930858
A55: =Sichtfeld!A60 -> 360 | D55: =Sichtfeld!H60 -> 281.042947 | E55: 1.967300629 | H55: =Sichtfeld!P60 -> 209.1982018 | I55: 1.464387413 | L55: =Sichtfeld!X60 -> 101.531492 | M55: 0.7107204439
A56: =Sichtfeld!A61 -> 370 | D56: =Sichtfeld!H61 -> 288.5448203 | E56: 2.019813742 | H56: =Sichtfeld!P61 -> 214.8257376 | I56: 1.503780163 | L56: =Sichtfeld!X61 -> 104.3493779 | M56: 0.7304456452
A57: =Sichtfeld!A62 -> 380 | D57: =Sichtfeld!H62 -> 296.0465986 | E57: 2.07232619 | H57: =Sichtfeld!P62 -> 220.4531437 | I57: 1.543172006 | L57: =Sichtfeld!X62 -> 107.16698 | M57: 0.7501688603
A58: =Sichtfeld!A63 -> 390 | D58: =Sichtfeld!H63 -> 303.548289 | E58: 2.124838023 | H58: =Sichtfeld!P63 -> 226.0804301 | I58: 1.582563011 | L58: =Sichtfeld!X63 -> 109.9843203 | M58: 0.7698902424
A59: =Sichtfeld!A64 -> 400 | D59: =Sichtfeld!H64 -> 311.0498979 | E59: 2.177349285 | H59: =Sichtfeld!P64 -> 231.7076054 | I59: 1.621953238 | L59: =Sichtfeld!X64 -> 112.8014185 | M59: 0.7896099294
A60: =Sichtfeld!A65 -> 410 | D60: =Sichtfeld!H65 -> 318.551431 | E60: 2.229860017 | H60: =Sichtfeld!P65 -> 237.3346774 | I60: 1.661342742 | L60: =Sichtfeld!X65 -> 115.6182922 | M60: 0.8093280454
A61: =Sichtfeld!A66 -> 420 | D61: =Sichtfeld!H66 -> 326.0528935 | E61: 2.282370255 | H61: =Sichtfeld!P66 -> 242.9616535 | I61: 1.700731575 | L61: =Sichtfeld!X66 -> 118.4349576 | M61: 0.829044703
A62: =Sichtfeld!A67 -> 430 | D62: =Sichtfeld!H67 -> 333.5542902 | E62: 2.334880032 | H62: =Sichtfeld!P67 -> 248.5885401 | I62: 1.740119781 | L62: =Sichtfeld!X67 -> 121.2514292 | M62: 0.8487600041
A63: =Sichtfeld!A68 -> 440 | D63: =Sichtfeld!H68 -> 341.0556255 | E63: 2.387389379 | H63: =Sichtfeld!P68 -> 254.2153431 | I63: 1.779507402 | L63: =Sichtfeld!X68 -> 124.0677202 | M63: 0.8684740413
A64: =Sichtfeld!A69 -> 450 | D64: =Sichtfeld!H69 -> 348.5569033 | E64: 2.439898323 | H64: =Sichtfeld!P69 -> 259.842068 | I64: 1.818894476 | L64: =Sichtfeld!X69 -> 126.8838427 | M64: 0.888186899
A65: =Sichtfeld!A70 -> 460 | D65: =Sichtfeld!H70 -> 356.0581273 | E65: 2.492406891 | H65: =Sichtfeld!P70 -> 265.4687198 | I65: 1.858281039 | L65: =Sichtfeld!X70 -> 129.6998077 | M65: 0.9078986542
A66: =Sichtfeld!A71 -> 470 | D66: =Sichtfeld!H71 -> 363.5593007 | E66: 2.544915105 | H66: =Sichtfeld!P71 -> 271.095303 | I66: 1.897667121 | L66: =Sichtfeld!X71 -> 132.5156253 | M66: 0.9276093773
A67: =Sichtfeld!A72 -> 480 | D67: =Sichtfeld!H72 -> 371.0604267 | E67: 2.597422987 | H67: =Sichtfeld!P72 -> 276.7218218 | I67: 1.937052753 | L67: =Sichtfeld!X72 -> 135.3313047 | M67: 0.947319133
A68: =Sichtfeld!A73 -> 490 | D68: =Sichtfeld!H73 -> 378.561508 | E68: 2.649930556 | H68: =Sichtfeld!P73 -> 282.3482801 | I68: 1.97643796 | L68: =Sichtfeld!X73 -> 138.1468544 | M68: 0.9670279805
A69: =Sichtfeld!A74 -> 500 | D69: =Sichtfeld!H74 -> 386.0625474 | E69: 2.702437832 | H69: =Sichtfeld!P74 -> 287.9746813 | I69: 2.015822769 | L69: =Sichtfeld!X74 -> 140.9622821 | M69: 0.9867359744
A70: =Sichtfeld!A75 -> 510 | D70: =Sichtfeld!H75 -> 393.5635471 | E70: 2.754944829 | H70: =Sichtfeld!P75 -> 293.6010289 | I70: 2.055207202 | L70: =Sichtfeld!X75 -> 143.777595 | M70: 1.006443165
A71: =Sichtfeld!A76 -> 520 | D71: =Sichtfeld!H76 -> 401.0645094 | E71: 2.807451566 | H71: =Sichtfeld!P76 -> 299.2273257 | I71: 2.09459128 | L71: =Sichtfeld!X76 -> 146.5927997 | M71: 1.026149598
A72: =Sichtfeld!A77 -> 530 | D72: =Sichtfeld!H77 -> 408.5654363 | E72: 2.859958054 | H72: =Sichtfeld!P77 -> 304.8535747 | I72: 2.133975023 | L72: =Sichtfeld!X77 -> 149.4079025 | M72: 1.045855318
A73: =Sichtfeld!A78 -> 540 | D73: =Sichtfeld!H78 -> 416.0663299 | E73: 2.912464309 | H73: =Sichtfeld!P78 -> 310.4797784 | I73: 2.173358449 | L73: =Sichtfeld!X78 -> 152.2229089 | M73: 1.065560362
A74: =Sichtfeld!A79 -> 550 | D74: =Sichtfeld!H79 -> 423.5671918 | E74: 2.964970342 | H74: =Sichtfeld!P79 -> 316.1059392 | I74: 2.212741574 | L74: =Sichtfeld!X79 -> 155.0378242 | M74: 1.085264769
A75: =Sichtfeld!A80 -> 560 | D75: =Sichtfeld!H80 -> 431.0680237 | E75: 3.017476166 | H75: =Sichtfeld!P80 -> 321.7320594 | I75: 2.252124416 | L75: =Sichtfeld!X80 -> 157.8526533 | M75: 1.104968573
A76: =Sichtfeld!A81 -> 570 | D76: =Sichtfeld!H81 -> 438.5688271 | E76: 3.06998179 | H76: =Sichtfeld!P81 -> 327.3581411 | I76: 2.291506988 | L76: =Sichtfeld!X81 -> 160.6674007 | M76: 1.124671805
A77: =Sichtfeld!A82 -> 580 | D77: =Sichtfeld!H82 -> 446.0696035 | E77: 3.122487224 | H77: =Sichtfeld!P82 -> 332.9841863 | I77: 2.330889304 | L77: =Sichtfeld!X82 -> 163.4820707 | M77: 1.144374495
A78: =Sichtfeld!A83 -> 590 | D78: =Sichtfeld!H83 -> 453.5703542 | E78: 3.17499248 | H78: =Sichtfeld!P83 -> 338.6101967 | I78: 2.370271377 | L78: =Sichtfeld!X83 -> 166.2966672 | M78: 1.16407667
A79: =Sichtfeld!A84 -> 600 | D79: =Sichtfeld!H84 -> 461.0710805 | E79: 3.227497564 | H79: =Sichtfeld!P84 -> 344.2361741 | I79: 2.409653219 | L79: =Sichtfeld!X84 -> 169.1111938 | M79: 1.183778357
A80: =Sichtfeld!A85 -> 610 | D80: =Sichtfeld!H85 -> 468.5717836 | E80: 3.280002485 | H80: =Sichtfeld!P85 -> 349.8621201 | I80: 2.44903484 | L80: =Sichtfeld!X85 -> 171.925654 | M80: 1.203479578
A81: =Sichtfeld!A86 -> 620 | D81: =Sichtfeld!H86 -> 476.0724645 | E81: 3.332507251 | H81: =Sichtfeld!P86 -> 355.4880361 | I81: 2.488416252 | L81: =Sichtfeld!X86 -> 174.7400511 | M81: 1.223180358
A82: =Sichtfeld!A87 -> 630 | D82: =Sichtfeld!H87 -> 483.5731242 | E82: 3.38501187 | H82: =Sichtfeld!P87 -> 361.1139235 | I82: 2.527797465 | L82: =Sichtfeld!X87 -> 177.5543879 | M82: 1.242880716
A83: =Sichtfeld!A88 -> 640 | D83: =Sichtfeld!H88 -> 491.0737638 | E83: 3.437516347 | H83: =Sichtfeld!P88 -> 366.7397837 | I83: 2.567178486 | L83: =Sichtfeld!X88 -> 180.3686674 | M83: 1.262580672
A84: =Sichtfeld!A89 -> 650 | D84: =Sichtfeld!H89 -> 498.5743842 | E84: 3.490020689 | H84: =Sichtfeld!P89 -> 372.365618 | I84: 2.606559326 | L84: =Sichtfeld!X89 -> 183.1828922 | M84: 1.282280246
A85: =Sichtfeld!A90 -> 660 | D85: =Sichtfeld!H90 -> 506.0749862 | E85: 3.542524903 | H85: =Sichtfeld!P90 -> 377.9914274 | I85: 2.645939991 | L85: =Sichtfeld!X90 -> 185.9970648 | M85: 1.301979454
A86: =Sichtfeld!A91 -> 670 | D86: =Sichtfeld!H91 -> 513.5755706 | E86: 3.595028994 | H86: =Sichtfeld!P91 -> 383.617213 | I86: 2.685320491 | L86: =Sichtfeld!X91 -> 188.8111875 | M86: 1.321678312
A87: =Sichtfeld!A92 -> 680 | D87: =Sichtfeld!H92 -> 521.0761381 | E87: 3.647532967 | H87: =Sichtfeld!P92 -> 389.2429759 | I87: 2.724700832 | L87: =Sichtfeld!X92 -> 191.6252625 | M87: 1.341376837
A88: =Sichtfeld!A93 -> 690 | D88: =Sichtfeld!H93 -> 528.5766896 | E88: 3.700036827 | H88: =Sichtfeld!P93 -> 394.8687171 | I88: 2.76408102 | L88: =Sichtfeld!X93 -> 194.4392919 | M88: 1.361075043
A89: =Sichtfeld!A94 -> 700 | D89: =Sichtfeld!H94 -> 536.0772256 | E89: =D89*$B$2/$B$1 -> 3.752540579 | H89: =Sichtfeld!P94 -> 400.4944375 | I89: =H89*$B$2/$B$1 -> 2.803461062 | L89: =Sichtfeld!X94 -> 197.2532776 | M89: =L89*$B$2/$B$1 -> 1.380772943
A90: =Sichtfeld!A95 -> 710 | D90: =Sichtfeld!H95 -> 543.5777468 | E90: 3.805044228 | H90: =Sichtfeld!P95 -> 406.1201379 | I90: 2.842840965 | L90: =Sichtfeld!X95 -> 200.0672215 | M90: 1.400470551
A91: =Sichtfeld!A96 -> 720 | D91: =Sichtfeld!H96 -> 551.0782539 | E91: 3.857547777 | H91: =Sichtfeld!P96 -> 411.7458192 | I91: 2.882220734 | L91: =Sichtfeld!X96 -> 202.8811254 | M91: 1.420167877
A92: =Sichtfeld!A97 -> 730 | D92: =Sichtfeld!H97 -> 558.5787473 | E92: 3.910051231 | H92: =Sichtfeld!P97 -> 417.3714821 | I92: 2.921600374 | L92: =Sichtfeld!X97 -> 205.6949908 | M92: 1.439864935
A93: =Sichtfeld!A98 -> 740 | D93: =Sichtfeld!H98 -> 566.0792276 | E93: 3.962554593 | H93: =Sichtfeld!P98 -> 422.9971273 | I93: 2.960979891 | L93: =Sichtfeld!X98 -> 208.5088193 | M93: 1.459561735
A94: =Sichtfeld!A99 -> 750 | D94: =Sichtfeld!H99 -> 573.5796954 | E94: 4.015057868 | H94: =Sichtfeld!P99 -> 428.6227557 | I94: 3.00035929 | L94: =Sichtfeld!X99 -> 211.3226124 | M94: 1.479258287
A95: =Sichtfeld!A100 -> 760 | D95: =Sichtfeld!H100 -> 581.0801511 | E95: 4.067561058 | H95: =Sichtfeld!P100 -> 434.2483677 | I95: 3.039738574 | L95: =Sichtfeld!X100 -> 214.1363716 | M95: 1.498954601
A96: =Sichtfeld!A101 -> 770 | D96: =Sichtfeld!H101 -> 588.5805952 | E96: 4.120064166 | H96: =Sichtfeld!P101 -> 439.8739641 | I96: 3.079117749 | L96: =Sichtfeld!X101 -> 216.9500981 | M96: 1.518650686
A97: =Sichtfeld!A102 -> 780 | D97: =Sichtfeld!H102 -> 596.0810281 | E97: 4.172567197 | H97: =Sichtfeld!P102 -> 445.4995454 | I97: 3.118496818 | L97: =Sichtfeld!X102 -> 219.7637931 | M97: 1.538346552
A98: =Sichtfeld!A103 -> 790 | D98: =Sichtfeld!H103 -> 603.5814503 | E98: 4.225070152 | H98: =Sichtfeld!P103 -> 451.1251122 | I98: 3.157875786 | L98: =Sichtfeld!X103 -> 222.5774579 | M98: 1.558042206
A99: =Sichtfeld!A104 -> 800 | D99: =Sichtfeld!H104 -> 611.0818621 | E99: 4.277573034 | H99: =Sichtfeld!P104 -> 456.7506651 | I99: 3.197254656 | L99: =Sichtfeld!X104 -> 225.3910937 | M99: 1.577737656
A100: =Sichtfeld!A105 -> 810 | D100: =Sichtfeld!H105 -> 618.5822639 | E100: 4.330075847 | H100: =Sichtfeld!P105 -> 462.3762045 | I100: 3.236633431 | L100: =Sichtfeld!X105 -> 228.2047014 | M100: 1.59743291
A101: =Sichtfeld!A106 -> 820 | D101: =Sichtfeld!H106 -> 626.082656 | E101: 4.382578592 | H101: =Sichtfeld!P106 -> 468.0017309 | I101: 3.276012117 | L101: =Sichtfeld!X106 -> 231.0182821 | M101: 1.617127975
A102: =Sichtfeld!A107 -> 830 | D102: =Sichtfeld!H107 -> 633.5830389 | E102: 4.435081272 | H102: =Sichtfeld!P107 -> 473.6272449 | I102: 3.315390714 | L102: =Sichtfeld!X107 -> 233.8318368 | M102: 1.636822858
A103: =Sichtfeld!A108 -> 840 | D103: =Sichtfeld!H108 -> 641.0834128 | E103: 4.48758389 | H103: =Sichtfeld!P108 -> 479.2527467 | I103: 3.354769227 | L103: =Sichtfeld!X108 -> 236.6453664 | M103: 1.656517565
A104: =Sichtfeld!A109 -> 850 | D104: =Sichtfeld!H109 -> 648.5837781 | E104: 4.540086447 | H104: =Sichtfeld!P109 -> 484.8782369 | I104: 3.394147659 | L104: =Sichtfeld!X109 -> 239.4588718 | M104: 1.676212103
A105: =Sichtfeld!A110 -> 860 | D105: =Sichtfeld!H110 -> 656.0841351 | E105: 4.592588945 | H105: =Sichtfeld!P110 -> 490.5037159 | I105: 3.433526011 | L105: =Sichtfeld!X110 -> 242.2723539 | M105: 1.695906477
A106: =Sichtfeld!A111 -> 870 | D106: =Sichtfeld!H111 -> 663.5844839 | E106: 4.645091387 | H106: =Sichtfeld!P111 -> 496.129184 | I106: 3.472904288 | L106: =Sichtfeld!X111 -> 245.0858134 | M106: 1.715600694
A107: =Sichtfeld!A112 -> 880 | D107: =Sichtfeld!H112 -> 671.084825 | E107: 4.697593775 | H107: =Sichtfeld!P112 -> 501.7546416 | I107: 3.512282491 | L107: =Sichtfeld!X112 -> 247.8992511 | M107: 1.735294758
A108: =Sichtfeld!A113 -> 890 | D108: =Sichtfeld!H113 -> 678.5851585 | E108: 4.750096109 | H108: =Sichtfeld!P113 -> 507.3800891 | I108: 3.551660624 | L108: =Sichtfeld!X113 -> 250.7126677 | M108: 1.754988674
A109: =Sichtfeld!A114 -> 900 | D109: =Sichtfeld!H114 -> 686.0854847 | E109: 4.802598393 | H109: =Sichtfeld!P114 -> 513.0055267 | I109: 3.591038687 | L109: =Sichtfeld!X114 -> 253.5260641 | M109: 1.774682448
A110: =Sichtfeld!A115 -> 910 | D110: =Sichtfeld!H115 -> 693.5858039 | E110: 4.855100627 | H110: =Sichtfeld!P115 -> 518.6309549 | I110: 3.630416684 | L110: =Sichtfeld!X115 -> 256.3394407 | M110: 1.794376085
A111: =Sichtfeld!A116 -> 920 | D111: =Sichtfeld!H116 -> 701.0861162 | E111: 4.907602814 | H111: =Sichtfeld!P116 -> 524.2563739 | I111: 3.669794617 | L111: =Sichtfeld!X116 -> 259.1527983 | M111: 1.814069588
A112: =Sichtfeld!A117 -> 930 | D112: =Sichtfeld!H117 -> 708.586422 | E112: 4.960104954 | H112: =Sichtfeld!P117 -> 529.8817839 | I112: 3.709172488 | L112: =Sichtfeld!X117 -> 261.9661374 | M112: 1.833762962
A113: =Sichtfeld!A118 -> 940 | D113: =Sichtfeld!H118 -> 716.0867213 | E113: 5.012607049 | H113: =Sichtfeld!P118 -> 535.5071854 | I113: 3.748550298 | L113: =Sichtfeld!X118 -> 264.7794588 | M113: 1.853456211
A114: =Sichtfeld!A119 -> 950 | D114: =Sichtfeld!H119 -> 723.5870144 | E114: 5.065109101 | H114: =Sichtfeld!P119 -> 541.1325785 | I114: 3.787928049 | L114: =Sichtfeld!X119 -> 267.5927628 | M114: 1.87314934
A115: =Sichtfeld!A120 -> 960 | D115: =Sichtfeld!H120 -> 731.0873015 | E115: 5.117611111 | H115: =Sichtfeld!P120 -> 546.7579635 | I115: 3.827305745 | L115: =Sichtfeld!X120 -> 270.4060501 | M115: 1.892842351
A116: =Sichtfeld!A121 -> 970 | D116: =Sichtfeld!H121 -> 738.5875828 | E116: 5.17011308 | H116: =Sichtfeld!P121 -> 552.3833407 | I116: 3.866683385 | L116: =Sichtfeld!X121 -> 273.2193212 | M116: 1.912535249
A117: =Sichtfeld!A122 -> 980 | D117: =Sichtfeld!H122 -> 746.0878584 | E117: 5.222615009 | H117: =Sichtfeld!P122 -> 558.0087102 | I117: 3.906060972 | L117: =Sichtfeld!X122 -> 276.0325766 | M117: 1.932228036
A118: =Sichtfeld!A123 -> 990 | D118: =Sichtfeld!H123 -> 753.5881286 | E118: 5.2751169 | H118: =Sichtfeld!P123 -> 563.6340724 | I118: 3.945438507 | L118: =Sichtfeld!X123 -> 278.8458167 | M118: 1.951920717
A119: =Sichtfeld!A124 -> 1000 | D119: =Sichtfeld!H124 -> 761.0883934 | E119: 5.327618754 | H119: =Sichtfeld!P124 -> 569.2594275 | I119: 3.984815992 | L119: =Sichtfeld!X124 -> 281.6590421 | M119: 1.971613294

Sheet Mathematik (hidden)

Sheet Diagramme Bildfeld (hidden)
A1: 6 mm | J1: An Stelle Originalbeschriftung Diagramm:
B2: Arbeitsabstand, Bildfeldgröße | J2: Sichtfeld / Field of view
B4: Nutzabstand | C4: Bildfeld x in mm | D4: Bildfeld y in mm | F4: Bildfeld | H4: 1.6
B5: 50 | C5: =ROUND(VLOOKUP(B5,Sichtfeld!$A$29:$Y$124,6,FALSE),0) -> 41 | D5: =ROUND(VLOOKUP(B5,Sichtfeld!$A$29:$Y$124,7,FALSE),0) -> 26 | F5: =CONCATENATE(C5," mm x ",D5, " mm") -> 41 mm x 26 mm | J5: =CONCATENATE(G6," mm x ",H6," mm") -> 650 mm x 406 mm
B6: 60 | C6: =ROUND(VLOOKUP(B6,Sichtfeld!$A$29:$Y$124,6,FALSE),0) -> 48 | D6: =ROUND(VLOOKUP(B6,Sichtfeld!$A$29:$Y$124,7,FALSE),0) -> 30 | F6: =CONCATENATE(C6," mm x ",D6, " mm") -> 48 mm x 30 mm | G6: 650 | H6: =ROUND(G6/$H$4,0) -> 406
B7: 70 | C7: =ROUND(VLOOKUP(B7,Sichtfeld!$A$29:$Y$124,6,FALSE),0) -> 54 | D7: =ROUND(VLOOKUP(B7,Sichtfeld!$A$29:$Y$124,7,FALSE),0) -> 34 | F7: 54 mm x 34 mm | J7: =CONCATENATE(G8," mm x ",H8," mm") -> 600 mm x 375 mm
B8: 80 | C8: =ROUND(VLOOKUP(B8,Sichtfeld!$A$29:$Y$124,6,FALSE),0) -> 60 | D8: =ROUND(VLOOKUP(B8,Sichtfeld!$A$29:$Y$124,7,FALSE),0) -> 38 | F8: 60 mm x 38 mm | G8: 600 | H8: =ROUND(G8/$H$4,0) -> 375
B9: 90 | C9: =ROUND(VLOOKUP(B9,Sichtfeld!$A$29:$Y$124,6,FALSE),0) -> 67 | D9: =ROUND(VLOOKUP(B9,Sichtfeld!$A$29:$Y$124,7,FALSE),0) -> 42 | F9: 67 mm x 42 mm | J9: =CONCATENATE(G10," mm x ",H10," mm") -> 550 mm x 344 mm
B10: 100 | C10: =ROUND(VLOOKUP(B10,Sichtfeld!$A$29:$Y$124,6,FALSE),0) -> 73 | D10: =ROUND(VLOOKUP(B10,Sichtfeld!$A$29:$Y$124,7,FALSE),0) -> 46 | F10: 73 mm x 46 mm | G10: 550 | H10: =ROUND(G10/$H$4,0) -> 344
B11: 110 | C11: =ROUND(VLOOKUP(B11,Sichtfeld!$A$29:$Y$124,6,FALSE),0) -> 80 | D11: =ROUND(VLOOKUP(B11,Sichtfeld!$A$29:$Y$124,7,FALSE),0) -> 50 | F11: 80 mm x 50 mm | J11: =CONCATENATE(G13," mm x ",H13," mm") -> 500 mm x 313 mm
B12: 120 | C12: =ROUND(VLOOKUP(B12,Sichtfeld!$A$29:$Y$124,6,FALSE),0) -> 86 | D12: =ROUND(VLOOKUP(B12,Sichtfeld!$A$29:$Y$124,7,FALSE),0) -> 54 | F12: 86 mm x 54 mm
B13: 130 | C13: =ROUND(VLOOKUP(B13,Sichtfeld!$A$29:$Y$124,6,FALSE),0) -> 93 | D13: =ROUND(VLOOKUP(B13,Sichtfeld!$A$29:$Y$124,7,FALSE),0) -> 58 | F13: 93 mm x 58 mm | G13: 500 | H13: =ROUND(G13/$H$4,0) -> 313 | J13: =CONCATENATE(G15," mm x ",H15," mm") -> 450 mm x 281 mm
B14: 140 | C14: =ROUND(VLOOKUP(B14,Sichtfeld!$A$29:$Y$124,6,FALSE),0) -> 99 | D14: =ROUND(VLOOKUP(B14,Sichtfeld!$A$29:$Y$124,7,FALSE),0) -> 62 | F14: 99 mm x 62 mm
B15: 150 | C15: =ROUND(VLOOKUP(B15,Sichtfeld!$A$29:$Y$124,6,FALSE),0) -> 105 | D15: =ROUND(VLOOKUP(B15,Sichtfeld!$A$29:$Y$124,7,FALSE),0) -> 66 | F15: 105 mm x 66 mm | G15: 450 | H15: =ROUND(G15/$H$4,0) -> 281
B16: 160 | C16: =ROUND(VLOOKUP(B16,Sichtfeld!$A$29:$Y$124,6,FALSE),0) -> 112 | D16: =ROUND(VLOOKUP(B16,Sichtfeld!$A$29:$Y$124,7,FALSE),0) -> 70 | F16: 112 mm x 70 mm | J16: =CONCATENATE(G17," mm x ",H17," mm") -> 400 mm x 250 mm
B17: 170 | C17: =ROUND(VLOOKUP(B17,Sichtfeld!$A$29:$Y$124,6,FALSE),0) -> 118 | D17: =ROUND(VLOOKUP(B17,Sichtfeld!$A$29:$Y$124,7,FALSE),0) -> 74 | F17: 118 mm x 74 mm | G17: 400 | H17: =ROUND(G17/$H$4,0) -> 250
B18: 180 | C18: =ROUND(VLOOKUP(B18,Sichtfeld!$A$29:$Y$124,6,FALSE),0) -> 125 | D18: =ROUND(VLOOKUP(B18,Sichtfeld!$A$29:$Y$124,7,FALSE),0) -> 78 | F18: 125 mm x 78 mm
B19: 190 | C19: =ROUND(VLOOKUP(B19,Sichtfeld!$A$29:$Y$124,6,FALSE),0) -> 131 | D19: =ROUND(VLOOKUP(B19,Sichtfeld!$A$29:$Y$124,7,FALSE),0) -> 82 | F19: 131 mm x 82 mm | J19: =CONCATENATE(G20," mm x ",H20," mm") -> 350 mm x 219 mm
B20: 200 | C20: =ROUND(VLOOKUP(B20,Sichtfeld!$A$29:$Y$124,6,FALSE),0) -> 137 | D20: =ROUND(VLOOKUP(B20,Sichtfeld!$A$29:$Y$124,7,FALSE),0) -> 86 | F20: 137 mm x 86 mm | G20: 350 | H20: =ROUND(G20/$H$4,0) -> 219
B21: 210 | C21: =ROUND(VLOOKUP(B21,Sichtfeld!$A$29:$Y$124,6,FALSE),0) -> 144 | D21: =ROUND(VLOOKUP(B21,Sichtfeld!$A$29:$Y$124,7,FALSE),0) -> 90 | F21: 144 mm x 90 mm | J21: =CONCATENATE(G22," mm x ",H22," mm") -> 300 mm x 188 mm
B22: 220 | C22: =ROUND(VLOOKUP(B22,Sichtfeld!$A$29:$Y$124,6,FALSE),0) -> 150 | D22: =ROUND(VLOOKUP(B22,Sichtfeld!$A$29:$Y$124,7,FALSE),0) -> 94 | F22: 150 mm x 94 mm | G22: 300 | H22: =ROUND(G22/$H$4,0) -> 188
B23: 230 | C23: =ROUND(VLOOKUP(B23,Sichtfeld!$A$29:$Y$124,6,FALSE),0) -> 157 | D23: =ROUND(VLOOKUP(B23,Sichtfeld!$A$29:$Y$124,7,FALSE),0) -> 98 | F23: 157 mm x 98 mm | J23: =CONCATENATE(G24," mm x ",H24," mm") -> 250 mm x 156 mm
B24: 240 | C24: =ROUND(VLOOKUP(B24,Sichtfeld!$A$29:$Y$124,6,FALSE),0) -> 163 | D24: =ROUND(VLOOKUP(B24,Sichtfeld!$A$29:$Y$124,7,FALSE),0) -> 102 | F24: 163 mm x 102 mm | G24: 250 | H24: =ROUND(G24/$H$4,0) -> 156
B25: 250 | C25: =ROUND(VLOOKUP(B25,Sichtfeld!$A$29:$Y$124,6,FALSE),0) -> 169 | D25: =ROUND(VLOOKUP(B25,Sichtfeld!$A$29:$Y$124,7,FALSE),0) -> 106 | F25: 169 mm x 106 mm
B26: 260 | C26: =ROUND(VLOOKUP(B26,Sichtfeld!$A$29:$Y$124,6,FALSE),0) -> 176 | D26: =ROUND(VLOOKUP(B26,Sichtfeld!$A$29:$Y$124,7,FALSE),0) -> 110 | F26: 176 mm x 110 mm | J26: =CONCATENATE(G27," mm x ",H27," mm") -> 200 mm x 125 mm
B27: 270 | C27: =ROUND(VLOOKUP(B27,Sichtfeld!$A$29:$Y$124,6,FALSE),0) -> 182 | D27: =ROUND(VLOOKUP(B27,Sichtfeld!$A$29:$Y$124,7,FALSE),0) -> 114 | F27: 182 mm x 114 mm | G27: 200 | H27: =ROUND(G27/$H$4,0) -> 125
B28: 280 | C28: =ROUND(VLOOKUP(B28,Sichtfeld!$A$29:$Y$124,6,FALSE),0) -> 189 | D28: =ROUND(VLOOKUP(B28,Sichtfeld!$A$29:$Y$124,7,FALSE),0) -> 118 | F28: 189 mm x 118 mm | J28: =CONCATENATE(G29," mm x ",H29," mm") -> 150 mm x 94 mm
B29: 290 | C29: =ROUND(VLOOKUP(B29,Sichtfeld!$A$29:$Y$124,6,FALSE),0) -> 195 | D29: =ROUND(VLOOKUP(B29,Sichtfeld!$A$29:$Y$124,7,FALSE),0) -> 122 | F29: 195 mm x 122 mm | G29: 150 | H29: =ROUND(G29/$H$4,0) -> 94
B30: 300 | C30: =ROUND(VLOOKUP(B30,Sichtfeld!$A$29:$Y$124,6,FALSE),0) -> 201 | D30: =ROUND(VLOOKUP(B30,Sichtfeld!$A$29:$Y$124,7,FALSE),0) -> 126 | F30: 201 mm x 126 mm | J30: =CONCATENATE(G31," mm x ",H31," mm") -> 100 mm x 63 mm
B31: 400 | C31: =ROUND(VLOOKUP(B31,Sichtfeld!$A$29:$Y$124,6,FALSE),0) -> 265 | D31: =ROUND(VLOOKUP(B31,Sichtfeld!$A$29:$Y$124,7,FALSE),0) -> 166 | F31: 265 mm x 166 mm | G31: 100 | H31: =ROUND(G31/$H$4,0) -> 63
B32: 500 | C32: =ROUND(VLOOKUP(B32,Sichtfeld!$A$29:$Y$124,6,FALSE),0) -> 329 | D32: =ROUND(VLOOKUP(B32,Sichtfeld!$A$29:$Y$124,7,FALSE),0) -> 206 | F32: 329 mm x 206 mm | J32: =CONCATENATE(G33," mm x ",H33," mm") -> 50 mm x 31 mm
B33: 600 | C33: =ROUND(VLOOKUP(B33,Sichtfeld!$A$29:$Y$124,6,FALSE),0) -> 393 | D33: =ROUND(VLOOKUP(B33,Sichtfeld!$A$29:$Y$124,7,FALSE),0) -> 246 | F33: 393 mm x 246 mm | G33: 50 | H33: =ROUND(G33/$H$4,0) -> 31
B34: 700 | C34: =ROUND(VLOOKUP(B34,Sichtfeld!$A$29:$Y$124,6,FALSE),0) -> 457 | D34: =ROUND(VLOOKUP(B34,Sichtfeld!$A$29:$Y$124,7,FALSE),0) -> 286 | F34: 457 mm x 286 mm
B35: 800 | C35: =ROUND(VLOOKUP(B35,Sichtfeld!$A$29:$Y$124,6,FALSE),0) -> 521 | D35: =ROUND(VLOOKUP(B35,Sichtfeld!$A$29:$Y$124,7,FALSE),0) -> 326 | F35: 521 mm x 326 mm
B36: 900 | C36: =ROUND(VLOOKUP(B36,Sichtfeld!$A$29:$Y$124,6,FALSE),0) -> 585 | D36: =ROUND(VLOOKUP(B36,Sichtfeld!$A$29:$Y$124,7,FALSE),0) -> 366 | F36: 585 mm x 366 mm | G36: 0 | J36: 0
B37: 1000 | C37: =ROUND(VLOOKUP(B37,Sichtfeld!$A$29:$Y$124,6,FALSE),0) -> 649 | D37: =ROUND(VLOOKUP(B37,Sichtfeld!$A$29:$Y$124,7,FALSE),0) -> 406 | F37: 649 mm x 406 mm
P38: EN: Working Distance
A40: 8 mm
B41: Arbeitsabstand, Bildfeldgröße
B43: Nutzabstand | C43: Bildfeld x in mm | D43: Bildfeld y in mm | F43: Bildfeld | H43: 1.6 | J43: =CONCATENATE(G45," mm x ",H45," mm") -> 500 mm x 313 mm
B44: 50 | C44: =ROUND(VLOOKUP(B44,Sichtfeld!$A$29:$Y$124,14,FALSE),0) -> 29 | D44: =ROUND(VLOOKUP(B44,Sichtfeld!$A$29:$Y$124,15,FALSE),0) -> 18 | F44: =CONCATENATE(C44," mm x ",D44, " mm") -> 29 mm x 18 mm
B45: 60 | C45: =ROUND(VLOOKUP(B45,Sichtfeld!$A$29:$Y$124,14,FALSE),0) -> 34 | D45: =ROUND(VLOOKUP(B45,Sichtfeld!$A$29:$Y$124,15,FALSE),0) -> 21 | F45: =CONCATENATE(C45," mm x ",D45, " mm") -> 34 mm x 21 mm | G45: 500 | H45: =ROUND(G45/$H$4,0) -> 313
B46: 70 | C46: =ROUND(VLOOKUP(B46,Sichtfeld!$A$29:$Y$124,14,FALSE),0) -> 39 | D46: =ROUND(VLOOKUP(B46,Sichtfeld!$A$29:$Y$124,15,FALSE),0) -> 24 | F46: 39 mm x 24 mm | J46: =CONCATENATE(G48," mm x ",H48," mm") -> 450 mm x 281 mm
B47: 80 | C47: =ROUND(VLOOKUP(B47,Sichtfeld!$A$29:$Y$124,14,FALSE),0) -> 44 | D47: =ROUND(VLOOKUP(B47,Sichtfeld!$A$29:$Y$124,15,FALSE),0) -> 27 | F47: 44 mm x 27 mm
B48: 90 | C48: =ROUND(VLOOKUP(B48,Sichtfeld!$A$29:$Y$124,14,FALSE),0) -> 49 | D48: =ROUND(VLOOKUP(B48,Sichtfeld!$A$29:$Y$124,15,FALSE),0) -> 30 | F48: 49 mm x 30 mm | G48: 450 | H48: =ROUND(G48/$H$4,0) -> 281
B49: 100 | C49: =ROUND(VLOOKUP(B49,Sichtfeld!$A$29:$Y$124,14,FALSE),0) -> 54 | D49: =ROUND(VLOOKUP(B49,Sichtfeld!$A$29:$Y$124,15,FALSE),0) -> 33 | F49: 54 mm x 33 mm | J49: =CONCATENATE(G51," mm x ",H51," mm") -> 400 mm x 250 mm
B50: 110 | C50: =ROUND(VLOOKUP(B50,Sichtfeld!$A$29:$Y$124,14,FALSE),0) -> 58 | D50: =ROUND(VLOOKUP(B50,Sichtfeld!$A$29:$Y$124,15,FALSE),0) -> 36 | F50: 58 mm x 36 mm
B51: 120 | C51: =ROUND(VLOOKUP(B51,Sichtfeld!$A$29:$Y$124,14,FALSE),0) -> 63 | D51: =ROUND(VLOOKUP(B51,Sichtfeld!$A$29:$Y$124,15,FALSE),0) -> 39 | F51: 63 mm x 39 mm | G51: 400 | H51: =ROUND(G51/$H$4,0) -> 250
B52: 130 | C52: =ROUND(VLOOKUP(B52,Sichtfeld!$A$29:$Y$124,14,FALSE),0) -> 68 | D52: =ROUND(VLOOKUP(B52,Sichtfeld!$A$29:$Y$124,15,FALSE),0) -> 42 | F52: 68 mm x 42 mm | J52: =CONCATENATE(G54," mm x ",H54," mm") -> 350 mm x 219 mm
B53: 140 | C53: =ROUND(VLOOKUP(B53,Sichtfeld!$A$29:$Y$124,14,FALSE),0) -> 73 | D53: =ROUND(VLOOKUP(B53,Sichtfeld!$A$29:$Y$124,15,FALSE),0) -> 45 | F53: 73 mm x 45 mm
B54: 150 | C54: =ROUND(VLOOKUP(B54,Sichtfeld!$A$29:$Y$124,14,FALSE),0) -> 78 | D54: =ROUND(VLOOKUP(B54,Sichtfeld!$A$29:$Y$124,15,FALSE),0) -> 49 | F54: 78 mm x 49 mm | G54: 350 | H54: =ROUND(G54/$H$4,0) -> 219
B55: 160 | C55: =ROUND(VLOOKUP(B55,Sichtfeld!$A$29:$Y$124,14,FALSE),0) -> 82 | D55: =ROUND(VLOOKUP(B55,Sichtfeld!$A$29:$Y$124,15,FALSE),0) -> 52 | F55: 82 mm x 52 mm | J55: =CONCATENATE(G57," mm x ",H57," mm") -> 300 mm x 188 mm
B56: 170 | C56: =ROUND(VLOOKUP(B56,Sichtfeld!$A$29:$Y$124,14,FALSE),0) -> 87 | D56: =ROUND(VLOOKUP(B56,Sichtfeld!$A$29:$Y$124,15,FALSE),0) -> 55 | F56: 87 mm x 55 mm
B57: 180 | C57: =ROUND(VLOOKUP(B57,Sichtfeld!$A$29:$Y$124,14,FALSE),0) -> 92 | D57: =ROUND(VLOOKUP(B57,Sichtfeld!$A$29:$Y$124,15,FALSE),0) -> 58 | F57: 92 mm x 58 mm | G57: 300 | H57: =ROUND(G57/$H$4,0) -> 188
B58: 190 | C58: =ROUND(VLOOKUP(B58,Sichtfeld!$A$29:$Y$124,14,FALSE),0) -> 97 | D58: =ROUND(VLOOKUP(B58,Sichtfeld!$A$29:$Y$124,15,FALSE),0) -> 61 | F58: 97 mm x 61 mm | J58: =CONCATENATE(G60," mm x ",H60," mm") -> 250 mm x 156 mm
B59: 200 | C59: =ROUND(VLOOKUP(B59,Sichtfeld!$A$29:$Y$124,14,FALSE),0) -> 102 | D59: =ROUND(VLOOKUP(B59,Sichtfeld!$A$29:$Y$124,15,FALSE),0) -> 64 | F59: 102 mm x 64 mm
B60: 210 | C60: =ROUND(VLOOKUP(B60,Sichtfeld!$A$29:$Y$124,14,FALSE),0) -> 106 | D60: =ROUND(VLOOKUP(B60,Sichtfeld!$A$29:$Y$124,15,FALSE),0) -> 67 | F60: 106 mm x 67 mm | G60: 250 | H60: =ROUND(G60/$H$4,0) -> 156
B61: 220 | C61: =ROUND(VLOOKUP(B61,Sichtfeld!$A$29:$Y$124,14,FALSE),0) -> 111 | D61: =ROUND(VLOOKUP(B61,Sichtfeld!$A$29:$Y$124,15,FALSE),0) -> 70 | F61: 111 mm x 70 mm | J61: =CONCATENATE(G63," mm x ",H63," mm") -> 200 mm x 125 mm
B62: 230 | C62: =ROUND(VLOOKUP(B62,Sichtfeld!$A$29:$Y$124,14,FALSE),0) -> 116 | D62: =ROUND(VLOOKUP(B62,Sichtfeld!$A$29:$Y$124,15,FALSE),0) -> 73 | F62: 116 mm x 73 mm
B63: 240 | C63: =ROUND(VLOOKUP(B63,Sichtfeld!$A$29:$Y$124,14,FALSE),0) -> 121 | D63: =ROUND(VLOOKUP(B63,Sichtfeld!$A$29:$Y$124,15,FALSE),0) -> 76 | F63: 121 mm x 76 mm | G63: 200 | H63: =ROUND(G63/$H$4,0) -> 125
B64: 250 | C64: =ROUND(VLOOKUP(B64,Sichtfeld!$A$29:$Y$124,14,FALSE),0) -> 126 | D64: =ROUND(VLOOKUP(B64,Sichtfeld!$A$29:$Y$124,15,FALSE),0) -> 79 | F64: 126 mm x 79 mm | J64: =CONCATENATE(G66," mm x ",H66," mm") -> 150 mm x 94 mm
B65: 260 | C65: =ROUND(VLOOKUP(B65,Sichtfeld!$A$29:$Y$124,14,FALSE),0) -> 130 | D65: =ROUND(VLOOKUP(B65,Sichtfeld!$A$29:$Y$124,15,FALSE),0) -> 82 | F65: 130 mm x 82 mm
B66: 270 | C66: =ROUND(VLOOKUP(B66,Sichtfeld!$A$29:$Y$124,14,FALSE),0) -> 135 | D66: =ROUND(VLOOKUP(B66,Sichtfeld!$A$29:$Y$124,15,FALSE),0) -> 85 | F66: 135 mm x 85 mm | G66: 150 | H66: =ROUND(G66/$H$4,0) -> 94
B67: 280 | C67: =ROUND(VLOOKUP(B67,Sichtfeld!$A$29:$Y$124,14,FALSE),0) -> 140 | D67: =ROUND(VLOOKUP(B67,Sichtfeld!$A$29:$Y$124,15,FALSE),0) -> 88 | F67: 140 mm x 88 mm | J67: =CONCATENATE(G69," mm x ",H69," mm") -> 100 mm x 63 mm
B68: 290 | C68: =ROUND(VLOOKUP(B68,Sichtfeld!$A$29:$Y$124,14,FALSE),0) -> 145 | D68: =ROUND(VLOOKUP(B68,Sichtfeld!$A$29:$Y$124,15,FALSE),0) -> 91 | F68: 145 mm x 91 mm
B69: 300 | C69: =ROUND(VLOOKUP(B69,Sichtfeld!$A$29:$Y$124,14,FALSE),0) -> 150 | D69: =ROUND(VLOOKUP(B69,Sichtfeld!$A$29:$Y$124,15,FALSE),0) -> 94 | F69: 150 mm x 94 mm | G69: 100 | H69: =ROUND(G69/$H$4,0) -> 63
B70: 400 | C70: =ROUND(VLOOKUP(B70,Sichtfeld!$A$29:$Y$124,14,FALSE),0) -> 198 | D70: =ROUND(VLOOKUP(B70,Sichtfeld!$A$29:$Y$124,15,FALSE),0) -> 124 | F70: 198 mm x 124 mm | J70: =CONCATENATE(G72," mm x ",H72," mm") -> 50 mm x 31 mm
B71: 500 | C71: =ROUND(VLOOKUP(B71,Sichtfeld!$A$29:$Y$124,14,FALSE),0) -> 246 | D71: =ROUND(VLOOKUP(B71,Sichtfeld!$A$29:$Y$124,15,FALSE),0) -> 154 | F71: 246 mm x 154 mm
B72: 600 | C72: =ROUND(VLOOKUP(B72,Sichtfeld!$A$29:$Y$124,14,FALSE),0) -> 294 | D72: =ROUND(VLOOKUP(B72,Sichtfeld!$A$29:$Y$124,15,FALSE),0) -> 184 | F72: 294 mm x 184 mm | G72: 50 | H72: =ROUND(G72/$H$4,0) -> 31
B73: 700 | C73: =ROUND(VLOOKUP(B73,Sichtfeld!$A$29:$Y$124,14,FALSE),0) -> 342 | D73: =ROUND(VLOOKUP(B73,Sichtfeld!$A$29:$Y$124,15,FALSE),0) -> 214 | F73: 342 mm x 214 mm
B74: 800 | C74: =ROUND(VLOOKUP(B74,Sichtfeld!$A$29:$Y$124,14,FALSE),0) -> 390 | D74: =ROUND(VLOOKUP(B74,Sichtfeld!$A$29:$Y$124,15,FALSE),0) -> 244 | F74: 390 mm x 244 mm
B75: 900 | C75: =ROUND(VLOOKUP(B75,Sichtfeld!$A$29:$Y$124,14,FALSE),0) -> 438 | D75: =ROUND(VLOOKUP(B75,Sichtfeld!$A$29:$Y$124,15,FALSE),0) -> 274 | F75: 438 mm x 274 mm | G75: 0 | J75: 0
B76: 1000 | C76: =ROUND(VLOOKUP(B76,Sichtfeld!$A$29:$Y$124,14,FALSE),0) -> 486 | D76: =ROUND(VLOOKUP(B76,Sichtfeld!$A$29:$Y$124,15,FALSE),0) -> 304 | F76: 486 mm x 304 mm
A79: 16 mm
B80: Arbeitsabstand, Bildfeldgröße
B82: Nutzabstand | C82: Bildfeld x in mm | D82: Bildfeld y in mm | F82: Bildfeld | H82: 1.6 | J82: =CONCATENATE(G84," mm x ",H84," mm") -> 250 mm x 156 mm
B83: 100 | C83: =ROUND(VLOOKUP(B83,Sichtfeld!$A$29:$Y$124,22,FALSE),0) -> 24 | D83: =ROUND(VLOOKUP(B83,Sichtfeld!$A$29:$Y$124,23,FALSE),0) -> 15 | F83: =CONCATENATE(C83," mm x ",D83, " mm") -> 24 mm x 15 mm
B84: =B83+10 -> 110 | C84: =ROUND(VLOOKUP(B84,Sichtfeld!$A$29:$Y$124,22,FALSE),0) -> 26 | D84: =ROUND(VLOOKUP(B84,Sichtfeld!$A$29:$Y$124,23,FALSE),0) -> 16 | F84: =CONCATENATE(C84," mm x ",D84, " mm") -> 26 mm x 16 mm | G84: 250 | H84: =ROUND(G84/$H$4,0) -> 156
B85: =B84+10 -> 120 | C85: =ROUND(VLOOKUP(B85,Sichtfeld!$A$29:$Y$124,22,FALSE),0) -> 29 | D85: =ROUND(VLOOKUP(B85,Sichtfeld!$A$29:$Y$124,23,FALSE),0) -> 18 | F85: 29 mm x 18 mm
B86: 130 | C86: =ROUND(VLOOKUP(B86,Sichtfeld!$A$29:$Y$124,22,FALSE),0) -> 31 | D86: =ROUND(VLOOKUP(B86,Sichtfeld!$A$29:$Y$124,23,FALSE),0) -> 19 | F86: 31 mm x 19 mm
B87: 140 | C87: =ROUND(VLOOKUP(B87,Sichtfeld!$A$29:$Y$124,22,FALSE),0) -> 34 | D87: =ROUND(VLOOKUP(B87,Sichtfeld!$A$29:$Y$124,23,FALSE),0) -> 21 | F87: 34 mm x 21 mm
B88: 150 | C88: =ROUND(VLOOKUP(B88,Sichtfeld!$A$29:$Y$124,22,FALSE),0) -> 36 | D88: =ROUND(VLOOKUP(B88,Sichtfeld!$A$29:$Y$124,23,FALSE),0) -> 23 | F88: 36 mm x 23 mm | J88: =CONCATENATE(G90," mm x ",H90," mm") -> 200 mm x 125 mm
B89: 160 | C89: =ROUND(VLOOKUP(B89,Sichtfeld!$A$29:$Y$124,22,FALSE),0) -> 38 | D89: =ROUND(VLOOKUP(B89,Sichtfeld!$A$29:$Y$124,23,FALSE),0) -> 24 | F89: 38 mm x 24 mm
B90: 170 | C90: =ROUND(VLOOKUP(B90,Sichtfeld!$A$29:$Y$124,22,FALSE),0) -> 41 | D90: =ROUND(VLOOKUP(B90,Sichtfeld!$A$29:$Y$124,23,FALSE),0) -> 26 | F90: 41 mm x 26 mm | G90: 200 | H90: =ROUND(G90/$H$4,0) -> 125
B91: 180 | C91: =ROUND(VLOOKUP(B91,Sichtfeld!$A$29:$Y$124,22,FALSE),0) -> 43 | D91: =ROUND(VLOOKUP(B91,Sichtfeld!$A$29:$Y$124,23,FALSE),0) -> 27 | F91: 43 mm x 27 mm
B92: 190 | C92: =ROUND(VLOOKUP(B92,Sichtfeld!$A$29:$Y$124,22,FALSE),0) -> 46 | D92: =ROUND(VLOOKUP(B92,Sichtfeld!$A$29:$Y$124,23,FALSE),0) -> 29 | F92: 46 mm x 29 mm
B93: 200 | C93: =ROUND(VLOOKUP(B93,Sichtfeld!$A$29:$Y$124,22,FALSE),0) -> 48 | D93: =ROUND(VLOOKUP(B93,Sichtfeld!$A$29:$Y$124,23,FALSE),0) -> 30 | F93: 48 mm x 30 mm | J93: =CONCATENATE(G95," mm x ",H95," mm") -> 150 mm x 94 mm
B94: 210 | C94: =ROUND(VLOOKUP(B94,Sichtfeld!$A$29:$Y$124,22,FALSE),0) -> 51 | D94: =ROUND(VLOOKUP(B94,Sichtfeld!$A$29:$Y$124,23,FALSE),0) -> 32 | F94: 51 mm x 32 mm
B95: 220 | C95: =ROUND(VLOOKUP(B95,Sichtfeld!$A$29:$Y$124,22,FALSE),0) -> 53 | D95: =ROUND(VLOOKUP(B95,Sichtfeld!$A$29:$Y$124,23,FALSE),0) -> 33 | F95: 53 mm x 33 mm | G95: 150 | H95: =ROUND(G95/$H$4,0) -> 94
B96: 230 | C96: =ROUND(VLOOKUP(B96,Sichtfeld!$A$29:$Y$124,22,FALSE),0) -> 55 | D96: =ROUND(VLOOKUP(B96,Sichtfeld!$A$29:$Y$124,23,FALSE),0) -> 35 | F96: 55 mm x 35 mm
B97: 240 | C97: =ROUND(VLOOKUP(B97,Sichtfeld!$A$29:$Y$124,22,FALSE),0) -> 58 | D97: =ROUND(VLOOKUP(B97,Sichtfeld!$A$29:$Y$124,23,FALSE),0) -> 36 | F97: 58 mm x 36 mm
B98: =B97+10 -> 250 | C98: =ROUND(VLOOKUP(B98,Sichtfeld!$A$29:$Y$124,22,FALSE),0) -> 60 | D98: =ROUND(VLOOKUP(B98,Sichtfeld!$A$29:$Y$124,23,FALSE),0) -> 38 | F98: 60 mm x 38 mm
B99: =B98+50 -> 300 | C99: =ROUND(VLOOKUP(B99,Sichtfeld!$A$29:$Y$124,22,FALSE),0) -> 72 | D99: =ROUND(VLOOKUP(B99,Sichtfeld!$A$29:$Y$124,23,FALSE),0) -> 45 | F99: 72 mm x 45 mm | J99: =CONCATENATE(G101," mm x ",H101," mm") -> 100 mm x 63 mm
B100: 350 | C100: =ROUND(VLOOKUP(B100,Sichtfeld!$A$29:$Y$124,22,FALSE),0) -> 84 | D100: =ROUND(VLOOKUP(B100,Sichtfeld!$A$29:$Y$124,23,FALSE),0) -> 53 | F100: 84 mm x 53 mm
B101: 400 | C101: =ROUND(VLOOKUP(B101,Sichtfeld!$A$29:$Y$124,22,FALSE),0) -> 96 | D101: =ROUND(VLOOKUP(B101,Sichtfeld!$A$29:$Y$124,23,FALSE),0) -> 60 | F101: 96 mm x 60 mm | G101: 100 | H101: =ROUND(G101/$H$4,0) -> 63
B102: 450 | C102: =ROUND(VLOOKUP(B102,Sichtfeld!$A$29:$Y$124,22,FALSE),0) -> 108 | D102: =ROUND(VLOOKUP(B102,Sichtfeld!$A$29:$Y$124,23,FALSE),0) -> 68 | F102: 108 mm x 68 mm
B103: 500 | C103: =ROUND(VLOOKUP(B103,Sichtfeld!$A$29:$Y$124,22,FALSE),0) -> 120 | D103: =ROUND(VLOOKUP(B103,Sichtfeld!$A$29:$Y$124,23,FALSE),0) -> 75 | F103: 120 mm x 75 mm
B104: 550 | C104: =ROUND(VLOOKUP(B104,Sichtfeld!$A$29:$Y$124,22,FALSE),0) -> 132 | D104: =ROUND(VLOOKUP(B104,Sichtfeld!$A$29:$Y$124,23,FALSE),0) -> 83 | F104: 132 mm x 83 mm | J104: =CONCATENATE(G106," mm x ",H106," mm") -> 50 mm x 31 mm
B105: 600 | C105: =ROUND(VLOOKUP(B105,Sichtfeld!$A$29:$Y$124,22,FALSE),0) -> 144 | D105: =ROUND(VLOOKUP(B105,Sichtfeld!$A$29:$Y$124,23,FALSE),0) -> 90 | F105: 144 mm x 90 mm
B106: 650 | C106: =ROUND(VLOOKUP(B106,Sichtfeld!$A$29:$Y$124,22,FALSE),0) -> 156 | D106: =ROUND(VLOOKUP(B106,Sichtfeld!$A$29:$Y$124,23,FALSE),0) -> 98 | F106: 156 mm x 98 mm | G106: 50 | H106: =ROUND(G106/$H$4,0) -> 31
B107: 700 | C107: =ROUND(VLOOKUP(B107,Sichtfeld!$A$29:$Y$124,22,FALSE),0) -> 168 | D107: =ROUND(VLOOKUP(B107,Sichtfeld!$A$29:$Y$124,23,FALSE),0) -> 105 | F107: 168 mm x 105 mm
B108: 750 | C108: =ROUND(VLOOKUP(B108,Sichtfeld!$A$29:$Y$124,22,FALSE),0) -> 180 | D108: =ROUND(VLOOKUP(B108,Sichtfeld!$A$29:$Y$124,23,FALSE),0) -> 113 | F108: 180 mm x 113 mm
B109: 800 | C109: =ROUND(VLOOKUP(B109,Sichtfeld!$A$29:$Y$124,22,FALSE),0) -> 192 | D109: =ROUND(VLOOKUP(B109,Sichtfeld!$A$29:$Y$124,23,FALSE),0) -> 120 | F109: 192 mm x 120 mm
B110: 850 | C110: =ROUND(VLOOKUP(B110,Sichtfeld!$A$29:$Y$124,22,FALSE),0) -> 204 | D110: =ROUND(VLOOKUP(B110,Sichtfeld!$A$29:$Y$124,23,FALSE),0) -> 128 | F110: 204 mm x 128 mm
B111: 900 | C111: =ROUND(VLOOKUP(B111,Sichtfeld!$A$29:$Y$124,22,FALSE),0) -> 216 | D111: =ROUND(VLOOKUP(B111,Sichtfeld!$A$29:$Y$124,23,FALSE),0) -> 135 | F111: 216 mm x 135 mm
B112: 950 | C112: =ROUND(VLOOKUP(B112,Sichtfeld!$A$29:$Y$124,22,FALSE),0) -> 228 | D112: =ROUND(VLOOKUP(B112,Sichtfeld!$A$29:$Y$124,23,FALSE),0) -> 143 | F112: 228 mm x 143 mm | G112: 0 | J112: 0
B113: 1000 | C113: =ROUND(VLOOKUP(B113,Sichtfeld!$A$29:$Y$124,22,FALSE),0) -> 240 | D113: =ROUND(VLOOKUP(B113,Sichtfeld!$A$29:$Y$124,23,FALSE),0) -> 150 | F113: 240 mm x 150 mm

Sheet Diagramme Modulbreite (hidden)
A1: 6 mm | G1: Modulbreite [mm] | I1: "Die Diagramme dienen zur Orientierung. Maßgeblich sind Tests mit dem Produkt unter Berücksichtigung von Codetyp, Codequalität und verwendetem Parameterset."
B2: Arbeitsabstand, Modulgröße | D2: Hinweis: Größenreserve | F2: 1 mm = | G2: Module width [mm] | I2: "The diagrams are for guidance. Decisive are tests with the product under consideration of code type, code quality and used parameter set."
F3: 39.3701
B4: Nutzabstand | C4: Mindestbreite Modul 1D [µm] | D4: Mindestbreite Modul 2D [µm] | F4: Mindestbreite Modul 1D [mil] | G4: Mindestbreite Modul 2D [µm]
B5: 50 | C5: =ROUND((0.001*VLOOKUP(B5,Sichtfeld!$A$29:$Y$124,8,FALSE)),3) -> 0.048 | D5: =ROUND((0.001*VLOOKUP(B5,Sichtfeld!$A$29:$Y$124,9,FALSE)),3) -> 0.096 | F5: =C5*$F$3 -> 1.8897648 | G5: =D5*$F$3 -> 3.7795296
B6: 60 | C6: =ROUND((0.001*VLOOKUP(B6,Sichtfeld!$A$29:$Y$124,8,FALSE)),3) -> 0.056 | D6: =ROUND((0.001*VLOOKUP(B6,Sichtfeld!$A$29:$Y$124,9,FALSE)),3) -> 0.112 | F6: =C6*$F$3 -> 2.2047256 | G6: 4.4094512
B7: 70 | C7: =ROUND((0.001*VLOOKUP(B7,Sichtfeld!$A$29:$Y$124,8,FALSE)),3) -> 0.063 | D7: =ROUND((0.001*VLOOKUP(B7,Sichtfeld!$A$29:$Y$124,9,FALSE)),3) -> 0.127 | F7: 2.4803163 | G7: 5.0000027
B8: 80 | C8: =ROUND((0.001*VLOOKUP(B8,Sichtfeld!$A$29:$Y$124,8,FALSE)),3) -> 0.071 | D8: =ROUND((0.001*VLOOKUP(B8,Sichtfeld!$A$29:$Y$124,9,FALSE)),3) -> 0.142 | F8: 2.7952771 | G8: 5.5905542
B9: 90 | C9: =ROUND((0.001*VLOOKUP(B9,Sichtfeld!$A$29:$Y$124,8,FALSE)),3) -> 0.078 | D9: =ROUND((0.001*VLOOKUP(B9,Sichtfeld!$A$29:$Y$124,9,FALSE)),3) -> 0.157 | F9: 3.0708678 | G9: 6.1811057
B10: 100 | C10: =ROUND((0.001*VLOOKUP(B10,Sichtfeld!$A$29:$Y$124,8,FALSE)),3) -> 0.086 | D10: =ROUND((0.001*VLOOKUP(B10,Sichtfeld!$A$29:$Y$124,9,FALSE)),3) -> 0.172 | F10: 3.3858286 | G10: 6.7716572
B11: 110 | C11: =ROUND((0.001*VLOOKUP(B11,Sichtfeld!$A$29:$Y$124,8,FALSE)),3) -> 0.093 | D11: =ROUND((0.001*VLOOKUP(B11,Sichtfeld!$A$29:$Y$124,9,FALSE)),3) -> 0.187 | F11: 3.6614193 | G11: 7.3622087
B12: 120 | C12: =ROUND((0.001*VLOOKUP(B12,Sichtfeld!$A$29:$Y$124,8,FALSE)),3) -> 0.101 | D12: =ROUND((0.001*VLOOKUP(B12,Sichtfeld!$A$29:$Y$124,9,FALSE)),3) -> 0.202 | F12: 3.9763801 | G12: 7.9527602
B13: 130 | C13: =ROUND((0.001*VLOOKUP(B13,Sichtfeld!$A$29:$Y$124,8,FALSE)),3) -> 0.108 | D13: =ROUND((0.001*VLOOKUP(B13,Sichtfeld!$A$29:$Y$124,9,FALSE)),3) -> 0.217 | F13: 4.2519708 | G13: 8.5433117
B14: 140 | C14: =ROUND((0.001*VLOOKUP(B14,Sichtfeld!$A$29:$Y$124,8,FALSE)),3) -> 0.116 | D14: =ROUND((0.001*VLOOKUP(B14,Sichtfeld!$A$29:$Y$124,9,FALSE)),3) -> 0.232 | F14: 4.5669316 | G14: 9.1338632
B15: 150 | C15: =ROUND((0.001*VLOOKUP(B15,Sichtfeld!$A$29:$Y$124,8,FALSE)),3) -> 0.123 | D15: =ROUND((0.001*VLOOKUP(B15,Sichtfeld!$A$29:$Y$124,9,FALSE)),3) -> 0.247 | F15: 4.8425223 | G15: 9.7244147
B16: 160 | C16: =ROUND((0.001*VLOOKUP(B16,Sichtfeld!$A$29:$Y$124,8,FALSE)),3) -> 0.131 | D16: =ROUND((0.001*VLOOKUP(B16,Sichtfeld!$A$29:$Y$124,9,FALSE)),3) -> 0.262 | F16: 5.1574831 | G16: 10.3149662
B17: 170 | C17: =ROUND((0.001*VLOOKUP(B17,Sichtfeld!$A$29:$Y$124,8,FALSE)),3) -> 0.138 | D17: =ROUND((0.001*VLOOKUP(B17,Sichtfeld!$A$29:$Y$124,9,FALSE)),3) -> 0.277 | F17: 5.4330738 | G17: 10.9055177
B18: 180 | C18: =ROUND((0.001*VLOOKUP(B18,Sichtfeld!$A$29:$Y$124,8,FALSE)),3) -> 0.146 | D18: =ROUND((0.001*VLOOKUP(B18,Sichtfeld!$A$29:$Y$124,9,FALSE)),3) -> 0.292 | F18: 5.7480346 | G18: 11.4960692
B19: 190 | C19: =ROUND((0.001*VLOOKUP(B19,Sichtfeld!$A$29:$Y$124,8,FALSE)),3) -> 0.153 | D19: =ROUND((0.001*VLOOKUP(B19,Sichtfeld!$A$29:$Y$124,9,FALSE)),3) -> 0.307 | F19: 6.0236253 | G19: 12.0866207
B20: 200 | C20: =ROUND((0.001*VLOOKUP(B20,Sichtfeld!$A$29:$Y$124,8,FALSE)),3) -> 0.161 | D20: =ROUND((0.001*VLOOKUP(B20,Sichtfeld!$A$29:$Y$124,9,FALSE)),3) -> 0.322 | F20: 6.3385861 | G20: 12.6771722
B21: 210 | C21: =ROUND((0.001*VLOOKUP(B21,Sichtfeld!$A$29:$Y$124,8,FALSE)),3) -> 0.168 | D21: =ROUND((0.001*VLOOKUP(B21,Sichtfeld!$A$29:$Y$124,9,FALSE)),3) -> 0.337 | F21: 6.6141768 | G21: 13.2677237
B22: 220 | C22: =ROUND((0.001*VLOOKUP(B22,Sichtfeld!$A$29:$Y$124,8,FALSE)),3) -> 0.176 | D22: =ROUND((0.001*VLOOKUP(B22,Sichtfeld!$A$29:$Y$124,9,FALSE)),3) -> 0.352 | F22: 6.9291376 | G22: 13.8582752
B23: 230 | C23: =ROUND((0.001*VLOOKUP(B23,Sichtfeld!$A$29:$Y$124,8,FALSE)),3) -> 0.184 | D23: =ROUND((0.001*VLOOKUP(B23,Sichtfeld!$A$29:$Y$124,9,FALSE)),3) -> 0.367 | F23: 7.2440984 | G23: 14.4488267
B24: 240 | C24: =ROUND((0.001*VLOOKUP(B24,Sichtfeld!$A$29:$Y$124,8,FALSE)),3) -> 0.191 | D24: =ROUND((0.001*VLOOKUP(B24,Sichtfeld!$A$29:$Y$124,9,FALSE)),3) -> 0.382 | F24: 7.5196891 | G24: 15.0393782
B25: 250 | C25: =ROUND((0.001*VLOOKUP(B25,Sichtfeld!$A$29:$Y$124,8,FALSE)),3) -> 0.199 | D25: =ROUND((0.001*VLOOKUP(B25,Sichtfeld!$A$29:$Y$124,9,FALSE)),3) -> 0.397 | F25: 7.8346499 | G25: 15.6299297
B26: 260 | C26: =ROUND((0.001*VLOOKUP(B26,Sichtfeld!$A$29:$Y$124,8,FALSE)),3) -> 0.206 | D26: =ROUND((0.001*VLOOKUP(B26,Sichtfeld!$A$29:$Y$124,9,FALSE)),3) -> 0.412 | F26: 8.1102406 | G26: 16.2204812
B27: 270 | C27: =ROUND((0.001*VLOOKUP(B27,Sichtfeld!$A$29:$Y$124,8,FALSE)),3) -> 0.214 | D27: =ROUND((0.001*VLOOKUP(B27,Sichtfeld!$A$29:$Y$124,9,FALSE)),3) -> 0.427 | F27: 8.4252014 | G27: 16.8110327
B28: 280 | C28: =ROUND((0.001*VLOOKUP(B28,Sichtfeld!$A$29:$Y$124,8,FALSE)),3) -> 0.221 | D28: =ROUND((0.001*VLOOKUP(B28,Sichtfeld!$A$29:$Y$124,9,FALSE)),3) -> 0.442 | F28: 8.7007921 | G28: 17.4015842
B29: 290 | C29: =ROUND((0.001*VLOOKUP(B29,Sichtfeld!$A$29:$Y$124,8,FALSE)),3) -> 0.229 | D29: =ROUND((0.001*VLOOKUP(B29,Sichtfeld!$A$29:$Y$124,9,FALSE)),3) -> 0.457 | F29: 9.0157529 | G29: 17.9921357
B30: 300 | C30: =ROUND((0.001*VLOOKUP(B30,Sichtfeld!$A$29:$Y$124,8,FALSE)),3) -> 0.236 | D30: =ROUND((0.001*VLOOKUP(B30,Sichtfeld!$A$29:$Y$124,9,FALSE)),3) -> 0.472 | F30: 9.2913436 | G30: 18.5826872
B31: 400 | C31: =ROUND((0.001*VLOOKUP(B31,Sichtfeld!$A$29:$Y$124,8,FALSE)),3) -> 0.311 | D31: =ROUND((0.001*VLOOKUP(B31,Sichtfeld!$A$29:$Y$124,9,FALSE)),3) -> 0.622 | F31: 12.2441011 | G31: 24.4882022
B32: 500 | C32: =ROUND((0.001*VLOOKUP(B32,Sichtfeld!$A$29:$Y$124,8,FALSE)),3) -> 0.386 | D32: =ROUND((0.001*VLOOKUP(B32,Sichtfeld!$A$29:$Y$124,9,FALSE)),3) -> 0.772 | F32: 15.1968586 | G32: 30.3937172
B33: 600 | C33: =ROUND((0.001*VLOOKUP(B33,Sichtfeld!$A$29:$Y$124,8,FALSE)),3) -> 0.461 | D33: =ROUND((0.001*VLOOKUP(B33,Sichtfeld!$A$29:$Y$124,9,FALSE)),3) -> 0.922 | F33: 18.1496161 | G33: 36.2992322
B34: 700 | C34: =ROUND((0.001*VLOOKUP(B34,Sichtfeld!$A$29:$Y$124,8,FALSE)),3) -> 0.536 | D34: =ROUND((0.001*VLOOKUP(B34,Sichtfeld!$A$29:$Y$124,9,FALSE)),3) -> 1.072 | F34: 21.1023736 | G34: 42.2047472
B35: 800 | C35: =ROUND((0.001*VLOOKUP(B35,Sichtfeld!$A$29:$Y$124,8,FALSE)),3) -> 0.611 | D35: =ROUND((0.001*VLOOKUP(B35,Sichtfeld!$A$29:$Y$124,9,FALSE)),3) -> 1.222 | F35: 24.0551311 | G35: 48.1102622
B36: 900 | C36: =ROUND((0.001*VLOOKUP(B36,Sichtfeld!$A$29:$Y$124,8,FALSE)),3) -> 0.686 | D36: =ROUND((0.001*VLOOKUP(B36,Sichtfeld!$A$29:$Y$124,9,FALSE)),3) -> 1.372 | F36: 27.0078886 | G36: 54.0157772
B37: 1000 | C37: =ROUND((0.001*VLOOKUP(B37,Sichtfeld!$A$29:$Y$124,8,FALSE)),3) -> 0.761 | D37: =ROUND((0.001*VLOOKUP(B37,Sichtfeld!$A$29:$Y$124,9,FALSE)),3) -> 1.522 | F37: 29.9606461 | G37: 59.9212922
M38: EN: Working Distance
A40: 8 mm
B41: Arbeitsabstand, Bildfeldgröße
B43: Nutzabstand | C43: Mindestbreite Modul 1D [µm] | D43: Mindestbreite Modul 2D [µm]
B44: 50 | C44: =ROUND((0.001*VLOOKUP(B44,Sichtfeld!$A$29:$Y$124,16,FALSE)),3) -> 0.034 | D44: =ROUND((0.001*VLOOKUP(B44,Sichtfeld!$A$29:$Y$124,17,FALSE)),3) -> 0.069
B45: 60 | C45: =ROUND((0.001*VLOOKUP(B45,Sichtfeld!$A$29:$Y$124,16,FALSE)),3) -> 0.04 | D45: =ROUND((0.001*VLOOKUP(B45,Sichtfeld!$A$29:$Y$124,17,FALSE)),3) -> 0.08
B46: 70 | C46: =ROUND((0.001*VLOOKUP(B46,Sichtfeld!$A$29:$Y$124,16,FALSE)),3) -> 0.046 | D46: =ROUND((0.001*VLOOKUP(B46,Sichtfeld!$A$29:$Y$124,17,FALSE)),3) -> 0.091
B47: 80 | C47: =ROUND((0.001*VLOOKUP(B47,Sichtfeld!$A$29:$Y$124,16,FALSE)),3) -> 0.051 | D47: =ROUND((0.001*VLOOKUP(B47,Sichtfeld!$A$29:$Y$124,17,FALSE)),3) -> 0.103
B48: 90 | C48: =ROUND((0.001*VLOOKUP(B48,Sichtfeld!$A$29:$Y$124,16,FALSE)),3) -> 0.057 | D48: =ROUND((0.001*VLOOKUP(B48,Sichtfeld!$A$29:$Y$124,17,FALSE)),3) -> 0.114
B49: 100 | C49: =ROUND((0.001*VLOOKUP(B49,Sichtfeld!$A$29:$Y$124,16,FALSE)),3) -> 0.063 | D49: =ROUND((0.001*VLOOKUP(B49,Sichtfeld!$A$29:$Y$124,17,FALSE)),3) -> 0.125
B50: 110 | C50: =ROUND((0.001*VLOOKUP(B50,Sichtfeld!$A$29:$Y$124,16,FALSE)),3) -> 0.068 | D50: =ROUND((0.001*VLOOKUP(B50,Sichtfeld!$A$29:$Y$124,17,FALSE)),3) -> 0.137
B51: 120 | C51: =ROUND((0.001*VLOOKUP(B51,Sichtfeld!$A$29:$Y$124,16,FALSE)),3) -> 0.074 | D51: =ROUND((0.001*VLOOKUP(B51,Sichtfeld!$A$29:$Y$124,17,FALSE)),3) -> 0.148
B52: 130 | C52: =ROUND((0.001*VLOOKUP(B52,Sichtfeld!$A$29:$Y$124,16,FALSE)),3) -> 0.08 | D52: =ROUND((0.001*VLOOKUP(B52,Sichtfeld!$A$29:$Y$124,17,FALSE)),3) -> 0.159
B53: 140 | C53: =ROUND((0.001*VLOOKUP(B53,Sichtfeld!$A$29:$Y$124,16,FALSE)),3) -> 0.085 | D53: =ROUND((0.001*VLOOKUP(B53,Sichtfeld!$A$29:$Y$124,17,FALSE)),3) -> 0.171
B54: 150 | C54: =ROUND((0.001*VLOOKUP(B54,Sichtfeld!$A$29:$Y$124,16,FALSE)),3) -> 0.091 | D54: =ROUND((0.001*VLOOKUP(B54,Sichtfeld!$A$29:$Y$124,17,FALSE)),3) -> 0.182
B55: 160 | C55: =ROUND((0.001*VLOOKUP(B55,Sichtfeld!$A$29:$Y$124,16,FALSE)),3) -> 0.097 | D55: =ROUND((0.001*VLOOKUP(B55,Sichtfeld!$A$29:$Y$124,17,FALSE)),3) -> 0.193
B56: 170 | C56: =ROUND((0.001*VLOOKUP(B56,Sichtfeld!$A$29:$Y$124,16,FALSE)),3) -> 0.102 | D56: =ROUND((0.001*VLOOKUP(B56,Sichtfeld!$A$29:$Y$124,17,FALSE)),3) -> 0.204
B57: 180 | C57: =ROUND((0.001*VLOOKUP(B57,Sichtfeld!$A$29:$Y$124,16,FALSE)),3) -> 0.108 | D57: =ROUND((0.001*VLOOKUP(B57,Sichtfeld!$A$29:$Y$124,17,FALSE)),3) -> 0.216
B58: 190 | C58: =ROUND((0.001*VLOOKUP(B58,Sichtfeld!$A$29:$Y$124,16,FALSE)),3) -> 0.113 | D58: =ROUND((0.001*VLOOKUP(B58,Sichtfeld!$A$29:$Y$124,17,FALSE)),3) -> 0.227
B59: 200 | C59: =ROUND((0.001*VLOOKUP(B59,Sichtfeld!$A$29:$Y$124,16,FALSE)),3) -> 0.119 | D59: =ROUND((0.001*VLOOKUP(B59,Sichtfeld!$A$29:$Y$124,17,FALSE)),3) -> 0.238
B60: 210 | C60: =ROUND((0.001*VLOOKUP(B60,Sichtfeld!$A$29:$Y$124,16,FALSE)),3) -> 0.125 | D60: =ROUND((0.001*VLOOKUP(B60,Sichtfeld!$A$29:$Y$124,17,FALSE)),3) -> 0.25
B61: 220 | C61: =ROUND((0.001*VLOOKUP(B61,Sichtfeld!$A$29:$Y$124,16,FALSE)),3) -> 0.13 | D61: =ROUND((0.001*VLOOKUP(B61,Sichtfeld!$A$29:$Y$124,17,FALSE)),3) -> 0.261
B62: 230 | C62: =ROUND((0.001*VLOOKUP(B62,Sichtfeld!$A$29:$Y$124,16,FALSE)),3) -> 0.136 | D62: =ROUND((0.001*VLOOKUP(B62,Sichtfeld!$A$29:$Y$124,17,FALSE)),3) -> 0.272
B63: 240 | C63: =ROUND((0.001*VLOOKUP(B63,Sichtfeld!$A$29:$Y$124,16,FALSE)),3) -> 0.142 | D63: =ROUND((0.001*VLOOKUP(B63,Sichtfeld!$A$29:$Y$124,17,FALSE)),3) -> 0.283
B64: 250 | C64: =ROUND((0.001*VLOOKUP(B64,Sichtfeld!$A$29:$Y$124,16,FALSE)),3) -> 0.147 | D64: =ROUND((0.001*VLOOKUP(B64,Sichtfeld!$A$29:$Y$124,17,FALSE)),3) -> 0.295
B65: 260 | C65: =ROUND((0.001*VLOOKUP(B65,Sichtfeld!$A$29:$Y$124,16,FALSE)),3) -> 0.153 | D65: =ROUND((0.001*VLOOKUP(B65,Sichtfeld!$A$29:$Y$124,17,FALSE)),3) -> 0.306
B66: 270 | C66: =ROUND((0.001*VLOOKUP(B66,Sichtfeld!$A$29:$Y$124,16,FALSE)),3) -> 0.159 | D66: =ROUND((0.001*VLOOKUP(B66,Sichtfeld!$A$29:$Y$124,17,FALSE)),3) -> 0.317
B67: 280 | C67: =ROUND((0.001*VLOOKUP(B67,Sichtfeld!$A$29:$Y$124,16,FALSE)),3) -> 0.164 | D67: =ROUND((0.001*VLOOKUP(B67,Sichtfeld!$A$29:$Y$124,17,FALSE)),3) -> 0.328
B68: 290 | C68: =ROUND((0.001*VLOOKUP(B68,Sichtfeld!$A$29:$Y$124,16,FALSE)),3) -> 0.17 | D68: =ROUND((0.001*VLOOKUP(B68,Sichtfeld!$A$29:$Y$124,17,FALSE)),3) -> 0.34
B69: 300 | C69: =ROUND((0.001*VLOOKUP(B69,Sichtfeld!$A$29:$Y$124,16,FALSE)),3) -> 0.175 | D69: =ROUND((0.001*VLOOKUP(B69,Sichtfeld!$A$29:$Y$124,17,FALSE)),3) -> 0.351
B70: 400 | C70: =ROUND((0.001*VLOOKUP(B70,Sichtfeld!$A$29:$Y$124,16,FALSE)),3) -> 0.232 | D70: =ROUND((0.001*VLOOKUP(B70,Sichtfeld!$A$29:$Y$124,17,FALSE)),3) -> 0.463
B71: 500 | C71: =ROUND((0.001*VLOOKUP(B71,Sichtfeld!$A$29:$Y$124,16,FALSE)),3) -> 0.288 | D71: =ROUND((0.001*VLOOKUP(B71,Sichtfeld!$A$29:$Y$124,17,FALSE)),3) -> 0.576
B72: 600 | C72: =ROUND((0.001*VLOOKUP(B72,Sichtfeld!$A$29:$Y$124,16,FALSE)),3) -> 0.344 | D72: =ROUND((0.001*VLOOKUP(B72,Sichtfeld!$A$29:$Y$124,17,FALSE)),3) -> 0.688
B73: 700 | C73: =ROUND((0.001*VLOOKUP(B73,Sichtfeld!$A$29:$Y$124,16,FALSE)),3) -> 0.4 | D73: =ROUND((0.001*VLOOKUP(B73,Sichtfeld!$A$29:$Y$124,17,FALSE)),3) -> 0.801
B74: 800 | C74: =ROUND((0.001*VLOOKUP(B74,Sichtfeld!$A$29:$Y$124,16,FALSE)),3) -> 0.457 | D74: =ROUND((0.001*VLOOKUP(B74,Sichtfeld!$A$29:$Y$124,17,FALSE)),3) -> 0.914
B75: 900 | C75: =ROUND((0.001*VLOOKUP(B75,Sichtfeld!$A$29:$Y$124,16,FALSE)),3) -> 0.513 | D75: =ROUND((0.001*VLOOKUP(B75,Sichtfeld!$A$29:$Y$124,17,FALSE)),3) -> 1.026
B76: 1000 | C76: =ROUND((0.001*VLOOKUP(B76,Sichtfeld!$A$29:$Y$124,16,FALSE)),3) -> 0.569 | D76: =ROUND((0.001*VLOOKUP(B76,Sichtfeld!$A$29:$Y$124,17,FALSE)),3) -> 1.139
A79: 16 mm
B80: Arbeitsabstand, Bildfeldgröße
B82: Nutzabstand | C82: Mindestbreite Modul 1D [µm] | D82: Mindestbreite Modul 2D [µm]
B83: 100 | C83: =ROUND((0.001*VLOOKUP(B83,Sichtfeld!$A$29:$Y$124,24,FALSE)),3) -> 0.028 | D83: =ROUND((0.001*VLOOKUP(B83,Sichtfeld!$A$29:$Y$124,25,FALSE)),3) -> 0.056
B84: =B83+10 -> 110 | C84: =ROUND((0.001*VLOOKUP(B84,Sichtfeld!$A$29:$Y$124,24,FALSE)),3) -> 0.031 | D84: =ROUND((0.001*VLOOKUP(B84,Sichtfeld!$A$29:$Y$124,25,FALSE)),3) -> 0.062
B85: =B84+10 -> 120 | C85: =ROUND((0.001*VLOOKUP(B85,Sichtfeld!$A$29:$Y$124,24,FALSE)),3) -> 0.034 | D85: =ROUND((0.001*VLOOKUP(B85,Sichtfeld!$A$29:$Y$124,25,FALSE)),3) -> 0.067
B86: 130 | C86: =ROUND((0.001*VLOOKUP(B86,Sichtfeld!$A$29:$Y$124,24,FALSE)),3) -> 0.036 | D86: =ROUND((0.001*VLOOKUP(B86,Sichtfeld!$A$29:$Y$124,25,FALSE)),3) -> 0.073
B87: 140 | C87: =ROUND((0.001*VLOOKUP(B87,Sichtfeld!$A$29:$Y$124,24,FALSE)),3) -> 0.039 | D87: =ROUND((0.001*VLOOKUP(B87,Sichtfeld!$A$29:$Y$124,25,FALSE)),3) -> 0.079
B88: 150 | C88: =ROUND((0.001*VLOOKUP(B88,Sichtfeld!$A$29:$Y$124,24,FALSE)),3) -> 0.042 | D88: =ROUND((0.001*VLOOKUP(B88,Sichtfeld!$A$29:$Y$124,25,FALSE)),3) -> 0.084
B89: 160 | C89: =ROUND((0.001*VLOOKUP(B89,Sichtfeld!$A$29:$Y$124,24,FALSE)),3) -> 0.045 | D89: =ROUND((0.001*VLOOKUP(B89,Sichtfeld!$A$29:$Y$124,25,FALSE)),3) -> 0.09
B90: 170 | C90: =ROUND((0.001*VLOOKUP(B90,Sichtfeld!$A$29:$Y$124,24,FALSE)),3) -> 0.048 | D90: =ROUND((0.001*VLOOKUP(B90,Sichtfeld!$A$29:$Y$124,25,FALSE)),3) -> 0.096
B91: 180 | C91: =ROUND((0.001*VLOOKUP(B91,Sichtfeld!$A$29:$Y$124,24,FALSE)),3) -> 0.051 | D91: =ROUND((0.001*VLOOKUP(B91,Sichtfeld!$A$29:$Y$124,25,FALSE)),3) -> 0.101
B92: 190 | C92: =ROUND((0.001*VLOOKUP(B92,Sichtfeld!$A$29:$Y$124,24,FALSE)),3) -> 0.054 | D92: =ROUND((0.001*VLOOKUP(B92,Sichtfeld!$A$29:$Y$124,25,FALSE)),3) -> 0.107
B93: 200 | C93: =ROUND((0.001*VLOOKUP(B93,Sichtfeld!$A$29:$Y$124,24,FALSE)),3) -> 0.056 | D93: =ROUND((0.001*VLOOKUP(B93,Sichtfeld!$A$29:$Y$124,25,FALSE)),3) -> 0.113
B94: 210 | C94: =ROUND((0.001*VLOOKUP(B94,Sichtfeld!$A$29:$Y$124,24,FALSE)),3) -> 0.059 | D94: =ROUND((0.001*VLOOKUP(B94,Sichtfeld!$A$29:$Y$124,25,FALSE)),3) -> 0.118
B95: 220 | C95: =ROUND((0.001*VLOOKUP(B95,Sichtfeld!$A$29:$Y$124,24,FALSE)),3) -> 0.062 | D95: =ROUND((0.001*VLOOKUP(B95,Sichtfeld!$A$29:$Y$124,25,FALSE)),3) -> 0.124
B96: 230 | C96: =ROUND((0.001*VLOOKUP(B96,Sichtfeld!$A$29:$Y$124,24,FALSE)),3) -> 0.065 | D96: =ROUND((0.001*VLOOKUP(B96,Sichtfeld!$A$29:$Y$124,25,FALSE)),3) -> 0.13
B97: 240 | C97: =ROUND((0.001*VLOOKUP(B97,Sichtfeld!$A$29:$Y$124,24,FALSE)),3) -> 0.068 | D97: =ROUND((0.001*VLOOKUP(B97,Sichtfeld!$A$29:$Y$124,25,FALSE)),3) -> 0.135
B98: =B97+10 -> 250 | C98: =ROUND((0.001*VLOOKUP(B98,Sichtfeld!$A$29:$Y$124,24,FALSE)),3) -> 0.071 | D98: =ROUND((0.001*VLOOKUP(B98,Sichtfeld!$A$29:$Y$124,25,FALSE)),3) -> 0.141
B99: =B98+50 -> 300 | C99: =ROUND((0.001*VLOOKUP(B99,Sichtfeld!$A$29:$Y$124,24,FALSE)),3) -> 0.085 | D99: =ROUND((0.001*VLOOKUP(B99,Sichtfeld!$A$29:$Y$124,25,FALSE)),3) -> 0.169
B100: 350 | C100: =ROUND((0.001*VLOOKUP(B100,Sichtfeld!$A$29:$Y$124,24,FALSE)),3) -> 0.099 | D100: =ROUND((0.001*VLOOKUP(B100,Sichtfeld!$A$29:$Y$124,25,FALSE)),3) -> 0.197
B101: 400 | C101: =ROUND((0.001*VLOOKUP(B101,Sichtfeld!$A$29:$Y$124,24,FALSE)),3) -> 0.113 | D101: =ROUND((0.001*VLOOKUP(B101,Sichtfeld!$A$29:$Y$124,25,FALSE)),3) -> 0.226
B102: 450 | C102: =ROUND((0.001*VLOOKUP(B102,Sichtfeld!$A$29:$Y$124,24,FALSE)),3) -> 0.127 | D102: =ROUND((0.001*VLOOKUP(B102,Sichtfeld!$A$29:$Y$124,25,FALSE)),3) -> 0.254
B103: 500 | C103: =ROUND((0.001*VLOOKUP(B103,Sichtfeld!$A$29:$Y$124,24,FALSE)),3) -> 0.141 | D103: =ROUND((0.001*VLOOKUP(B103,Sichtfeld!$A$29:$Y$124,25,FALSE)),3) -> 0.282
B104: 550 | C104: =ROUND((0.001*VLOOKUP(B104,Sichtfeld!$A$29:$Y$124,24,FALSE)),3) -> 0.155 | D104: =ROUND((0.001*VLOOKUP(B104,Sichtfeld!$A$29:$Y$124,25,FALSE)),3) -> 0.31
B105: 600 | C105: =ROUND((0.001*VLOOKUP(B105,Sichtfeld!$A$29:$Y$124,24,FALSE)),3) -> 0.169 | D105: =ROUND((0.001*VLOOKUP(B105,Sichtfeld!$A$29:$Y$124,25,FALSE)),3) -> 0.338
B106: 650 | C106: =ROUND((0.001*VLOOKUP(B106,Sichtfeld!$A$29:$Y$124,24,FALSE)),3) -> 0.183 | D106: =ROUND((0.001*VLOOKUP(B106,Sichtfeld!$A$29:$Y$124,25,FALSE)),3) -> 0.366
B107: 700 | C107: =ROUND((0.001*VLOOKUP(B107,Sichtfeld!$A$29:$Y$124,24,FALSE)),3) -> 0.197 | D107: =ROUND((0.001*VLOOKUP(B107,Sichtfeld!$A$29:$Y$124,25,FALSE)),3) -> 0.395
B108: 750 | C108: =ROUND((0.001*VLOOKUP(B108,Sichtfeld!$A$29:$Y$124,24,FALSE)),3) -> 0.211 | D108: =ROUND((0.001*VLOOKUP(B108,Sichtfeld!$A$29:$Y$124,25,FALSE)),3) -> 0.423
B109: 800 | C109: =ROUND((0.001*VLOOKUP(B109,Sichtfeld!$A$29:$Y$124,24,FALSE)),3) -> 0.225 | D109: =ROUND((0.001*VLOOKUP(B109,Sichtfeld!$A$29:$Y$124,25,FALSE)),3) -> 0.451
B110: 850 | C110: =ROUND((0.001*VLOOKUP(B110,Sichtfeld!$A$29:$Y$124,24,FALSE)),3) -> 0.239 | D110: =ROUND((0.001*VLOOKUP(B110,Sichtfeld!$A$29:$Y$124,25,FALSE)),3) -> 0.479
B111: 900 | C111: =ROUND((0.001*VLOOKUP(B111,Sichtfeld!$A$29:$Y$124,24,FALSE)),3) -> 0.254 | D111: =ROUND((0.001*VLOOKUP(B111,Sichtfeld!$A$29:$Y$124,25,FALSE)),3) -> 0.507
B112: 950 | C112: =ROUND((0.001*VLOOKUP(B112,Sichtfeld!$A$29:$Y$124,24,FALSE)),3) -> 0.268 | D112: =ROUND((0.001*VLOOKUP(B112,Sichtfeld!$A$29:$Y$124,25,FALSE)),3) -> 0.535
B113: 1000 | C113: =ROUND((0.001*VLOOKUP(B113,Sichtfeld!$A$29:$Y$124,24,FALSE)),3) -> 0.282 | D113: =ROUND((0.001*VLOOKUP(B113,Sichtfeld!$A$29:$Y$124,25,FALSE)),3) -> 0.563

Sheet Schärfentiefe (hidden)
A1: =Sichtfeld!A4 -> Abstand Gehäusefront zu Sensor [mm] | C1: =Sichtfeld!C4 -> 34 | E1: siehe auch "\\emea.baumernet.org\de04d\Projekte\34600180_Plattform_Stage_3\3_kon\Autofokus\Berechnung_Schärfe.xlsx"
A2: =Sichtfeld!A5 -> Sensorbreite [mm]
A3: =Sichtfeld!A6 -> Sensorhöhe [mm]
A4: =Sichtfeld!A7 -> Min. Breite Modul 1D-Code [px]
A5: =Sichtfeld!A8 -> Min. Breite Modul 2D-Code [px]
A7: =Sichtfeld!A10 -> Hersteller | C7: =Sichtfeld!C10 -> YTOT | L7: =Sichtfeld!K10 -> YTOT | V7: =Sichtfeld!S10 -> EVETAR
A8: =Sichtfeld!A11 -> Objektiv | C8: =Sichtfeld!C11 -> YT1028-2MP | L8: =Sichtfeld!K11 -> YT10051-2MP | V8: =Sichtfeld!S11 -> M13B1618IRM12R1
A9: =Sichtfeld!A12 -> Daten allg. | C9: =Sichtfeld!C12 -> \\emea.baumernet.org\de04d\Projekte\34600180_Plattform_Stage_3\3_kon\01_Optik\3_Objektive_YTOT\Datenblätter\YT1028-2MP.pdf | L9: =Sichtfeld!K12 -> \\emea.baumernet.org\de04d\Projekte\34600180_Plattform_Stage_3\3_kon\01_Optik\3_Objektive_YTOT\Datenblätter\YT10051-2MP.pdf | V9: =Sichtfeld!S12 -> 
A10: =Sichtfeld!A13 -> Daten H1/H2 | C10: =Sichtfeld!C13 -> \\emea.baumernet.org\de04d\Projekte\34600180_Plattform_Stage_3\3_kon\01_Optik\3_Objektive_YTOT\Datenblätter\YT10028_H1H2.pdf | L10: =Sichtfeld!K13 -> \\emea.baumernet.org\de04d\Projekte\34600180_Plattform_Stage_3\3_kon\01_Optik\3_Objektive_YTOT\Datenblätter\YT10051_H1H2.pdf | V10: =Sichtfeld!S13 -> \\emea.baumernet.org\de04d\Projekte\34600180_Plattform_Stage_3\3_kon\01_Optik\2_Objektive_Evetar\Datenblätter\16mmF1,8_11162414.pdf
A11: =Sichtfeld!A14 -> Brennweite f [mm] | C11: =Sichtfeld!C14 -> 6 | L11: =Sichtfeld!K14 -> 8 | V11: =Sichtfeld!S14 -> 16
A12: Blende | C12: 3.5 | L12: 3.5 | V12: 1.8
A13: ø Zerstreuungskreis Code lesen [µm] | C13: 9 | L13: 9 | V13: 9
A14: =Sichtfeld!A15 -> Hauptebene 1 [mm] | C14: =Sichtfeld!C15 -> 9.02 | L14: =Sichtfeld!K15 -> 8.28 | V14: =Sichtfeld!S15 -> 5.85
A15: =Sichtfeld!A16 -> Hauptebene 2 [mm] | C15: =Sichtfeld!C16 -> 16.37 | L15: =Sichtfeld!K16 -> 14.11 | V15: =Sichtfeld!S16 -> 9.67
A16: =Sichtfeld!A17 -> Bildebene [mm] | C16: =Sichtfeld!C17 -> 22.2 | L16: =Sichtfeld!K17 -> 22.2 | V16: =Sichtfeld!S17 -> 22.14
A17: =Sichtfeld!A18 -> Position Front Objektiv bei unendlich | C17: =Sichtfeld!C18 -> 22.2 | L17: =Sichtfeld!K18 -> 22.2 | V17: =Sichtfeld!S18 -> 22.14
A18: =Sichtfeld!A19 -> Abstand Gehäusefront zu H1 bei unendlich => g_i [mm] | C18: =Sichtfeld!C19 -> 20.82 | L18: =Sichtfeld!K19 -> 20.08 | V18: =Sichtfeld!S19 -> 17.71
A19: =Sichtfeld!A20 -> x_max [mm] | C19: =Sichtfeld!C20 -> 2.6 | L19: =Sichtfeld!K20 -> 2.6 | V19: =Sichtfeld!S20 -> 2.6
G21: Schärfentiefe | I21: Schärfentiefe | P21: Schärfentiefe | R21: Schärfentiefe | Z21: Schärfentiefe | AB21: Schärfentiefe
A22: =Sichtfeld!A23 -> Nutzabstand g_a [mm] | C22: =Sichtfeld!D23 -> x | D22: =Sichtfeld!E23 -> beta | E22: k eff. | F22: g | G22: nah | H22: fern | I22: nah | J22: fern | L22: =Sichtfeld!L23 -> x | M22: =Sichtfeld!M23 -> beta | N22: k eff. | O22: g | P22: nah | Q22: fern | R22: nah | S22: fern | V22: =Sichtfeld!T23 -> x | W22: =Sichtfeld!U23 -> beta | X22: k eff. | Y22: g | Z22: nah | AA22: fern | AB22: nah | AC22: fern
A23: =Sichtfeld!A24 -> 0 | D23: =Sichtfeld!E24 ->  | M23: =Sichtfeld!M24 ->  | W23: =Sichtfeld!U24 -> 
A24: =Sichtfeld!A25 -> 10
A25: =Sichtfeld!A26 -> 20
A26: =Sichtfeld!A27 -> 30
A27: =Sichtfeld!A28 -> 40
A28: 50 | C28: =Sichtfeld!D29 -> 0.5602260605 | D28: =Sichtfeld!E29 -> 0.09337101008 | E28: =C$12*(1+D28) -> 3.826798535 | F28: =$A28+C$18-C28 -> 70.25977394 | G28: =(F28*C$11^2/(C$11^2+E28*C$13/1000*(F28-C$11))-(C$18-C28))/$A28-1 -> -0.08138433758 | H28: =(F28*C$11^2/(C$11^2-E28*C$13/1000*(F28-C$11))-(C$18-C28))/$A28-1 -> 0.09204639088 | I28: =($A28*G28)+$A28 -> 45.93078312 | J28: =IF((($A28*H28)+$A28)>1500,1500,($A28*H28)+$A28) -> 54.60231954 | L28: =Sichtfeld!L29 -> 1.048641245 | M28: =Sichtfeld!M29 -> 0.1310801556 | N28: =L$12*(1+M28) -> 3.958780544 | O28: =$A28+L$18-L28 -> 69.03135876 | P28: =(O28*L$11^2/(L$11^2+N28*L$13/1000*(O28-L$11))-(L$18-L28))/$A28-1 -> -0.04536728654 | Q28: =(O28*L$11^2/(L$11^2-N28*L$13/1000*(O28-L$11))-(L$18-L28))/$A28-1 -> 0.04855854554 | R28: =($A28*P28)+$A28 -> 47.73163567 | S28: =IF((($A28*Q28)+$A28)>1500,1500,($A28*Q28)+$A28) -> 52.42792728
A29: =Sichtfeld!A30 -> 60 | C29: =Sichtfeld!D30 -> 0.4842894449 | D29: =Sichtfeld!E30 -> 0.08071490748 | E29: 3.782502176 | F29: =$A29+C$18-C29 -> 80.33571056 | G29: =(F29*C$11^2/(C$11^2+E29*C$13/1000*(F29-C$11))-(C$18-C29))/$A29-1 -> -0.08793688818 | H29: =(F29*C$11^2/(C$11^2-E29*C$13/1000*(F29-C$11))-(C$18-C29))/$A29-1 -> 0.1012344503 | I29: =($A29*G29)+$A29 -> 54.72378671 | J29: =IF((($A29*H29)+$A29)>1500,1500,($A29*H29)+$A29) -> 66.07406702 | L29: =Sichtfeld!L30 -> 0.8991178255 | M29: =Sichtfeld!M30 -> 0.1123897282 | N29: 3.893364049 | O29: =$A29+L$18-L29 -> 79.18088217 | P29: =(O29*L$11^2/(L$11^2+N29*L$13/1000*(O29-L$11))-(L$18-L29))/$A29-1 -> -0.0495012567 | Q29: =(O29*L$11^2/(L$11^2-N29*L$13/1000*(O29-L$11))-(L$18-L29))/$A29-1 -> 0.05351602995 | R29: =($A29*P29)+$A29 -> 57.0299246 | S29: =IF((($A29*Q29)+$A29)>1500,1500,($A29*Q29)+$A29) -> 63.2109618
A30: =Sichtfeld!A31 -> 70 | C30: =Sichtfeld!D31 -> 0.4265735081 | D30: =Sichtfeld!E31 -> 0.07109558468 | E30: 3.748834546 | F30: 90.39342649 | G30: -0.09465080977 | H30: 0.1109094435 | I30: 63.37444332 | J30: 77.76366104 | L30: =Sichtfeld!L31 -> 0.7872783529 | M30: =Sichtfeld!M31 -> 0.09840979411 | N30: 3.844434279 | O30: 89.29272165 | P30: -0.05370138386 | Q30: 0.05863858641 | R30: 66.24090313 | S30: 74.10470105
A31: =Sichtfeld!A32 -> 80 | C31: =Sichtfeld!D32 -> 0.3811992498 | D31: =Sichtfeld!E32 -> 0.0635332083 | E31: 3.722366229 | F31: 100.4388008 | G31: -0.101423486 | H31: 0.1209681407 | I31: 71.88612112 | J31: 89.67745126 | L31: =Sichtfeld!L32 -> 0.7003749464 | M31: =Sichtfeld!M32 -> 0.0875468683 | N31: 3.806414039 | O31: 99.37962505 | P31: -0.05792895086 | Q31: 0.06388740408 | R31: 75.36568393 | S31: 85.11099233
A32: =Sichtfeld!A33 -> 90 | C32: =Sichtfeld!D33 -> 0.3445786534 | D32: =Sichtfeld!E33 -> 0.05742977557 | E32: 3.701004214 | F32: 110.4754213 | G32: -0.1081988139 | H32: 0.1313555772 | I32: 80.26210675 | J32: 101.8220019 | L32: =Sichtfeld!L33 -> 0.630857972 | M32: =Sichtfeld!M33 -> 0.0788572465 | N32: 3.776000363 | O32: 109.449142 | P32: -0.06216214008 | Q32: 0.06924074791 | R32: 84.40540739 | S32: 96.23166731
A33: =Sichtfeld!A34 -> 100 | C33: =Sichtfeld!D34 -> 0.3143950903 | D33: =Sichtfeld!E34 -> 0.05239918172 | E33: 3.683397136 | F33: 120.5056049 | G33: -0.114944032 | H33: 0.1420411696 | I33: 88.5055968 | J33: 114.204117 | L33: =Sichtfeld!L34 -> 0.5739599394 | M33: =Sichtfeld!M34 -> 0.07174499243 | N33: 3.751107474 | O33: 119.5060401 | P33: -0.06638782037 | Q33: 0.07468567582 | R33: 93.36121796 | S33: 107.4685676 | V33: =Sichtfeld!T34 -> 2.582533469 | W33: =Sichtfeld!U34 -> 0.1614083418 | X33: =V$12*(1+W33) -> 2.090535015 | Y33: =$A33+V$18-V33 -> 115.1274665 | Z33: =(Y33*V$11^2/(V$11^2+X33*V$13/1000*(Y33-V$11))-(V$18-V33))/$A33-1 -> -0.008326843481 | AA33: =(Y33*V$11^2/(V$11^2-X33*V$13/1000*(Y33-V$11))-(V$18-V33))/$A33-1 -> 0.008449062836 | AB33: =($A33*Z33)+$A33 -> 99.16731565 | AC33: =IF((($A33*AA33)+$A33)>1500,1500,($A33*AA33)+$A33) -> 100.8449063
A34: =Sichtfeld!A35 -> 110 | C34: =Sichtfeld!D35 -> 0.2890848425 | D34: =Sichtfeld!E35 -> 0.04818080709 | E34: 3.668632825 | F34: 130.5309152 | G34: -0.1216391307 | H34: 0.1530078074 | I34: 96.61969562 | J34: 126.8308588 | L34: =Sichtfeld!L35 -> 0.5265172048 | M34: =Sichtfeld!M35 -> 0.06581465061 | N34: 3.730351277 | O34: 129.5534828 | P34: -0.07059769867 | Q34: 0.08021415705 | R34: 102.2342531 | S34: 118.8235573 | V34: =Sichtfeld!T35 -> 2.340693268 | W34: =Sichtfeld!U35 -> 0.1462933293 | X34: 2.063327993 | Y34: 125.3693067 | Z34: -0.008970836089 | AA34: 0.009114315114 | AB34: 109.013208 | AC34: 111.0025747
A35: =Sichtfeld!A36 -> 120 | C35: =Sichtfeld!D36 -> 0.2675536639 | D35: =Sichtfeld!E36 -> 0.04459227731 | E35: 3.656072971 | F35: 140.5524463 | G35: -0.128271535 | H35: 0.16424638 | I35: 104.6074158 | J35: 139.7095656 | L35: =Sichtfeld!L36 -> 0.4863456396 | M35: =Sichtfeld!M36 -> 0.06079320495 | N35: 3.712776217 | O35: 139.5936544 | P35: -0.07478634988 | Q35: 0.08582108472 | R35: 111.025638 | S35: 130.2985302 | V35: =Sichtfeld!T36 -> 2.141023597 | W35: =Sichtfeld!U36 -> 0.1338139748 | X35: 2.040865155 | Y35: 135.5689764 | Z35: -0.009609582661 | AA35: 0.009775890133 | AB35: 118.8468501 | AC35: 121.1731068
A36: =Sichtfeld!A37 -> 130 | C36: =Sichtfeld!D37 -> 0.2490126176 | D36: =Sichtfeld!E37 -> 0.04150210294 | E36: 3.64525736 | F36: 150.5709874 | G36: -0.1348332312 | H36: 0.1757528241 | I36: 112.4716799 | J36: 152.8478671 | L36: =Sichtfeld!L37 -> 0.4518876864 | M36: =Sichtfeld!M37 -> 0.0564859608 | N36: 3.697700863 | O36: 149.6281123 | P36: -0.07895013565 | Q36: 0.09150318521 | R36: 119.7364824 | S36: 141.8954141 | V36: =Sichtfeld!T37 -> 1.973226191 | W36: =Sichtfeld!U37 -> 0.1233266369 | X36: 2.021987946 | Y36: 145.7367738 | Z36: -0.01024431953 | AA36: 0.0104350329 | AB36: 128.6682385 | AC36: 131.3565543
A37: =Sichtfeld!A38 -> 140 | C37: =Sichtfeld!D38 -> 0.23287839 | D37: =Sichtfeld!E38 -> 0.03881306501 | E37: 3.635845728 | F37: 160.5871216 | G37: -0.1413191207 | H37: 0.1875264371 | I37: 120.2153231 | J37: 166.2537012 | L37: =Sichtfeld!L38 -> 0.4220021423 | M37: =Sichtfeld!M38 -> 0.05275026779 | N37: 3.684625937 | O37: 159.6579979 | P37: -0.08308657677 | Q37: 0.09725838521 | R37: 128.3678793 | S37: 153.6161739 | V37: =Sichtfeld!T38 -> 1.830141978 | W37: =Sichtfeld!U38 -> 0.1143838736 | X37: 2.005890972 | Y37: 155.879858 | Z37: -0.01087587003 | AA37: 0.01109257273 | AB37: 138.4773782 | AC37: 141.5529602
A38: =Sichtfeld!A39 -> 150 | C38: =Sichtfeld!D39 -> 0.2187103155 | D38: =Sichtfeld!E39 -> 0.03645171925 | E38: 3.627581017 | F38: 170.6012897 | G38: -0.1477260304 | H38: 0.1995688683 | I38: 127.8410954 | J38: 179.9353302 | L38: =Sichtfeld!L39 -> 0.395833441 | M38: =Sichtfeld!M39 -> 0.04947918012 | N38: 3.67317713 | O38: 169.6841666 | P38: -0.08719397176 | Q38: 0.103085427 | R38: 136.9209042 | S38: 165.4628141 | V38: =Sichtfeld!T39 -> 1.706628305 | W38: =Sichtfeld!U39 -> 0.1066642691 | X38: 1.991995684 | Y38: 166.0033717 | Z38: -0.01150480294 | AA38: 0.0117490827 | AB38: 148.2742796 | AC38: 151.7623624
A39: =Sichtfeld!A40 -> 160 | C39: =Sichtfeld!D40 -> 0.2061692355 | D39: =Sichtfeld!E40 -> 0.03436153925 | E39: 3.620265387 | F39: 180.6138308 | G39: -0.1540520935 | H39: 0.2118834931 | I39: 135.351665 | J39: 193.9013589 | L39: =Sichtfeld!L40 -> 0.3727273692 | M39: =Sichtfeld!M40 -> 0.04659092115 | N39: 3.663068224 | O39: 179.7072726 | P39: -0.09127115575 | Q39: 0.1089836257 | R39: 145.3966151 | S39: 177.4373801 | V39: =Sichtfeld!T40 -> 1.598889668 | W39: =Sichtfeld!U40 -> 0.09993060423 | X39: 1.979875088 | Y39: 176.1111103 | Z39: -0.01213152338 | AA39: 0.01240497111 | AB39: 158.0589563 | AC39: 161.9847954
A40: =Sichtfeld!A41 -> 170 | C40: =Sichtfeld!D41 -> 0.1949898335 | D40: =Sichtfeld!E41 -> 0.03249830559 | E40: 3.61374407 | F40: 190.6250102 | G40: -0.160296349 | H40: 0.2244750132 | I40: 142.7496207 | J40: 208.1607523 | L40: =Sichtfeld!L41 -> 0.3521750178 | M40: =Sichtfeld!M41 -> 0.04402187723 | N40: 3.65407657 | O40: 189.727825 | P40: -0.09531734307 | Q40: 0.1149527105 | R40: 153.7960517 | S40: 189.5419608 | V40: =Sichtfeld!T41 -> 1.504060319 | W40: =Sichtfeld!U41 -> 0.09400376996 | X40: 1.969206786 | Y40: 186.2059397 | Z40: -0.01275632755 | AA40: 0.01306053655 | AB40: 167.8314243 | AC40: 172.2202912
A41: =Sichtfeld!A42 -> 180 | C41: =Sichtfeld!D42 -> 0.1849615582 | D41: =Sichtfeld!E42 -> 0.03082692637 | E41: 3.607894242 | F41: 200.6350384 | G41: -0.1664584746 | H41: 0.2373491962 | I41: 150.0374746 | J41: 222.7228553 | L41: =Sichtfeld!L42 -> 0.3337744972 | M41: =Sichtfeld!M42 -> 0.04172181215 | N41: 3.646026343 | O41: 199.7462255 | P41: -0.09933202141 | Q41: 0.1209927184 | R41: 162.1202361 | S41: 201.7786893 | V41: =Sichtfeld!T42 -> 1.41993403 | W41: =Sichtfeld!U42 -> 0.0887458769 | X41: 1.959742578 | Y41: 196.290066 | Z41: -0.01337943688 | AA41: 0.01371600236 | AB41: 177.5917014 | AC41: 182.4688804
A42: =Sichtfeld!A43 -> 190 | C42: =Sichtfeld!D43 -> 0.175915175 | D42: =Sichtfeld!E43 -> 0.02931919584 | E42: 3.602617185 | F42: 210.6440848 | G42: -0.1725386045 | H42: 0.2505127031 | I42: 157.2176651 | J42: 237.5974136 | L42: =Sichtfeld!L43 -> 0.3172041691 | M42: =Sichtfeld!M43 -> 0.03965052113 | N42: 3.638776824 | O42: 209.7627958 | P42: -0.103314879 | Q42: 0.127103921 | R42: 170.370173 | S42: 214.149745 | V42: =Sichtfeld!T43 -> 1.344783489 | W42: =Sichtfeld!U43 -> 0.08404896805 | X42: 1.951288142 | Y42: 206.3652165 | Z42: -0.01400102023 | AA42: 0.01437153886 | AB42: 187.3398062 | AC42: 192.7305924
A43: =Sichtfeld!A44 -> 200 | C43: =Sichtfeld!D44 -> 0.1677130979 | D43: =Sichtfeld!E44 -> 0.02795218298 | E43: 3.59783264 | F43: 220.6522869 | G43: -0.1785372021 | H43: 0.2639729741 | I43: 164.2925596 | J43: 252.7945948 | L43: =Sichtfeld!L44 -> 0.302203541 | M43: =Sichtfeld!M44 -> 0.03777544263 | N43: 3.632214049 | O43: 219.7777965 | P43: -0.1072657531 | Q43: 0.1332867731 | R43: 178.5468494 | S43: 226.6573546 | V43: =Sichtfeld!T44 -> 1.277236292 | W43: =Sichtfeld!U44 -> 0.07982726828 | X43: 1.943689083 | Y43: 216.4327637 | Z43: -0.01462120859 | AA43: 0.01502727829 | AB43: 197.0757583 | AC43: 203.0054557
A44: =Sichtfeld!A45 -> 210 | C44: =Sichtfeld!D45 -> 0.1602423165 | D44: =Sichtfeld!E45 -> 0.02670705275 | E44: 3.593474685 | F44: 230.6597577 | G44: -0.1844549696 | H44: 0.2777381544 | I44: 171.2644564 | J44: 268.3250124 | L44: =Sichtfeld!L45 -> 0.2885593773 | M44: =Sichtfeld!M45 -> 0.03606992216 | N44: 3.626244728 | O44: 229.7914406 | P44: -0.1111845936 | Q44: 0.1395418763 | R44: 186.6512354 | S44: 239.303794 | V44: =Sichtfeld!T45 -> 1.21618777 | W44: =Sichtfeld!U45 -> 0.0760117356 | X44: 1.936821124 | Y44: 226.4938122 | Z44: -0.01524010515 | AA44: 0.01568332485 | AB44: 206.7995779 | AC44: 213.2934982
A45: =Sichtfeld!A46 -> 220 | C45: =Sichtfeld!D46 -> 0.1534091405 | D45: =Sichtfeld!E46 -> 0.02556819008 | E45: 3.589488665 | F45: 240.6665909 | G45: -0.190292783 | H45: 0.2918170458 | I45: 178.1355877 | J45: 284.1997501 | L45: =Sichtfeld!L46 -> 0.2760954356 | M45: =Sichtfeld!M46 -> 0.03451192945 | N45: 3.620791753 | O45: 239.8039046 | P45: -0.1150714355 | Q45: 0.145869952 | R45: 194.6842842 | S45: 252.0913894 | V45: =Sichtfeld!T46 -> 1.160738414 | W45: =Sichtfeld!U46 -> 0.07254615085 | X45: 1.930583072 | Y45: 236.5492616 | Z45: -0.01585779236 | AA45: 0.01633976183 | AB45: 216.5112857 | AC45: 223.5947476
A46: =Sichtfeld!A47 -> 230 | C46: =Sichtfeld!D47 -> 0.1471352372 | D46: =Sichtfeld!E47 -> 0.02452253954 | E46: 3.585828888 | F46: 250.6728648 | G46: -0.1960516436 | H46: 0.3062190795 | I46: 184.908122 | J46: 300.4303883 | L46: =Sichtfeld!L47 -> 0.2646647697 | M46: =Sichtfeld!M47 -> 0.03308309621 | N46: 3.615790837 | O46: 249.8153352 | P46: -0.1189263797 | Q46: 0.1522718218 | R46: 202.6469327 | S46: 265.022519 | V46: =Sichtfeld!T47 -> 1.110148155 | W46: =Sichtfeld!U47 -> 0.06938425967 | X46: 1.924891667 | Y46: 246.5998518 | Z46: -0.01647433689 | AA46: 0.01699665666 | AB46: 226.2109025 | AC46: 233.909231
A47: =Sichtfeld!A48 -> 240 | C47: =Sichtfeld!D48 -> 0.1413546077 | D47: =Sichtfeld!E48 -> 0.02355910128 | E47: 3.582456854 | F47: 260.6786454 | G47: -0.2017326429 | H47: 0.3209543021 | I47: 191.5841657 | J47: 317.0290325 | L47: =Sichtfeld!L48 -> 0.2541438794 | M47: =Sichtfeld!M48 -> 0.03176798492 | N47: 3.611187947 | O47: 259.8258561 | P47: -0.1227495776 | Q47: 0.1587483935 | R47: 210.5401014 | S47: 278.0996144 | V47: =Sichtfeld!T48 -> 1.063802389 | W47: =Sichtfeld!U48 -> 0.06648764933 | X47: 1.919677769 | Y47: 256.6461976 | Z47: -0.01708979329 | AA47: 0.01765406454 | AB47: 235.8984496 | AC47: 244.2369755
A48: =Sichtfeld!A49 -> 250 | C48: =Sichtfeld!D49 -> 0.1360112494 | D48: =Sichtfeld!E49 -> 0.02266854156 | E48: 3.579339895 | F48: 270.6839888 | G48: -0.2073369359 | H48: 0.3360333733 | I48: 198.165766 | J48: 334.0083433 | L48: =Sichtfeld!L49 -> 0.2444282095 | M48: =Sichtfeld!M49 -> 0.03055352619 | N48: 3.606937342 | O48: 269.8355718 | P48: -0.1265412196 | Q48: 0.1653006494 | R48: 218.3646951 | S48: 291.3251623 | V48: =Sichtfeld!T49 -> 1.021186372 | W48: =Sichtfeld!U49 -> 0.06382414823 | X48: 1.914883467 | Y48: 266.6888136 | Z48: -0.01770420666 | AA48: 0.01831203115 | AB48: 245.5739483 | AC48: 254.5780078
A49: =Sichtfeld!A50 -> 260 | C49: =Sichtfeld!D50 -> 0.1310573322 | D49: =Sichtfeld!E50 -> 0.02184288869 | E49: 3.57645011 | F49: 280.6889427 | G49: -0.2128657208 | H49: 0.3514675716 | I49: 204.6549126 | J49: 351.3815686 | L49: =Sichtfeld!L50 -> 0.2354286484 | M49: =Sichtfeld!M50 -> 0.02942858105 | N49: 3.603000034 | O49: 279.8445714 | P49: -0.1303015269 | Q49: 0.1719296387 | R49: 226.121603 | S49: 304.7017061 | V49: =Sichtfeld!T50 -> 0.9818656534 | W49: =Sichtfeld!U50 -> 0.06136660334 | X49: 1.910459886 | Y49: 276.7281343 | Z49: -0.01831761467 | AA49: 0.01897059469 | AB49: 255.2374202 | AC49: 264.9323546
A50: =Sichtfeld!A51 -> 270 | C50: =Sichtfeld!D51 -> 0.1264517592 | D50: =Sichtfeld!E51 -> 0.0210752932 | E50: 3.573763526 | F50: 290.6935482 | G50: -0.2183202236 | H50: 0.3672688077 | I50: 211.0535396 | J50: 369.1625781 | L50: =Sichtfeld!L51 -> 0.2270687756 | M50: =Sichtfeld!M51 -> 0.02838359695 | N50: 3.599342589 | O50: 289.8529312 | P50: -0.1340307439 | Q50: 0.1786364708 | R50: 233.8116991 | S50: 318.2318471 | V50: =Sichtfeld!T51 -> 0.9454709629 | W50: =Sichtfeld!U51 -> 0.05909193518 | X50: 1.906365483 | Y50: 286.764529 | Z50: -0.01893004902 | AA50: 0.01962978734 | AB50: 264.8888868 | AC50: 275.3000426
A51: =Sichtfeld!A52 -> 280 | C51: =Sichtfeld!D52 -> 0.1221590219 | D51: =Sichtfeld!E52 -> 0.02035983698 | E51: 3.571259429 | F51: 300.697841 | G51: -0.2237016863 | H51: 0.3834496436 | I51: 217.3635278 | J51: 387.3659002 | L51: =Sichtfeld!L52 -> 0.219282679 | M51: =Sichtfeld!M52 -> 0.02741033488 | N51: 3.595936172 | O51: 299.8607173 | P51: -0.1377291338 | Q51: 0.1854223113 | R51: 241.4358425 | S51: 331.9182472 | V51: =Sichtfeld!T52 -> 0.911686387 | W51: =Sichtfeld!U52 -> 0.05698039918 | X51: 1.902564719 | Y51: 296.7983136 | Z51: -0.01954153665 | AA51: 0.02028963651 | AB51: 274.5283697 | AC51: 285.6810982
A52: =Sichtfeld!A53 -> 290 | C52: =Sichtfeld!D53 -> 0.118148281 | D52: =Sichtfeld!E53 -> 0.01969138017 | E52: 3.568919831 | F52: 310.7018517 | G52: -0.2290113582 | H52: 0.4000233166 | I52: 223.5867061 | J52: 406.0067618 | L52: =Sichtfeld!L53 -> 0.2120132071 | M52: =Sichtfeld!M53 -> 0.02650165089 | N52: 3.592755778 | O52: 309.8679868 | P52: -0.1413969735 | Q52: 0.1922883774 | R52: 248.9948777 | S52: 345.7636294 | V52: =Sichtfeld!T53 -> 0.8802400416 | W52: =Sichtfeld!U53 -> 0.0550150026 | X52: 1.899027005 | Y52: 306.82976 | Z52: -0.02015210063 | AA52: 0.02095016569 | AB52: 284.1558908 | AC52: 296.0755481
A53: =Sichtfeld!A54 -> 300 | C53: =Sichtfeld!D54 -> 0.1143926233 | D53: =Sichtfeld!E54 -> 0.01906543722 | E53: 3.56672903 | F53: 320.7056074 | G53: -0.2342504881 | H53: 0.4170037686 | I53: 229.7248536 | J53: 425.1011306 | L53: =Sichtfeld!L54 -> 0.2052105594 | M53: =Sichtfeld!M54 -> 0.02565131992 | N53: 3.58977962 | O53: 319.8747894 | P53: -0.1450345509 | Q53: 0.1992359363 | R53: 256.4896347 | S53: 359.7707809 | V53: =Sichtfeld!T54 -> 0.8508966395 | W53: =Sichtfeld!U54 -> 0.05318103997 | X53: 1.895725872 | Y53: 316.8591034 | Z53: -0.02076176085 | AA53: 0.02161139518 | AB53: 293.7714717 | AC53: 306.4834186
A54: =Sichtfeld!A55 -> 310 | C54: =Sichtfeld!D55 -> 0.1108684558 | D54: =Sichtfeld!E55 -> 0.01847807597 | E54: 3.564673266 | F54: 330.7091315 | G54: -0.2394203198 | H54: 0.4344056794 | I54: 235.7797009 | J54: 444.6657606 | L54: =Sichtfeld!L55 -> 0.1988311408 | M54: =Sichtfeld!M55 -> 0.0248538926 | N54: 3.586988624 | O54: 329.8811689 | P54: -0.1486421619 | Q54: 0.2062663026 | R54: 263.9209298 | S54: 373.9425538 | V54: =Sichtfeld!T55 -> 0.8234515171 | W54: =Sichtfeld!U55 -> 0.05146571982 | X54: 1.892638296 | Y54: 326.8865485 | Z54: -0.02137053458 | AA54: 0.02227334264 | AB54: 303.3751343 | AC54: 316.9047362
A55: =Sichtfeld!A56 -> 320 | C55: =Sichtfeld!D56 -> 0.1075550089 | D55: =Sichtfeld!E56 -> 0.01792583482 | E55: 3.562740422 | F55: 340.712445 | G55: -0.244522087 | H55: 0.452244505 | I55: 241.7529322 | J55: 464.7182416 | L55: =Sichtfeld!L56 -> 0.1928366236 | M55: =Sichtfeld!M56 -> 0.02410457795 | N55: 3.584366023 | O55: 339.8871634 | P55: -0.1522201084 | Q55: 0.2133808373 | R55: 271.2895653 | S55: 388.2818679 | V55: =Sichtfeld!T56 -> 0.7977257979 | W55: =Sichtfeld!U56 -> 0.04985786237 | X55: 1.889744152 | Y55: 336.9122742 | Z55: -0.02197843694 | AA55: 0.02293602356 | AB55: 312.9669002 | AC55: 327.3395275
A56: =Sichtfeld!A57 -> 330 | C56: =Sichtfeld!D57 -> 0.1044339262 | D56: =Sichtfeld!E57 -> 0.01740565437 | E56: 3.56091979 | F56: 350.7155661 | G56: -0.2495570105 | H56: 0.4705365192 | I56: 247.6461865 | J56: 485.2770513 | L56: =Sichtfeld!L57 -> 0.1871931749 | M56: =Sichtfeld!M57 -> 0.02339914687 | N56: 3.581897014 | O56: 349.8928068 | P56: -0.1557686961 | Q56: 0.2205809467 | R56: 278.5963303 | S56: 402.7917124 | V56: =Sichtfeld!T57 -> 0.7735624457 | W56: =Sichtfeld!U57 -> 0.04834765286 | X56: 1.887025775 | Y56: 346.9364376 | Z56: -0.02258548121 | AA56: 0.02359945161 | AB56: 322.5467912 | AC56: 337.787819
A57: =Sichtfeld!A58 -> 340 | C57: =Sichtfeld!D58 -> 0.101488924 | D57: =Sichtfeld!E58 -> 0.01691482066 | E57: 3.559201872 | F57: 360.7185111 | G57: -0.2545262959 | H57: 0.4892988612 | I57: 253.4610594 | J57: 506.3616128 | L57: =Sichtfeld!L58 -> 0.1818708163 | M57: =Sichtfeld!M58 -> 0.02273385203 | N57: 3.579568482 | O57: 359.8981292 | P57: -0.159288234 | Q57: 0.2278680818 | R57: 285.8420005 | S57: 417.4751478 | V57: =Sichtfeld!T58 -> 0.7508230231 | W57: =Sichtfeld!U58 -> 0.04692643894 | X57: 1.88446759 | Y57: 356.959177 | Z57: -0.02319167914 | AA57: 0.02426363892 | AB57: 332.1148291 | AC57: 348.2496372
A58: =Sichtfeld!A59 -> 350 | C58: =Sichtfeld!D59 -> 0.09870550621 | D58: =Sichtfeld!E59 -> 0.0164509177 | E58: 3.557578212 | F58: 370.7212945 | G58: -0.2594311313 | H58: 0.5085495863 | I58: 259.1991041 | J58: 527.9923552 | L58: =Sichtfeld!L59 -> 0.1768428894 | M58: =Sichtfeld!M59 -> 0.02210536118 | N58: 3.577368764 | O58: 369.9031571 | P58: -0.1627790321 | Q58: 0.2352437384 | R58: 293.0273388 | S58: 432.3353084 | V58: =Sichtfeld!T59 -> 0.7293850118 | W58: =Sichtfeld!U59 -> 0.04558656324 | X58: 1.882055814 | Y58: 366.980615 | Z58: -0.02379704122 | AA58: 0.02492859631 | AB58: 341.6710356 | AC58: 358.7250087
A59: =Sichtfeld!A60 -> 360 | C59: =Sichtfeld!D60 -> 0.09607072617 | D59: =Sichtfeld!E60 -> 0.0160117877 | E59: 3.556041257 | F59: 380.7239293 | G59: -0.2642726858 | H59: 0.5283077221 | I59: 264.8618331 | J59: 550.19078 | L59: =Sichtfeld!L60 -> 0.1720856092 | M59: =Sichtfeld!M60 -> 0.02151070115 | N59: 3.575287454 | O59: 379.9079144 | P59: -0.1662414014 | Q59: 0.2427094565 | R59: 300.1530955 | S59: 447.3754043 | V59: =Sichtfeld!T60 -> 0.7091395841 | W59: =Sichtfeld!U60 -> 0.044321224 | X59: 1.879778203 | Y59: 377.0008604 | Z59: -0.02440157681 | AA59: 0.02559433353 | AB59: 351.2154323 | AC59: 369.2139601
A60: =Sichtfeld!A61 -> 370 | C60: =Sichtfeld!D61 -> 0.09357298452 | D60: =Sichtfeld!E61 -> 0.01559549742 | E60: =C$12*(1+D60) -> 3.554584241 | F60: 390.726427 | G60: -0.2690521091 | H60: 0.54859333 | I60: 270.4507196 | J60: 572.9795321 | L60: =Sichtfeld!L61 -> 0.167577686 | M60: =Sichtfeld!M61 -> 0.02094721075 | N60: =L$12*(1+M60) -> 3.573315238 | O60: 389.9124223 | P60: -0.1696756526 | Q60: 0.2502668213 | R60: 307.2200085 | S60: 462.5987239 | V60: =Sichtfeld!T61 -> 0.6899897389 | W60: =Sichtfeld!U61 -> 0.04312435868 | X60: 1.877623846 | Y60: 387.0200103 | Z60: -0.02500529435 | AA60: 0.02626085936 | AB60: 360.7480411 | AC60: 379.716518
A61: =Sichtfeld!A62 -> 380 | C61: =Sichtfeld!D62 -> 0.09120185852 | D61: =Sichtfeld!E62 -> 0.01520030975 | E61: 3.553201084 | F61: 400.7287981 | G61: -0.27377053 | H61: 0.5694275717 | I61: 275.9671986 | J61: 596.3824772 | L61: =Sichtfeld!L62 -> 0.1633000074 | M61: =Sichtfeld!M62 -> 0.02041250092 | N61: 3.571443753 | O61: 399.9167 | P61: -0.1730820956 | Q61: 0.2579174631 | R61: 314.2288037 | S61: 478.008636 | V61: =Sichtfeld!T62 -> 0.6718487352 | W61: =Sichtfeld!U62 -> 0.04199054595 | X61: 1.875582983 | Y61: 397.0381513 | Z61: -0.02560820146 | AA61: 0.0269281818 | AB61: 370.2688834 | AC61: 390.2327091
A62: =Sichtfeld!A63 -> 390 | C62: =Sichtfeld!D63 -> 0.08894795647 | D62: =Sichtfeld!E63 -> 0.01482465941 | E62: 3.551886308 | F62: 410.731052 | G62: -0.2784290564 | H62: 0.5908327822 | I62: 281.412668 | J62: 620.4247851 | L62: =Sichtfeld!L63 -> 0.1592353659 | M62: =Sichtfeld!M63 -> 0.01990442073 | N62: 3.569665473 | O62: 409.9207646 | P62: -0.176461039 | Q62: 0.2656630578 | R62: 321.1801948 | S62: 493.6085925 | V62: =Sichtfeld!T63 -> 0.6546387683 | W62: =Sichtfeld!U63 -> 0.04091492302 | X62: 1.873646861 | Y62: 407.0553612 | Z62: -0.02621030508 | AA62: 0.02759630813 | AB62: 379.777981 | AC62: 400.7625602
A63: =Sichtfeld!A64 -> 400 | C63: =Sichtfeld!D64 -> 0.08680279332 | D63: =Sichtfeld!E64 -> 0.01446713222 | E63: 3.550634963 | F63: 420.7331972 | G63: -0.2830287747 | H63: 0.6128325487 | I63: 286.7884901 | J63: 645.1330195 | L63: =Sichtfeld!L64 -> 0.1553682277 | M63: =Sichtfeld!M64 -> 0.01942102847 | N63: 3.5679736 | O63: 419.9246318 | P63: -0.1798127895 | Q63: 0.2735053282 | R63: 328.0748842 | S63: 509.4021313 | V63: =Sichtfeld!T64 -> 0.6382898457 | W63: =Sichtfeld!U64 -> 0.03989311536 | X63: 1.871807608 | Y63: 417.0717102 | Z63: -0.02681161154 | AA63: 0.02826524506 | AB63: 389.2753554 | AC63: 411.306098
A64: =Sichtfeld!A65 -> 410 | C64: =Sichtfeld!D65 -> 0.08475868376 | D64: =Sichtfeld!E65 -> 0.01412644729 | E64: 3.549442566 | F64: 430.7352413 | G64: -0.2875707498 | H64: 0.6354517966 | I64: 292.0959926 | J64: 670.5352366 | L64: =Sichtfeld!L65 -> 0.1516845342 | M64: =Sichtfeld!M65 -> 0.01896056678 | N64: 3.566361984 | O64: 429.9283155 | P64: -0.1831376519 | Q64: 0.2814460441 | R64: 334.9135627 | S64: 525.3928781 | V64: =Sichtfeld!T65 -> 0.6227388299 | W64: =Sichtfeld!U65 -> 0.03892117687 | X64: 1.870058118 | Y64: 427.0872612 | Z64: -0.02741212664 | AA64: 0.02893499875 | AB64: 398.7610281 | AC64: 421.8633495
A65: =Sichtfeld!A66 -> 420 | C65: =Sichtfeld!D66 -> 0.08280865018 | D65: =Sichtfeld!E66 -> 0.0138014417 | E65: 3.548305046 | F65: 440.7371913 | G65: -0.2920560249 | H65: 0.6587168835 | I65: 297.3364695 | J65: 696.6610911 | L65: =Sichtfeld!L66 -> 0.1481715303 | M65: =Sichtfeld!M66 -> 0.01852144128 | N65: 3.564825044 | O65: 439.9318285 | P65: -0.1864359283 | Q65: 0.289487024 | R65: 341.6969101 | S65: 541.5845501 | V65: =Sichtfeld!T66 -> 0.6079286173 | W65: =Sichtfeld!U66 -> 0.03799553858 | X65: =V$12*(1+W65) -> 1.868391969 | Y65: 437.1020714 | Z65: -0.02801185573 | AA65: 0.02960557492 | AB65: 408.2350206 | AC65: 432.4343415
A66: =Sichtfeld!A67 -> 430 | C66: =Sichtfeld!D67 -> 0.08094634304 | D66: =Sichtfeld!E67 -> 0.01349105717 | E66: 3.5472187 | F66: 450.7390537 | G66: -0.2964856218 | H66: 0.6826557009 | I66: 302.5111826 | J66: 723.5419514 | L66: =Sichtfeld!L67 -> 0.144817617 | M66: =Sichtfeld!M67 -> 0.01810220213 | N66: 3.563357707 | O66: 449.9351824 | P66: -0.1897079185 | Q66: 0.2976301356 | R66: 348.425595 | S66: 557.9809583 | V66: =Sichtfeld!T67 -> 0.5938074339 | W66: =Sichtfeld!U67 -> 0.03711296462 | X66: 1.866803336 | Y66: 447.1161926 | Z66: -0.02861080375 | AA66: 0.03027697889 | AB66: 417.6973544 | AC66: 443.0191009
A67: =Sichtfeld!A68 -> 440 | C67: =Sichtfeld!D68 -> 0.07916597171 | D67: =Sichtfeld!E68 -> 0.01319432862 | E67: 3.54618015 | F67: 460.740834 | G67: -0.300860541 | H67: 0.7072977858 | I67: 307.621362 | J67: 751.2110257 | L67: =Sichtfeld!L68 -> 0.1416122235 | M67: =Sichtfeld!M68 -> 0.01770152794 | N67: 3.561955348 | O67: 459.9383878 | P67: -0.1929539191 | Q67: 0.3058772973 | R67: 355.1002756 | S67: 574.5860108 | V67: =Sichtfeld!T68 -> 0.5803282263 | W67: =Sichtfeld!U68 -> 0.03627051415 | X67: 1.865286925 | Y67: 457.1296718 | Z67: -0.0292089753 | AA67: 0.03094921563 | AB67: 427.1480509 | AC67: 453.6176549
A68: =Sichtfeld!A69 -> 450 | C68: =Sichtfeld!D69 -> 0.07746224431 | D68: =Sichtfeld!E69 -> 0.01291037405 | E68: 3.545186309 | F68: 470.7425378 | G68: -0.3051817616 | H68: 0.7326744416 | I68: 312.6682073 | J68: 779.7034987 | L68: =Sichtfeld!L69 -> 0.1385456954 | M68: =Sichtfeld!M69 -> 0.01731821192 | N68: 3.560613742 | O68: 469.9414543 | P68: -0.1961742239 | Q68: 0.3142304794 | R68: 361.7215992 | S68: 591.4037157 | V68: =Sichtfeld!T69 -> 0.5674481357 | W68: =Sichtfeld!U69 -> 0.03546550848 | X68: 1.863837915 | Y68: 467.1425519 | Z68: -0.02980637467 | AA68: 0.03162228982 | AB68: 436.5871314 | AC68: 464.2300304
A69: =Sichtfeld!A70 -> 460 | C69: =Sichtfeld!D70 -> 0.07583031514 | D69: =Sichtfeld!E70 -> 0.01263838586 | E69: 3.544234351 | F69: 480.7441697 | G69: -0.3094502419 | H69: 0.7588188712 | I69: 317.6528887 | J69: 809.0566807 | L69: =Sichtfeld!L70 -> 0.1356091973 | M69: =Sichtfeld!M70 -> 0.01695114966 | N69: 3.559329024 | O69: 479.9443908 | P69: -0.1993691235 | Q69: 0.3226917054 | R69: 368.2902032 | S69: 608.4381845 | V69: =Sichtfeld!T70 -> 0.5551280395 | W69: =Sichtfeld!U70 -> 0.03469550247 | X69: 1.862451904 | Y69: 477.154872 | Z69: -0.03040300585 | AA69: 0.03229620584 | AB69: 446.0146173 | AC69: 474.8562547
A70: =Sichtfeld!A71 -> 470 | C70: =Sichtfeld!D71 -> 0.07426573862 | D70: =Sichtfeld!E71 -> 0.0123776231 | E70: 3.543321681 | F70: 490.7457343 | G70: -0.3136669196 | H70: 0.7857663209 | I70: 322.5765478 | J70: 839.3101708 | L70: =Sichtfeld!L71 -> 0.1327946283 | M70: =Sichtfeld!M71 -> 0.01659932854 | N70: 3.55809765 | O70: 489.9472054 | P70: -0.2025389051 | Q70: 0.3312630537 | R70: 374.8067146 | S70: 625.6936352 | V70: =Sichtfeld!T71 -> 0.5433321529 | W70: =Sichtfeld!U71 -> 0.03395825955 | X70: 1.861124867 | Y70: 487.1666678 | Z70: -0.03099887262 | AA70: 0.03297096785 | AB70: 455.4305299 | AC70: 485.4963549
A71: =Sichtfeld!A72 -> 480 | C71: =Sichtfeld!D72 -> 0.07276442881 | D71: =Sichtfeld!E72 -> 0.0121274048 | E71: 3.542445917 | F71: 500.7472356 | G71: -0.3178327122 | H71: 0.8135542396 | I71: 327.4402982 | J71: 870.506035 | L71: =Sichtfeld!L72 -> 0.1300945468 | M71: =Sichtfeld!M72 -> 0.01626181835 | N71: 3.556916364 | O71: 499.9499055 | P71: -0.205683853 | Q71: 0.3399466587 | R71: 381.2717506 | S71: 643.1743962 | V71: =Sichtfeld!T72 -> 0.5320276794 | W71: =Sichtfeld!U72 -> 0.03325172996 | X71: 1.859853114 | Y71: 497.1779723 | Z71: -0.0315939785 | AA71: 0.03364657979 | AB71: 464.8348903 | AC71: 496.1503583
A72: =Sichtfeld!A73 -> 490 | C72: =Sichtfeld!D73 -> 0.07132262374 | D72: =Sichtfeld!E73 -> 0.01188710396 | E72: 3.541604864 | F72: 510.7486774 | G72: -0.3219485171 | H72: 0.842222452 | I72: 332.2452266 | J72: 902.6890015 | L72: =Sichtfeld!L73 -> 0.1275021048 | M72: =Sichtfeld!M73 -> 0.0159377631 | N72: 3.555782171 | O72: 509.9524979 | P72: -0.2088042476 | Q72: 0.348744713 | R72: 387.6859187 | S72: 660.8849094 | V72: =Sichtfeld!T73 -> 0.5211845057 | W72: =Sichtfeld!U73 -> 0.03257403161 | X72: 1.858633257 | Y72: 507.1888155 | Z72: -0.03218832686 | AA72: 0.03432304542 | AB72: 474.2277198 | AC72: 506.8182923
A73: =Sichtfeld!A74 -> 500 | C73: =Sichtfeld!D74 -> 0.06993685398 | D73: =Sichtfeld!E74 -> 0.01165614233 | E73: 3.540796498 | F73: 520.7500631 | G73: -0.3260152124 | H73: 0.8718133489 | I73: 336.9923938 | J73: 935.9066744 | L73: =Sichtfeld!L74 -> 0.12501099 | M73: =Sichtfeld!M74 -> 0.01562637375 | N73: 3.554692308 | O73: 519.954989 | P73: -0.2119003664 | Q73: 0.3576594687 | R73: 394.0498168 | S73: 678.8297344 | V73: =Sichtfeld!T74 -> 0.5107749318 | W73: =Sichtfeld!U74 -> 0.03192343324 | X73: 1.85746218 | Y73: 517.1992251 | Z73: -0.03278192087 | AA73: 0.03500036832 | AB73: 483.6090396 | AC73: 517.5001842
A74: =Sichtfeld!A75 -> 510 | C74: =Sichtfeld!D75 -> 0.06860391467 | D74: =Sichtfeld!E75 -> 0.01143398578 | E74: 3.54001895 | F74: 530.7513961 | G74: -0.3300336567 | H74: 0.9023720965 | I74: 341.6828351 | J74: 970.2097692 | L74: =Sichtfeld!L75 -> 0.1226153741 | M74: =Sichtfeld!M75 -> 0.01532692177 | N74: 3.553644226 | O74: 529.9573846 | P74: -0.214972483 | Q74: 0.3666932396 | R74: 400.3640337 | S74: 697.0135522 | V74: =Sichtfeld!T75 -> 0.5007734342 | W74: =Sichtfeld!U75 -> 0.03129833964 | X74: 1.856337011 | Y74: 527.2092266 | Z74: -0.03337476354 | AA74: 0.03567855194 | AB74: 492.9788706 | AC74: 528.1960615
A75: =Sichtfeld!A76 -> 520 | C75: =Sichtfeld!D76 -> 0.06732084084 | D75: =Sichtfeld!E76 -> 0.01122014014 | E75: 3.53927049 | F75: 540.7526792 | G75: -0.3340046902 | H75: 0.9339468661 | I75: 346.3175611 | J75: 1005.65237 | L75: =Sichtfeld!L76 -> 0.1203098678 | M75: =Sichtfeld!M76 -> 0.01503873348 | N75: 3.552635567 | O75: 539.9596901 | P75: -0.2180208679 | Q75: 0.3758484025 | R75: 406.6291487 | S75: 715.4411693 | V75: =Sichtfeld!T76 -> 0.491156456 | W75: =Sichtfeld!U76 -> 0.0306972785 | X75: 1.855255101 | Y75: 537.2188435 | Z75: -0.03396685776 | AA75: 0.03635759957 | AB75: 502.337234 | AC75: 538.9059518
A76: =Sichtfeld!A77 -> 530 | C76: =Sichtfeld!D77 -> 0.06608488531 | D76: =Sichtfeld!E77 -> 0.01101414755 | E76: 3.538549516 | F76: 550.7539151 | G76: -0.3379291344 | H76: 0.966589088 | I76: 350.8975587 | J76: 1042.292217 | L76: =Sichtfeld!L77 -> 0.1180894796 | M76: =Sichtfeld!M77 -> 0.01476118496 | N76: 3.551664147 | O76: 549.9619105 | P76: -0.2210457878 | Q76: 0.3851274001 | R76: 412.8457324 | S76: 734.117522 | V76: =Sichtfeld!T77 -> 0.4819022207 | W76: =Sichtfeld!U77 -> 0.03011888879 | X76: 1.854214 | Y76: 547.2280978 | Z76: -0.03455820627 | AA76: 0.03703751439 | AB76: 511.6841507 | AC76: 549.6298826
A77: =Sichtfeld!A78 -> 540 | C77: =Sichtfeld!D78 -> 0.06489349909 | D77: =Sichtfeld!E78 -> 0.01081558318 | E77: 3.537854541 | F77: 560.7551065 | G77: -0.3418077932 | H77: 1.00035373 | I77: 355.4237917 | J77: 1080.191014 | L77: =Sichtfeld!L78 -> 0.1159495803 | M77: =Sichtfeld!M78 -> 0.01449369754 | N77: 3.550727941 | O77: 559.9640504 | P77: -0.2240475063 | Q77: 0.3945327422 | R77: 419.0143466 | S77: 753.0476808 | V77: =Sichtfeld!T78 -> 0.472990567 | W77: =Sichtfeld!U78 -> 0.02956191044 | X77: 1.853211439 | Y77: 557.2370094 | Z77: -0.03514881171 | AA77: 0.03771829947 | AB77: 521.0196417 | AC77: 560.3678817
A78: =Sichtfeld!A79 -> 550 | C78: =Sichtfeld!D79 -> 0.06374431383 | D78: =Sichtfeld!E79 -> 0.01062405231 | E78: 3.537184183 | F78: 570.7562557 | G78: -0.3456414527 | H78: 1.035299608 | I78: 359.897201 | J78: 1119.414785 | L78: =Sichtfeld!L79 -> 0.1138858703 | M78: =Sichtfeld!M79 -> 0.01423573379 | N78: 3.549825068 | O78: 569.9661141 | P78: -0.2270262833 | Q78: 0.4040670087 | R78: 425.1355442 | S78: 772.2368548 | V78: =Sichtfeld!T79 -> 0.4644028021 | W78: =Sichtfeld!U79 -> 0.02902517513 | X78: 1.852245315 | Y78: 567.2455972 | Z78: -0.03573867661 | AA78: 0.0383999578 | AB78: 530.3437279 | AC78: 571.1199768
A79: =Sichtfeld!A80 -> 560 | C79: =Sichtfeld!D80 -> 0.06263512606 | D79: =Sichtfeld!E80 -> 0.01043918768 | E79: 3.536537157 | F79: 580.7573649 | G79: -0.3494308818 | H79: 1.071489726 | I79: 364.3187062 | J79: 1160.034247 | L79: =Sichtfeld!L80 -> 0.111894351 | M79: =Sichtfeld!M80 -> 0.01398679388 | N79: 3.548953779 | O79: 579.9681056 | P79: -0.2299823752 | Q79: 0.4137328512 | R79: 431.2098699 | S79: 791.6903967 | V79: =Sichtfeld!T80 -> 0.4561215696 | W79: =Sichtfeld!U80 -> 0.0285075981 | X79: 1.851313677 | Y79: 577.2538784 | Z79: -0.0363278034 | AA79: 0.03908249226 | AB79: 539.6564301 | AC79: 581.8861957
A80: =Sichtfeld!A81 -> 570 | C80: =Sichtfeld!D81 -> 0.0615638831 | D80: =Sichtfeld!E81 -> 0.01026064718 | E80: 3.535912265 | F80: 590.7584361 | G80: -0.3531768327 | H80: 1.108991657 | I80: 368.6892053 | J80: 1202.125244 | L80: =Sichtfeld!L81 -> 0.1099712989 | M80: =Sichtfeld!M81 -> 0.01374641237 | N80: 3.548112443 | O80: 589.9700287 | P80: -0.2329160352 | Q80: 0.423532996 | R80: 437.23786 | S80: 811.4138077 | V80: =Sichtfeld!T81 -> 0.4481307326 | W80: =Sichtfeld!U81 -> 0.02800817079 | X80: 1.850414707 | Y80: 587.2618693 | Z80: -0.03691619444 | AA80: 0.03976590565 | AB80: 548.9577692 | AC80: 592.6665662
A81: =Sichtfeld!A82 -> 580 | C81: =Sichtfeld!D82 -> 0.06052867039 | D81: =Sichtfeld!E82 -> 0.01008811173 | E81: 3.535308391 | F81: 600.7594713 | G81: -0.3568800415 | H81: 1.147877961 | I81: 373.0095759 | J81: 1245.769217 | L81: =Sichtfeld!L82 -> 0.1081132423 | M81: =Sichtfeld!M82 -> 0.01351415528 | N81: 3.547299543 | O81: 599.9718868 | P81: -0.2358275128 | Q81: 0.4334702463 | R81: 443.2200426 | S81: 831.4127428 | V81: =Sichtfeld!T82 -> 0.4404152681 | W81: =Sichtfeld!U82 -> 0.02752595426 | X81: 1.849546718 | Y81: 597.2695847 | Z81: -0.037503852 | AA81: 0.04045020072 | AB81: 558.2477658 | AC81: 603.4611164
A82: =Sichtfeld!A83 -> 590 | C82: =Sichtfeld!D83 -> 0.05952770005 | D82: =Sichtfeld!E83 -> 0.009921283342 | E82: 3.534724492 | F82: 610.7604723 | G82: -0.360541228 | H82: 1.188226658 | I82: 377.2806755 | J82: 1291.053728 | L82: =Sichtfeld!L83 -> 0.1063169401 | M82: =Sichtfeld!M83 -> 0.01328961751 | N82: 3.546513661 | O82: 609.9736831 | P82: -0.2387170545 | Q82: 0.4435474848 | R82: 449.1569378 | S82: 851.693016 | V82: =Sichtfeld!T83 -> 0.4329611725 | W82: =Sichtfeld!U83 -> 0.02706007328 | X82: 1.848708132 | Y82: 607.2770388 | Z82: -0.03809077828 | AA82: 0.04113538014 | AB82: 567.5264408 | AC82: 614.2698743
A83: =Sichtfeld!A84 -> 600 | C83: =Sichtfeld!D84 -> 0.05855930059 | D83: =Sichtfeld!E84 -> 0.009759883432 | E83: 3.534159592 | F83: 620.7614407 | G83: -0.3641610964 | H83: 1.230121747 | I83: 381.5033421 | J83: 1338.073048 | L83: =Sichtfeld!L84 -> 0.1045793636 | M83: =Sichtfeld!M84 -> 0.01307242044 | N83: 3.545753472 | O83: 619.9754206 | P83: -0.2415849032 | Q83: 0.4537676768 | R83: 455.0490581 | S83: 872.2606061 | V83: =Sichtfeld!T84 -> 0.4257553766 | W83: =Sichtfeld!U84 -> 0.02660971104 | X83: 1.84789748 | Y83: 617.2842446 | Z83: -0.03867697541 | AA83: 0.04182144652 | AB83: 576.7938148 | AC83: 625.0928679
A84: =Sichtfeld!A85 -> 610 | C84: =Sichtfeld!D85 -> 0.05762190756 | D84: =Sichtfeld!E85 -> 0.009603651261 | E84: 3.533612779 | F84: 630.7623781 | G84: -0.3677403361 | H84: 1.273653791 | I84: 385.678395 | J84: 1386.928813 | L84: =Sichtfeld!L85 -> 0.1028976786 | M84: =Sichtfeld!M85 -> 0.01286220983 | N84: 3.545017734 | O84: 629.9771023 | P84: -0.2444312984 | Q84: 0.4641338726 | R84: 460.896908 | S84: 893.1216623 | V84: =Sichtfeld!T85 -> 0.4187856688 | W84: =Sichtfeld!U85 -> 0.0261741043 | X84: 1.847113388 | Y84: 627.2912143 | Z84: -0.03926244547 | AA84: 0.04250840241 | AB84: 586.0499083 | AC84: 635.9301255
A85: =Sichtfeld!A86 -> 620 | C85: =Sichtfeld!D86 -> 0.05671405514 | D85: =Sichtfeld!E86 -> 0.009452342523 | E85: 3.533083199 | F85: 640.7632859 | G85: -0.3712796212 | H85: 1.318920572 | I85: 389.8066349 | J85: 1437.730755 | L85: =Sichtfeld!L86 -> 0.1012692309 | M85: =Sichtfeld!M86 -> 0.01265865386 | N85: 3.544305289 | O85: 639.9787308 | P85: -0.2472564766 | Q85: 0.474649211 | R85: 466.7009845 | S85: 914.2825108 | V85: =Sichtfeld!T86 -> 0.4120406258 | W85: =Sichtfeld!U86 -> 0.02575253911 | X85: 1.84635457 | Y85: 637.2979594 | Z85: -0.03984719047 | AA85: 0.04319625035 | AB85: 595.2947419 | AC85: 646.7816752
A86: =Sichtfeld!A87 -> 630 | C86: =Sichtfeld!D87 -> 0.05583436847 | D86: =Sichtfeld!E87 -> 0.009305728078 | E86: 3.532570048 | F86: 650.7641656 | G86: -0.3747796115 | H86: 1.366027821 | I86: 393.8888447 | J86: 1490.597527 | L86: =Sichtfeld!L87 -> 0.09969153128 | M86: =Sichtfeld!M87 -> 0.01246144141 | N86: 3.543615045 | O86: 649.9803085 | P86: -0.2500606709 | Q86: 0.4853169221 | R86: 472.4617773 | S86: 935.7496609 | V86: =Sichtfeld!T87 -> 0.4055095503 | W86: =Sichtfeld!U87 -> 0.02534434689 | X86: 1.845619824 | Y86: 647.3044904 | Z86: -0.04043121238 | AA86: 0.04388499278 | AB86: 604.5283362 | AC86: 657.6475455
A87: =Sichtfeld!A88 -> 640 | C87: =Sichtfeld!D88 -> 0.05498155672 | D87: =Sichtfeld!E88 -> 0.009163592787 | E87: 3.532072575 | F87: 660.7650184 | G87: -0.3782409529 | H87: 1.415090043 | I87: 397.9257901 | J87: 1500 | L87: =Sichtfeld!L88 -> 0.09816224363 | M87: =Sichtfeld!M88 -> 0.01227028045 | N87: 3.542945982 | O87: 659.9818378 | P87: -0.2528441112 | Q87: 0.4961403307 | R87: 478.1797688 | S87: 957.5298117 | V87: =Sichtfeld!T88 -> 0.3991824136 | W87: =Sichtfeld!U88 -> 0.02494890085 | X87: 1.844908022 | Y87: 657.3108176 | Z87: -0.04101451312 | AA87: 0.04457463214 | AB87: 613.7507116 | AC87: 668.5277646
A88: =Sichtfeld!A89 -> 650 | C88: =Sichtfeld!D89 -> 0.05415440676 | D88: =Sichtfeld!E89 -> 0.009025734459 | E88: 3.531590071 | F88: 670.7658456 | G88: -0.3816642773 | H88: 1.46623145 | I88: 401.9182198 | J88: 1500 | L88: =Sichtfeld!L89 -> 0.096679173 | M88: =Sichtfeld!M89 -> 0.01208489663 | N88: 3.542297138 | O88: 669.9833208 | P88: -0.2556070243 | Q88: 0.5071228598 | R88: 483.8554342 | S88: 979.6298588 | V88: =Sichtfeld!T89 -> 0.3930498046 | W88: =Sichtfeld!U89 -> 0.02456561279 | X88: 1.844218103 | Y88: 667.3169502 | Z88: -0.04159709456 | AA88: 0.04526517083 | AB88: 622.9618885 | AC88: 679.422361
A89: =Sichtfeld!A90 -> 660 | C89: =Sichtfeld!D90 -> 0.05335177738 | D89: =Sichtfeld!E90 -> 0.008891962897 | E89: 3.53112187 | F89: 680.7666482 | G89: -0.3850502031 | H89: 1.519587006 | I89: 405.866866 | J89: 1500 | L89: =Sichtfeld!L90 -> 0.09524025519 | M89: =Sichtfeld!M90 -> 0.0119050319 | N89: 3.541667612 | O89: 679.9847597 | P89: -0.2583496337 | Q89: 0.5182680339 | R89: 489.4892417 | S89: 1002.056902 | V89: =Sichtfeld!T90 -> 0.3871028829 | W89: =Sichtfeld!U90 -> 0.02419393018 | X89: 1.843549074 | Y89: 677.3228971 | Z89: -0.04217895855 | AA89: 0.0459566112 | AB89: 632.1618874 | AC89: 690.3313634
A90: =Sichtfeld!A91 -> 670 | C90: =Sichtfeld!D91 -> 0.05257259408 | D90: =Sichtfeld!E91 -> 0.008762099013 | E90: 3.530667347 | F90: 690.7674274 | G90: -0.3883993359 | H90: 1.57530362 | I90: 409.772445 | J90: 1500 | L90: =Sichtfeld!L91 -> 0.09384354711 | M90: =Sichtfeld!M91 -> 0.01173044339 | N90: 3.541056552 | O90: 689.9861565 | P90: -0.2610721601 | Q90: 0.5295794834 | R90: 495.0816527 | S90: 1024.818254 | V90: =Sichtfeld!T91 -> 0.381333336 | W90: =Sichtfeld!U91 -> 0.0238333335 | X90: 1.8429 | Y90: 687.3286667 | Z90: -0.04276010688 | AA90: 0.04664895559 | AB90: 641.3507284 | AC90: 701.2548002
A91: =Sichtfeld!A92 -> 680 | C91: =Sichtfeld!D92 -> 0.05181584422 | D91: =Sichtfeld!E92 -> 0.008635974037 | E91: 3.530225909 | F91: 700.7681842 | G91: -0.3917122683 | H91: 1.633541495 | I91: 413.6356576 | J91: 1500 | L91: =Sichtfeld!L92 -> 0.09248721808 | M91: =Sichtfeld!M92 -> 0.01156090226 | N91: 3.540463158 | O91: 699.9875128 | P91: -0.2637748209 | Q91: 0.5410609478 | R91: 500.6331218 | S91: 1047.921445 | V91: =Sichtfeld!T92 -> 0.3757333405 | W91: =Sichtfeld!U92 -> 0.02348333378 | X91: 1.842270001 | Y91: 697.3342667 | Z91: -0.04334054131 | AA91: 0.04734220629 | AB91: 650.5284319 | AC91: 712.1927003
A92: =Sichtfeld!A93 -> 690 | C92: =Sichtfeld!D93 -> 0.05108057266 | D92: =Sichtfeld!E93 -> 0.008513428777 | E92: =C$12*(1+D92) -> 3.529797001 | F92: 710.7689194 | G92: -0.3949895806 | H92: 1.694475668 | I92: 417.4571894 | J92: 1500 | L92: =Sichtfeld!L93 -> 0.09116954177 | M92: =Sichtfeld!M93 -> 0.01139619272 | N92: =L$12*(1+M92) -> 3.539886675 | O92: 709.9888305 | P92: -0.2664578307 | Q92: 0.5527162803 | R92: 506.1440968 | S92: 1071.374233 | V92: =Sichtfeld!T93 -> 0.3702955267 | W92: =Sichtfeld!U93 -> 0.02314347042 | X92: 1.841658247 | Y92: 707.3397045 | Z92: -0.04392026357 | AA92: 0.04803636558 | AB92: 659.6950181 | AC92: 723.1450922
A93: =Sichtfeld!A94 -> 700 | C93: =Sichtfeld!D94 -> 0.05036587773 | D93: =Sichtfeld!E94 -> 0.008394312956 | E93: 3.529380095 | F93: =$A93+C$18-C93 -> 720.7696341 | G93: =(F93*C$11^2/(C$11^2+E93*C$13/1000*(F93-C$11))-(C$18-C93))/$A93-1 -> -0.3982318409 | H93: =(F93*C$11^2/(C$11^2-E93*C$13/1000*(F93-C$11))-(C$18-C93))/$A93-1 -> 1.758297762 | I93: =($A93*G93)+$A93 -> 421.2377114 | J93: =IF((($A93*H93)+$A93)>1500,1500,($A93*H93)+$A93) -> 1500 | L93: =Sichtfeld!L94 -> 0.08988888891 | M93: =Sichtfeld!M94 -> 0.01123611111 | N93: 3.539326389 | O93: =$A93+L$18-L93 -> 719.9901111 | P93: =(O93*L$11^2/(L$11^2+N93*L$13/1000*(O93-L$11))-(L$18-L93))/$A93-1 -> -0.269121401 | Q93: =(O93*L$11^2/(L$11^2-N93*L$13/1000*(O93-L$11))-(L$18-L93))/$A93-1 -> 0.5645494518 | R93: =($A93*P93)+$A93 -> 511.6150193 | S93: =IF((($A93*Q93)+$A93)>1500,1500,($A93*Q93)+$A93) -> 1095.184616 | V93: =Sichtfeld!T94 -> 0.3650129462 | W93: =Sichtfeld!U94 -> 0.02281330914 | X93: 1.841063956 | Y93: =$A93+V$18-V93 -> 717.3449871 | Z93: -0.04449927537 | AA93: 0.04873143572 | AB93: =($A93*Z93)+$A93 -> 668.8505072 | AC93: =IF((($A93*AA93)+$A93)>1500,1500,($A93*AA93)+$A93) -> 734.112005
A94: =Sichtfeld!A95 -> 710 | C94: =Sichtfeld!D95 -> 0.04967090753 | D94: =Sichtfeld!E95 -> 0.008278484589 | E94: 3.528974696 | F94: 730.7703291 | G94: -0.4014396054 | H94: 1.825218007 | I94: 424.9778801 | J94: 1500 | L94: =Sichtfeld!L95 -> 0.08864372051 | M94: =Sichtfeld!M95 -> 0.01108046506 | N94: 3.538781628 | O94: 729.9913563 | P94: -0.2717657404 | Q94: 0.5765645556 | R94: 517.0463243 | S94: 1119.360834 | V94: =Sichtfeld!T95 -> 0.3598790419 | W94: =Sichtfeld!U95 -> 0.02249244012 | X94: 1.840486392 | Y94: 727.350121 | Z94: -0.04507757838 | AA94: 0.04942741894 | AB94: 677.9949193 | AC94: 745.0934675
A95: =Sichtfeld!A96 -> 720 | C95: =Sichtfeld!D96 -> 0.04899485656 | D95: =Sichtfeld!E96 -> 0.008165809426 | E95: 3.528580333 | F95: 740.7710051 | G95: -0.404613419 | H95: 1.895467547 | I95: 428.6783383 | J95: 1500 | L95: =Sichtfeld!L96 -> 0.08743258176 | M95: =Sichtfeld!M96 -> 0.01092907272 | N95: 3.538251755 | O95: 739.9925674 | P95: -0.2743910547 | Q95: 0.5887658122 | R95: 522.4384406 | S95: 1143.911385 | V95: =Sichtfeld!T96 -> 0.3548876214 | W95: =Sichtfeld!U96 -> 0.02218047634 | X95: 1.839924857 | Y95: 737.3551124 | Z95: -0.04565517424 | AA95: 0.05012431747 | AB95: 687.1282745 | AC95: 756.0895086
A96: =Sichtfeld!A97 -> 730 | C96: =Sichtfeld!D97 -> 0.04833696257 | D96: =Sichtfeld!E97 -> 0.008056160428 | E96: 3.528196561 | F96: 750.771663 | G96: -0.407753815 | H96: 1.969301108 | I96: 432.339715 | J96: 1500 | L96: =Sichtfeld!L97 -> 0.08625409628 | M96: =Sichtfeld!M97 -> 0.01078176204 | N96: 3.537736167 | O96: 749.9937459 | P96: -0.2769975468 | Q96: 0.6011575738 | R96: 527.7917908 | S96: 1168.845029 | V96: =Sichtfeld!T97 -> 0.3500328313 | W96: =Sichtfeld!U97 -> 0.02187705196 | X96: 1.839378694 | Y96: 747.3599672 | Z96: -0.04623206458 | AA96: 0.05082213349 | AB96: 696.2505929 | AC96: 767.1001574
A97: =Sichtfeld!A98 -> 740 | C97: =Sichtfeld!D98 -> 0.04769650374 | D97: =Sichtfeld!E98 -> 0.007949417291 | E97: 3.527822961 | F97: 760.7723035 | G97: -0.4108613161 | H97: 2.047000088 | I97: 435.9626261 | J97: 1500 | L97: =Sichtfeld!L98 -> 0.08510696095 | M97: =Sichtfeld!M98 -> 0.01063837012 | N97: 3.537234295 | O97: 759.994893 | P97: -0.279585417 | Q97: 0.61374433 | R97: 533.1067914 | S97: 1194.170804 | V97: =Sichtfeld!T98 -> 0.3453091348 | W97: =Sichtfeld!U98 -> 0.02158182093 | X97: =V$12*(1+W97) -> 1.838847278 | Y97: 757.3646909 | Z97: =(Y97*V$11^2/(V$11^2+X97*V$13/1000*(Y97-V$11))-(V$18-V97))/$A97-1 -> -0.04680825099 | AA97: =(Y97*V$11^2/(V$11^2-X97*V$13/1000*(Y97-V$11))-(V$18-V97))/$A97-1 -> 0.05152086919 | AB97: 705.3618943 | AC97: 778.1254432
A98: =Sichtfeld!A99 -> 750 | C98: =Sichtfeld!D99 -> 0.04707279601 | D98: =Sichtfeld!E99 -> 0.007845466002 | E98: 3.527459131 | F98: 770.7729272 | G98: -0.4139364339 | H98: 2.128876135 | I98: 439.5476745 | J98: 1500 | L98: =Sichtfeld!L99 -> 0.0839899411 | M98: =Sichtfeld!M99 -> 0.01049874264 | N98: 3.536745599 | O98: 769.9960101 | P98: -0.2821548625 | Q98: 0.626530713 | R98: 538.3838531 | S98: 1219.898035 | V98: =Sichtfeld!T99 -> 0.3407112905 | W98: =Sichtfeld!U99 -> 0.02129445566 | X98: 1.83833002 | Y98: 767.3692887 | Z98: -0.04738373505 | AA98: 0.05222052674 | AB98: 714.4621987 | AC98: 789.1653951
A99: =Sichtfeld!A100 -> 760 | C99: =Sichtfeld!D100 -> 0.04646519064 | D99: =Sichtfeld!E100 -> 0.00774419844 | E99: 3.527104695 | F99: 780.7735348 | G99: -0.4169796699 | H99: 2.215275332 | I99: 443.0954508 | J99: 1500 | L99: =Sichtfeld!L100 -> 0.08290186602 | M99: =Sichtfeld!M100 -> 0.01036273325 | N99: 3.536269566 | O99: 779.9970981 | P99: -0.2847060782 | Q99: 0.6395215029 | R99: 543.6233806 | S99: 1246.036342 | V99: =Sichtfeld!T100 -> 0.3362343327 | W99: =Sichtfeld!U100 -> 0.02101464579 | X99: 1.837826362 | Y99: 777.3737657 | Z99: -0.04795851831 | AA99: 0.05292110831 | AB99: 723.5515261 | AC99: 800.2200423
A100: =Sichtfeld!A101 -> 770 | C100: =Sichtfeld!D101 -> 0.04587307196 | D100: =Sichtfeld!E101 -> 0.007645511994 | E100: 3.526759292 | F100: 790.7741269 | G100: -0.4199915153 | H100: 2.306583079 | I100: 446.6065332 | J100: 1500 | L100: =Sichtfeld!L101 -> 0.08184162496 | M100: =Sichtfeld!M101 -> 0.01023020312 | N100: 3.535805711 | O100: 789.9981584 | P100: -0.2872392559 | Q100: 0.6527216345 | R100: 548.8257729 | S100: 1272.595659 | V100: =Sichtfeld!T101 -> 0.3318735536 | W100: =Sichtfeld!U101 -> 0.0207420971 | X100: 1.837335775 | Y100: 787.3781264 | Z100: -0.04853260232 | AA100: 0.05362261602 | AB100: 732.6298962 | AC100: 811.2894143
A101: =Sichtfeld!A102 -> 780 | C101: =Sichtfeld!D102 -> 0.04529585531 | D101: =Sichtfeld!E102 -> 0.007549309218 | E101: 3.526422582 | F101: 800.7747041 | G101: -0.4229724513 | H101: 2.403229846 | I101: 450.081488 | J101: 1500 | L101: =Sichtfeld!L102 -> 0.08080816327 | M101: =Sichtfeld!M102 -> 0.01010102041 | N101: 3.535353571 | O101: 799.9991918 | P101: -0.2897545852 | Q101: 0.6661362028 | R101: 553.9914235 | S101: 1299.586238 | V101: =Sichtfeld!T102 -> 0.3276244871 | W101: =Sichtfeld!U102 -> 0.02047653044 | X101: 1.836857755 | Y101: 797.3823755 | Z101: -0.04910598859 | AA101: 0.05432505203 | AB101: 741.6973289 | AC101: 822.3735406
A102: =Sichtfeld!A103 -> 790 | C102: =Sichtfeld!D103 -> 0.04473298506 | D102: =Sichtfeld!E103 -> 0.007455497511 | E102: 3.526094241 | F102: 810.775267 | G102: -0.4259229494 | H102: 2.505697957 | I102: 453.52087 | J102: 1500 | L102: =Sichtfeld!L103 -> 0.0798004789 | M102: =Sichtfeld!M103 -> 0.009975059863 | N102: 3.53491271 | O102: 810.0001995 | P102: -0.2922522529 | Q102: 0.6797704697 | R102: 559.1207202 | S102: 1327.018671 | V102: =Sichtfeld!T103 -> 0.323482893 | W102: =Sichtfeld!U103 -> 0.02021768081 | X102: 1.836391825 | Y102: 807.3865171 | Z102: -0.04967867863 | AA102: 0.05502841845 | AB102: 750.7538439 | AC102: 833.4724506
A103: =Sichtfeld!A104 -> 800 | C103: =Sichtfeld!D104 -> 0.04418393292 | D103: =Sichtfeld!E104 -> 0.00736398882 | E103: 3.525773961 | F103: 820.7758161 | G103: -0.4288434717 | H103: 2.61452964 | I103: 456.9252226 | J103: 1500 | L103: =Sichtfeld!L104 -> 0.07881761922 | M103: =Sichtfeld!M104 -> 0.009852202403 | N103: 3.534482708 | O103: 820.0011824 | P103: -0.2947324432 | Q103: 0.6936298713 | R103: 564.2140454 | S103: 1354.903897 | V103: =Sichtfeld!T104 -> 0.319444743 | W103: =Sichtfeld!U104 -> 0.01996529644 | X103: 1.835937534 | Y103: 817.3905553 | Z103: -0.05025067391 | AA103: 0.0557327174 | AB103: 759.7994609 | AC103: 844.5861739
A104: =Sichtfeld!A105 -> 810 | C104: =Sichtfeld!D105 -> 0.04364819617 | D104: =Sichtfeld!E105 -> 0.007274699362 | E104: 3.525461448 | F104: 830.7763518 | G104: -0.4317344712 | H104: 2.730336623 | I104: 460.2950783 | J104: 1500 | L104: =Sichtfeld!L105 -> 0.07785867796 | M104: =Sichtfeld!M105 -> 0.009732334744 | N104: 3.534063172 | O104: 830.0021413 | P104: -0.297195338 | Q104: 0.7077200245 | R104: 569.2717762 | S104: 1383.25322 | V104: =Sichtfeld!T105 -> 0.3155062081 | W104: =Sichtfeld!U105 -> 0.01971913801 | X104: 1.835494448 | Y104: 827.3944938 | Z104: -0.05082197591 | AA104: 0.056437951 | AB104: 768.8341995 | AC104: 855.7147403
A105: =Sichtfeld!A106 -> 820 | C105: =Sichtfeld!D106 -> 0.04312529622 | D105: =Sichtfeld!E106 -> 0.00718754937 | E105: 3.525156423 | F105: 840.7768747 | G105: -0.4345963918 | H105: 2.853811644 | I105: 463.6309587 | J105: 1500 | L105: =Sichtfeld!L106 -> 0.07692279242 | M105: =Sichtfeld!M106 -> 0.009615349052 | N105: 3.533653722 | O105: 840.0030772 | P105: -0.2996411165 | Q105: 0.7220467351 | R105: 574.2942844 | S105: 1412.078323 | V105: =Sichtfeld!T106 -> 0.3116636456 | W105: =Sichtfeld!U106 -> 0.01947897785 | X105: 1.83506216 | Y105: 837.3983364 | Z105: -0.05139258609 | AA105: 0.05714412134 | AB105: 777.8580794 | AC105: 866.8581795
A106: =Sichtfeld!A107 -> 830 | C106: =Sichtfeld!D107 -> 0.04261477714 | D106: =Sichtfeld!E107 -> 0.007102462856 | E106: 3.52485862 | F106: 850.7773852 | G106: -0.4374296684 | H106: 2.985742311 | I106: 466.9333752 | J106: 1500 | L106: =Sichtfeld!L107 -> 0.07600914092 | M106: =Sichtfeld!M107 -> 0.009501142616 | N106: 3.533253999 | O106: 850.0039909 | P106: -0.3020699557 | Q106: 0.7366160056 | R106: 579.2819367 | S106: 1441.391285 | V106: =Sichtfeld!T107 -> 0.3079135886 | W106: =Sichtfeld!U107 -> 0.01924459929 | X106: 1.834640279 | Y106: 847.4020864 | Z106: -0.05196250589 | AA106: 0.05785123052 | AB106: 786.8711201 | AC106: 878.0165213
A107: =Sichtfeld!A108 -> 840 | C107: =Sichtfeld!D108 -> 0.04211620432 | D107: =Sichtfeld!E108 -> 0.007019367386 | E107: 3.524567786 | F107: 860.7778838 | G107: -0.4402347278 | H107: 3.127027926 | I107: 470.2028287 | J107: 1500 | L107: =Sichtfeld!L108 -> 0.07511694038 | M107: =Sichtfeld!M108 -> 0.009389617547 | N107: 3.532863661 | O107: 860.0048831 | P107: -0.3044820301 | Q107: 0.7514340434 | R107: 584.2350947 | S107: 1471.204596 | V107: =Sichtfeld!T108 -> 0.3042527352 | W107: =Sichtfeld!U108 -> 0.01901579595 | X107: 1.834228433 | Y107: 857.4057473 | Z107: -0.05253173673 | AA107: 0.05855928065 | AB107: 795.8733412 | AC107: 889.1897957
A108: =Sichtfeld!A109 -> 850 | C108: =Sichtfeld!D109 -> 0.04162916328 | D108: =Sichtfeld!E109 -> 0.00693819388 | E108: 3.524283679 | F108: 870.7783708 | G108: -0.4430119879 | H108: 3.278700008 | I108: 473.4398103 | J108: 1500 | L108: =Sichtfeld!L109 -> 0.07424544403 | M108: =Sichtfeld!M109 -> 0.009280680503 | N108: 3.532482382 | O108: 870.0057546 | P108: -0.3068775119 | Q108: 0.7665072699 | R108: 589.1541149 | S108: 1500 | V108: =Sichtfeld!T109 -> 0.3006779388 | W108: =Sichtfeld!U109 -> 0.01879237117 | X108: 1.833826268 | Y108: 867.4093221 | Z108: -0.05310028003 | AA108: 0.05926827379 | AB108: 804.864762 | AC108: 900.3780327
A109: =Sichtfeld!A110 -> 860 | C109: =Sichtfeld!D110 -> 0.04115325849 | D109: =Sichtfeld!E110 -> 0.006858876415 | E109: 3.524006067 | F109: 880.7788467 | G109: -0.4457618589 | H109: 3.441947517 | I109: 476.6448013 | J109: 1500 | L109: =Sichtfeld!L110 -> 0.0733939394 | M109: =Sichtfeld!M110 -> 0.009174242425 | N109: 3.532109848 | O109: 880.0066061 | P109: -0.3092565708 | Q109: 0.7818423296 | R109: 594.0393491 | S109: 1500 | V109: =Sichtfeld!T110 -> 0.2971861991 | W109: =Sichtfeld!U110 -> 0.01857413744 | X109: 1.833433447 | Y109: 877.4128138 | Z109: -0.05366813719 | AA109: 0.05997821204 | AB109: 813.845402 | AC109: 911.5812624
A110: =Sichtfeld!A111 -> 870 | C110: =Sichtfeld!D111 -> 0.0406881123 | D110: =Sichtfeld!E111 -> 0.006781352049 | E110: 3.523734732 | F110: 890.7793119 | G110: -0.4484847428 | H110: 3.618148089 | I110: 479.8182737 | J110: 1500 | L110: =Sichtfeld!L111 -> 0.07256174633 | M110: =Sichtfeld!M111 -> 0.009070218292 | N110: 3.531745764 | O110: 890.0074383 | P110: -0.3116193745 | Q110: 0.7974461001 | R110: 598.8911442 | S110: 1500 | V110: =Sichtfeld!T111 -> 0.2937746539 | W110: =Sichtfeld!U111 -> 0.01836091587 | X110: 1.833049649 | Y110: 887.4162253 | Z110: -0.05423530962 | AA110: 0.06068909748 | AB110: 822.8152806 | AC110: 922.7995148
A111: =Sichtfeld!A112 -> 880 | C111: =Sichtfeld!D112 -> 0.04023336394 | D111: =Sichtfeld!E112 -> 0.006705560657 | E111: 3.523469462 | F111: 900.7797666 | G111: -0.4511810338 | H111: 3.808907003 | I111: 482.9606902 | J111: 1500 | L111: =Sichtfeld!L112 -> 0.07174821519 | M111: =Sichtfeld!M112 -> 0.008968526899 | N111: 3.531389844 | O111: 900.0082518 | P111: -0.3139660883 | Q111: 0.8133257018 | R111: 603.7098423 | S111: 1500 | V111: =Sichtfeld!T112 -> 0.2904405709 | W111: =Sichtfeld!U112 -> 0.01815253568 | X111: 1.832674564 | Y111: 897.4195594 | Z111: -0.05480179868 | AA111: 0.06140093218 | AB111: 831.7744172 | AC111: 934.0328203
A112: =Sichtfeld!A113 -> 890 | C112: =Sichtfeld!D113 -> 0.03978866862 | D112: =Sichtfeld!E113 -> 0.00663144477 | E112: 3.523210057 | F112: 910.7802113 | G112: -0.4538511187 | H112: 4.01610623 | I112: 486.0725044 | J112: 1500 | L112: =Sichtfeld!L113 -> 0.07095272513 | M112: =Sichtfeld!M113 -> 0.008869090642 | N112: 3.531041817 | O112: 910.0090473 | P112: -0.3162968753 | Q112: 0.8294885096 | R112: 608.495781 | S112: 1500 | V112: =Sichtfeld!T113 -> 0.2871813405 | W112: =Sichtfeld!U113 -> 0.01794883378 | X112: 1.832307901 | Y112: 907.4228187 | Z112: -0.05536760575 | AA112: 0.06211371823 | AB112: 840.7228309 | AC112: 945.2812092
A113: =Sichtfeld!A114 -> 900 | C113: =Sichtfeld!D114 -> 0.03935369659 | D113: =Sichtfeld!E114 -> 0.006558949431 | E113: 3.522956323 | F113: 920.7806463 | G113: -0.4564953765 | H113: 4.241966729 | I113: 489.1541611 | J113: 1500 | L113: =Sichtfeld!L114 -> 0.07017468258 | M113: =Sichtfeld!M114 -> 0.008771835322 | N113: 3.530701424 | O113: 920.0098253 | P113: -0.3186118966 | Q113: 0.8459421636 | R113: 613.2492931 | S113: 1500 | V113: =Sichtfeld!T114 -> 0.2839944692 | W113: =Sichtfeld!U114 -> 0.01774965433 | X113: 1.831949378 | Y113: 917.4260055 | Z113: -0.0559327322 | AA113: 0.06282745768 | AB113: 849.660541 | AC113: 956.5447119
A114: =Sichtfeld!A115 -> 910 | C114: =Sichtfeld!D115 -> 0.03892813239 | D114: =Sichtfeld!E115 -> 0.006488022065 | E114: 3.522708077 | F114: 930.7810719 | G114: -0.4591141794 | H114: 4.489128373 | I114: 492.2060967 | J114: 1500 | L114: =Sichtfeld!L115 -> 0.06941351969 | M114: =Sichtfeld!M115 -> 0.008676689961 | N114: 3.530368415 | O114: 930.0105865 | P114: -0.3209113109 | Q114: 0.8626945815 | R114: 617.9707071 | S114: 1500 | V114: =Sichtfeld!T115 -> 0.2808775731 | W114: =Sichtfeld!U115 -> 0.01755484832 | X114: 1.831598727 | Y114: 927.4291224 | Z114: -0.05649717937 | AA114: 0.06354215262 | AB114: 858.5875668 | AC114: 967.8233589
A115: =Sichtfeld!A116 -> 920 | C115: =Sichtfeld!D116 -> 0.03851167406 | D115: =Sichtfeld!E116 -> 0.006418612344 | E115: 3.522465143 | F115: 940.7814883 | G115: -0.4617078924 | H115: 4.760753605 | I115: 495.228739 | J115: 1500 | L115: =Sichtfeld!L116 -> 0.06866869302 | M115: =Sichtfeld!M116 -> 0.008583586627 | N115: 3.530042553 | O115: 940.0113313 | P115: -0.3231952749 | Q115: 0.879753971 | R115: 622.660347 | S115: 1500 | V115: =Sichtfeld!T116 -> 0.2778283718 | W115: =Sichtfeld!U116 -> 0.01736427324 | X115: 1.831255692 | Y115: 937.4321716 | Z115: -0.05706094861 | AA115: 0.06425780511 | AB115: 867.5039273 | AC115: 979.1171807
A116: =Sichtfeld!A117 -> 930 | C116: =Sichtfeld!D117 -> 0.03810403243 | D116: =Sichtfeld!E117 -> 0.006350672071 | E116: 3.522227352 | F116: 950.781896 | G116: -0.4642768733 | H116: 5.060663477 | I116: 498.2225078 | J116: 1500 | L116: =Sichtfeld!L117 -> 0.06793968219 | M116: =Sichtfeld!M117 -> 0.008492460274 | N116: 3.529723611 | O116: 950.0120603 | P116: -0.3254639434 | Q116: 0.8971288438 | R116: 627.3185326 | S116: 1500 | V116: =Sichtfeld!T117 -> 0.274844683 | W116: =Sichtfeld!U117 -> 0.01717779269 | X116: 1.830920027 | Y116: 947.4351553 | Z116: -0.05762404125 | AA116: 0.06497441723 | AB116: 876.4096416 | AC116: 990.426208
A117: =Sichtfeld!A118 -> 940 | C117: =Sichtfeld!D118 -> 0.03770493042 | D117: =Sichtfeld!E118 -> 0.00628415507 | E117: 3.521994543 | F117: 960.7822951 | G117: -0.4668214736 | H117: 5.393518513 | I117: 501.1878149 | J117: 1500 | L117: =Sichtfeld!L118 -> 0.06722598871 | M117: =Sichtfeld!M118 -> 0.008403248589 | N117: 3.52941137 | O117: 960.012774 | P117: -0.327717469 | Q117: 0.9148280289 | R117: 631.9455791 | S117: 1500 | V117: =Sichtfeld!T118 -> 0.2719244172 | W117: =Sichtfeld!U118 -> 0.01699527607 | X117: 1.830591497 | Y117: 957.4380756 | Z117: -0.05818645862 | AA117: 0.06569199104 | AB117: 885.3047289 | AC117: 1001.750472
A118: =Sichtfeld!A119 -> 950 | C118: =Sichtfeld!D119 -> 0.03731410247 | D118: =Sichtfeld!E119 -> 0.006219017078 | E118: 3.52176656 | F118: 970.7826859 | G118: -0.4693420378 | H118: 5.765062648 | I118: 504.1250641 | J118: 1500 | L118: =Sichtfeld!L119 -> 0.06652713481 | M118: =Sichtfeld!M119 -> 0.008315891851 | N118: 3.529105621 | O118: 970.0134729 | P118: -0.3299560022 | Q118: 0.9328606885 | R118: 636.5417979 | S118: 1500 | V118: =Sichtfeld!T119 -> 0.2690655728 | W118: =Sichtfeld!U119 -> 0.0168165983 | X118: 1.830269877 | Y118: 967.4409344 | Z118: -0.05874820203 | AA118: 0.06641052861 | AB118: 894.1892081 | AC118: 1013.090002
A119: =Sichtfeld!A120 -> 960 | C119: =Sichtfeld!D120 -> 0.0369312939 | D119: =Sichtfeld!E120 -> 0.00615521565 | E119: 3.521543255 | F119: 980.7830687 | G119: -0.4718389044 | H119: 6.182457472 | I119: 507.0346518 | J119: 1500 | L119: =Sichtfeld!L120 -> 0.06584266239 | M119: =Sichtfeld!M120 -> 0.008230332799 | N119: 3.528806165 | O119: 980.0141573 | P119: -0.3321796918 | Q119: 0.9512363329 | R119: 641.1074959 | S119: 1500 | V119: =Sichtfeld!T120 -> 0.2662662317 | W119: =Sichtfeld!U120 -> 0.01664163948 | X119: 1.829954951 | Y119: 977.4437338 | Z119: -0.0593092728 | AA119: 0.06713003202 | AB119: 903.0630981 | AC119: 1024.444831
A120: =Sichtfeld!A121 -> 970 | C120: =Sichtfeld!D121 -> 0.03655626039 | D120: =Sichtfeld!E121 -> 0.006092710065 | E120: 3.521324485 | F120: 990.7834437 | G120: -0.4743124051 | H120: 6.65474835 | I120: 509.916967 | J120: 1500 | L120: =Sichtfeld!L121 -> 0.06517213201 | M120: =Sichtfeld!M121 -> 0.008146516502 | N120: 3.528512808 | O120: 990.0148279 | P120: -0.3343886844 | Q120: 0.9699648381 | R120: 645.6429761 | S120: 1500 | V120: =Sichtfeld!T121 -> 0.2635245548 | W120: =Sichtfeld!U121 -> 0.01647028468 | X120: 1.829646512 | Y120: 987.4464754 | Z120: -0.05986967222 | AA120: 0.06785050332 | AB120: 911.9264179 | AC120: 1035.814988
A121: =Sichtfeld!A122 -> 980 | C121: =Sichtfeld!D122 -> 0.03618876744 | D121: =Sichtfeld!E122 -> 0.00603146124 | E121: 3.521110114 | F121: 1000.783811 | G121: -0.476762866 | H121: 7.193527408 | I121: 512.7723913 | J121: 1500 | L121: =Sichtfeld!L122 -> 0.06451512197 | M121: =Sichtfeld!M122 -> 0.008064390246 | N121: 3.528225366 | O121: 1000.015485 | P121: -0.3365831249 | Q121: 0.9890564629 | R121: 650.1485376 | S121: 1500 | V121: =Sichtfeld!T122 -> 0.2608387781 | W121: =Sichtfeld!U122 -> 0.01630242363 | X121: 1.829344363 | Y121: 997.4491612 | Z121: -0.06042940159 | AA121: 0.06857194459 | AB121: 920.7791864 | AC121: 1047.200506
A122: =Sichtfeld!A123 -> 990 | C122: =Sichtfeld!D123 -> 0.03582858988 | D122: =Sichtfeld!E123 -> 0.005971431647 | E122: 3.520900011 | F122: 1010.784171 | G122: -0.4791906067 | H122: 7.813897702 | I122: 515.6012993 | J122: 1500 | L122: =Sichtfeld!L123 -> 0.06387122738 | M122: =Sichtfeld!M123 -> 0.007983903423 | N122: 3.527943662 | O122: 1010.016129 | P122: -0.3387631562 | Q122: 1.008521868 | R122: 654.6244754 | S122: 1500 | V122: =Sichtfeld!T123 -> 0.2582072087 | W122: =Sichtfeld!U123 -> 0.01613795055 | X122: 1.829048311 | Y122: 1007.451793 | Z122: -0.0609884622 | AA122: 0.06929435791 | AB122: 929.6214224 | AC122: 1058.601414
A123: =Sichtfeld!A124 -> 1000 | C123: =Sichtfeld!D124 -> 0.03547551143 | D123: =Sichtfeld!E124 -> 0.005912585239 | E123: 3.520694048 | F123: 1020.784524 | G123: -0.4815959413 | H123: 8.535911324 | I123: 518.4040587 | J123: 1500 | L123: =Sichtfeld!L124 -> 0.06324005939 | M123: =Sichtfeld!M124 -> 0.007905007423 | N123: 3.527667526 | O123: 1020.01676 | P123: -0.3409289193 | Q123: 1.028372134 | R123: 659.0710807 | S123: 1500 | V123: =Sichtfeld!T124 -> 0.2556282215 | W123: =Sichtfeld!U124 -> 0.01597676385 | X123: 1.828758175 | Y123: 1017.454372 | Z123: -0.06154685532 | AA123: 0.07001774534 | AB123: 938.4531447 | AC123: 1070.017745
C154: y = 0.0031x2 + 0.2133x + 68.382

Sheet Daten Gesamt (hidden)
A1: Gerät | B1: IDC200.W06 | D1: IDC200.W08 | F1: IDC200.W16
A2: Wertebereich (Nutzabstand) | B2: 50 | C2: 1000 | D2: 50 | E2: 1000 | F2: 100 | G2: 1000
A3: Bereich | B3: Bildfeld | D3: Bildfeld | F3: Bildfeld
A4: Bereich x/ y | B4: Bildfeld x in mm | C4: Bildfeld y in mm | D4: Bildfeld x in mm | E4: Bildfeld y in mm | F4: Bildfeld x in mm | G4: Bildfeld y in mm
A5: Funktion | B5: y = 0.6395x + 9.4062 | C5: y = 0.4x + 6 | D5: y = 0.4807x + 5.4607 | E5: y = 0.301x + 3.4154 | F5: y = 0.2399x + 0.0592 | G5: y = 0.1502x + 0.0912
A6: Bereich | B6: Modulgrösse | D6: Modulgrösse | F6: Modulgrösse
A7: Bereich 1D / 2D | B7: 1D | C7: 2D | D7: 1D | E7: 2D | F7: 1D | G7: 2D
A8: Funktion | B8: y = 0.0008x + 0.0108 | C8: y = 0.0015x + 0.0219 | D8: y = 0.0006x + 0.0065 | E8: y = 0.0011x + 0.0129 | F8: y = 0.0003x + 3E-05 | G8: y = 0.0006x - 8E-05
A9: Bereich | B9: Schärfentiefe | D9: Schärfentiefe | F9: Schärfentiefe
A10: Bereich nah/fern | B10: nah | C10: fern | D10: nah | E10: fern | F10: nah | G10: fern
A11: Funktion | B11: y = -0.0003x2 + 0.7875x + 15.973 | F11: y = -0.0057x2 + 9.9606x - 9.5868 | G11: y = 0.0071x2 + 9.9734x - 9.5555
A13: Fixwerte

Sheet IDC Sichtfeldrechner
D2: IDC Sichtfeldrechner
B6: =IF(K18=1,"IDC200.W06",IF(K18=2,"IDC200.W08","IDC200.W16")) -> IDC200.W08 | F6: Leseabstand eingeben: | H6: 500
C8: Leseabstand
C9: =H6 -> 500 | E9: Modulgrösse eingeben (optional):
H10: =IF(ISNUMBER(H9),H9*39.37,"") -> 
B11: Sichtfeldbreite
B12: =IF(K18=1,$C$24,IF(K18=2,$E$24,IF(K18=3,$G$24,""))) -> 245.7383947
B16: Sichtfeldhöhe
B17: =IF(K18=1,$D$24,IF(K18=2,$F$24,IF(K18=3,$H$24,""))) -> 153.5864967
K18: 2
B22: Ergebnisse
B23: Leseabstand [mm] | C23: =H6 -> 500 | E23: =H6 -> 500 | G23: =H6 -> 500
B24: Sichtfeld x*y [mm] | C24: =IF(ISNUMBER(C71),$C$56/C71,"") -> 329.4400404 | D24: =IF(ISNUMBER(C71),$C$57/C71,"") -> 205.9000253 | E24: =IF(ISNUMBER(E71),$C$56/E71,"") -> 245.7383947 | F24: =IF(ISNUMBER(E71),$C$57/E71,"") -> 153.5864967 | G24: =IF(ISNUMBER(G71),$C$56/G71,"") -> 120.287814 | H24: =IF(ISNUMBER(G71),$C$57/G71,"") -> 75.17988376
B25: Tiefenscharfe von…bis [mm] bis max. 1.5m | C25: =$H$6*$C$99+$H$6 -> 336.9923938 | D25: =IF(($H$6*$C$100+$H$6)>1500,1500,$H$6*$C$100+$H$6) -> 935.9066744 | E25: =$H$6*$E$99+$H$6 -> 394.0498168 | F25: =IF(($H$6*$E$100+$H$6)>1500,1500,$H$6*$E$100+$H$6) -> 678.8297344 | G25: =IF(ISNUMBER(G99),$H$6*$G$99+$H$6,"") -> 483.6090396 | H25: =IF(ISNUMBER(G100),$H$6*$G$100+$H$6,"") -> 517.5001842
B26: Code Modulgrösse
B27: minimale Modulgrösse 1D [mm] | [mil] | C27: =IF(ISNUMBER($C$71),$C$58*$C$54/$C$71,"")/1000 -> 0.3860625474 | D27: =C27*39.37 -> 15.19928249 | E27: =IF(ISNUMBER(E71),$C$58*$C$54/E71,"")/1000 -> 0.2879746813 | F27: =E27*39.37 -> 11.3375632 | G27: =IF(ISNUMBER(G24),$C$58*$C$54/G71/1000,"") -> 0.1409622821 | H27: =IF(ISNUMBER(G24),G27*39.37,"") -> 5.549685044
B28: minimale Modulgrösse 2D [mm] | [mil] | C28: =IF(ISNUMBER(C71),$C$59*$C$54/C71,"")/1000 -> 0.7721250947 | D28: =C28*39.37 -> 30.39856498 | E28: =IF(ISNUMBER(E71),$C$59*$C$54/E71,"")/1000 -> 0.5759493626 | F28: =E28*39.37 -> 22.67512641 | G28: =IF(ISNUMBER(G71),$C$59*$C$54/G71/1000,"") -> 0.2819245641 | H28: =IF(ISNUMBER(G24),G28*39.37,"") -> 11.09937009
B29: Textgrösse
B30: Mindesttexthöhe [mm] | C30: =C24/$C$53*25 -> 6.434375789 | E30: =F24/E52*25 -> 4.799578022 | G30: =IF(ISNUMBER(H24),H24/G52*25,"") -> 2.349371368
B31: Pixelgrösse
B32: Pixel pro Milimeter | C32: =C53/C24 -> 3.885380776 | E32: =E52/F24 -> 5.208791249 | G32: =G52/H24 -> 10.64114441
B51: Hilfsdaten:
B52: Bildhöhe | C52: 800 | E52: 800 | G52: 800
B53: Bildbreite | C53: 1280 | E53: 1280 | G53: 1280
B54: Pixelgrösse | C54: 3 | E54: 3 | G54: 3
B55: Abstand Gehäusefront zu Sensor [mm] | C55: 34 | E55: 34 | G55: 34
B56: Sensorbreite [mm] | C56: 3.84 | E56: 3.84 | G56: 3.84
B57: Sensorhöhe [mm] | C57: 2.4 | E57: 2.4 | G57: 2.4
B58: Min. Breite Modul 1D-Code [px] | C58: 1.5 | E58: 1.5 | G58: 1.5
B59: Min. Breite Modul 2D-Code [px] | C59: 3 | E59: 3 | G59: 3
B60: Brennweite f [mm] | C60: 6 | E60: 8 | G60: 16
B61: Hauptebene 1 [mm] | C61: 9.02 | E61: 8.28 | G61: 5.85
B62: Hauptebene 2 [mm] | C62: 16.37 | E62: 14.11 | G62: 9.67
B63: Bildebene [mm] | C63: 22.2 | E63: 22.2 | G63: 22.14
B64: Position Front Objektiv bei unendlich | C64: 22.2 | E64: 22.2 | G64: 22.14
B65: Abstand Gehäusefront zu H1 bei unendlich => g_i [mm] | C65: 20.82 | E65: 20.08 | G65: 17.71
B66: x_max [mm] | C66: 2.6 | E66: 2.6 | G66: 2.6
B67: Min. Arbeitsabstand [mm] | C67: 50 | E67: 50 | G67: 100
B69: p | C69: =$C$60-$H$6-C65 -> -514.82 | E69: =E60-$H$6-E65 -> -512.08 | G69: =G60-$H$6-G65 -> -501.71
B70: x | C70: =IF(C69^2/4-C$60^2 >=0,-C69/2-SQRT(C69^2/4-C$60^2),"") -> 0.06993685398 | E70: =IF(E69^2/4-E$60^2 >=0,-E69/2-SQRT(E69^2/4-E$60^2),"") -> 0.12501099 | G70: =IF(G69^2/4-G$60^2 >=0,-G69/2-SQRT(G69^2/4-G$60^2),"") -> 0.5107749318
B71: beta | C71: =IF(H6>49,IF(AND(ISNUMBER(C70),C70<C$66),(C$60+C70)/($H6+C$65-C70),""),"") -> 0.01165614233 | E71: =IF(AND(ISNUMBER(E70),E70<E$66,H6>49),(E$60+E70)/($H6+E$65-E70),"") -> 0.01562637375 | G71: =IF(AND(ISNUMBER(G70),G70<G$66),(G$60+G70)/($H6+G$65-G70),"") -> 0.03192343324
C72: 1D | D72: 2D | E72: 1D | F72: 2D | G72: 1D | H72: 2D
B73: beta min (min. Auflösung) | C73: =C$58*C$54/$H$9 ->  | D73: =C$59*C$54/$H$9 ->  | E73: =E$58*E$54/$H$9 ->  | F73: =E$59*E$54/$H$9 ->  | G73: =G$58*G$54/$H$9 ->  | H73: =G$59*G$54/$H$9 -> 
B74: p für x-Berechnung | C74: =(1-C73)*C$60 ->  | D74: =(1-D73)*C$60 ->  | E74: =(1-E73)*E$60 ->  | F74: =(1-F73)*E$60 ->  | G74: =(1-G73)*G$60 ->  | H74: =(1-H73)*G$60 -> 
B75: q für x-Berechnung | C75: =-C73*C$60^2 ->  | D75: =-D73*C$60^2 ->  | E75: =-E73*E$60^2 ->  | F75: =-F73*E$60^2 ->  | G75: =-G73*G$60^2 ->  | H75: =-H73*G$60^2 -> 
B76: x | C76: =-C74/2+SQRT((C74/2)^2-C75) -> 
B77: g (gesamt) | C77: =IF(C76<=C$66,(C$60^2+C$60*C76)/C76,0) ->  | D77: =IF(D76<=C$66,(C$60^2+C$60*D76)/D76,0) ->  | E77: =IF(E76<=E$66,(E$60^2+E$60*E76)/E76,0) ->  | F77: =IF(F76<=E$66,(E$60^2+E$60*F76)/F76,0) ->  | G77: =IF(G76<=G$66,(G$60^2+G$60*G76)/G76,0) ->  | H77: =IF(H76<=G$66,(G$60^2+G$60*H76)/H76,0) -> 
B78: g_a (außen) | C78: =IF(C76<=C$66,C77-C$65+C76,0) ->  | D78: =IF(D76<=C$66,D77-C$65+D76,0) ->  | E78: =IF(E76<=E$66,E77-E$65+E76,0) ->  | F78: =IF(F76<=E$66,F77-E$65+F76,0) ->  | G78: =IF(G76<=G$66,G77-G$65+G76,0) ->  | H78: =IF(H76<=G$66,H77-G$65+H76,0) -> 
B79: beta min (opt. Auflösung) | C79: =2*C$58*C$54/$H$9 ->  | D79: =2*C$59*C$54/$H$9 ->  | E79: =2*E$58*E$54/$H$9 ->  | F79: =2*E$59*E$54/$H$9 ->  | G79: =2*G$58*G$54/$H$9 ->  | H79: =2*G$59*G$54/$H$9 -> 
B80: p für x-Berechnung | C80: =(1-C79)*C$60 ->  | D80: =(1-D79)*C$60 ->  | E80: =(1-E79)*E$60 ->  | F80: =(1-F79)*E$60 ->  | G80: =(1-G79)*G$60 ->  | H80: =(1-H79)*G$60 -> 
B81: q für x-Berechnung | C81: =-C79*C$60^2 ->  | D81: =-D79*C$60^2 ->  | E81: =-E79*E$60^2 ->  | F81: =-F79*E$60^2 ->  | G81: =-G79*G$60^2 ->  | H81: =-H79*G$60^2 -> 
B82: x | C82: =-C80/2+SQRT((C80/2)^2-C81) -> 
B83: g (gesamt) | C83: =IF(C82<=C$66,(C$60^2+C$60*C82)/C82,0) ->  | D83: =IF(D82<=C$66,(C$60^2+C$60*D82)/D82,0) ->  | E83: =IF(E82<=E$66,(E$60^2+E$60*E82)/E82,0) ->  | F83: =IF(F82<=E$66,(E$60^2+E$60*F82)/F82,0) ->  | G83: =IF(G82<=G$66,(G$60^2+G$60*G82)/G82,0) ->  | H83: =IF(H82<=G$66,(G$60^2+G$60*H82)/H82,0) -> 
B84: g_a (außen) | C84: =IF(C82<=C$66,C83-C$65+C82,0) ->  | D84: =IF(D82<=C$66,D83-C$65+D82,0) ->  | E84: =IF(E82<=E$66,E83-E$65+E82,0) ->  | F84: =IF(F82<=E$66,F83-E$65+F82,0) ->  | G84: =IF(G82<=G$66,G83-G$65+G82,0) ->  | H84: =IF(H82<=G$66,H83-G$65+H82,0) -> 
B86: SCHÄRFENTIEFE
B87: Brennweite f [mm] | C87: 6 | E87: 8 | G87: 16
B88: Blende | C88: 3.5 | E88: 3.5 | G88: 1.8
B89: ø Zerstreuungskreis Code lesen [µm] | C89: 9 | E89: 9 | G89: 9
B90: Hauptebene 1 [mm] | C90: 9.02 | E90: 8.28 | G90: 5.85
B91: Hauptebene 2 [mm] | C91: 16.37 | E91: 14.11 | G91: 9.67
B92: Bildebene [mm] | C92: 22.2 | E92: 22.2 | G92: 22.14
B93: Position Front Objektiv bei unendlich | C93: 22.2 | E93: 22.2 | G93: 22.14
B94: Abstand Gehäusefront zu H1 bei unendlich => g_i [mm] | C94: 20.82 | E94: 20.08 | G94: 17.71
B95: x_max [mm] | C95: 2.6 | E95: 2.6 | G95: 2.6
B97: k eff. | C97: =$C$88*(1+$C$71) -> 3.540796498 | E97: =$E$88*(1+$E$71) -> 3.554692308 | G97: =IF(ISNUMBER(G71),$G$88*(1+$G$71),"") -> 1.85746218
B98: g | C98: =$H$6+C$94-C$70 -> 520.7500631 | E98: =$H$6+E$94-E$70 -> 519.954989 | G98: =IF(ISNUMBER(G71),$H$6+G$94-G$70,"") -> 517.1992251
B99: nah [%] | C99: =(C98*C$87^2/(C$87^2+C$97*C$89/1000*(C98-C$87))-(C$94-C$70))/$H$6-1 -> -0.3260152124 | E99: =(E98*E$87^2/(E$87^2+E$97*E$89/1000*(E98-E$87))-(E$94-E$70))/$H$6-1 -> -0.2119003664 | G99: =IF(ISNUMBER(G71),(G98*G$87^2/(G$87^2+G$97*G$89/1000*(G98-G$87))-(G$94-G$70))/$H$6-1,"") -> -0.03278192087
B100: fern [%] | C100: =(C98*C$87^2/(C$87^2-C$97*C$89/1000*(C98-C$87))-(C$94-C$70))/$H$6-1 -> 0.8718133489 | E100: =(E98*E$87^2/(E$87^2-E$97*E$89/1000*(E98-E$87))-(E$94-E$70))/$H$6-1 -> 0.3576594687 | G100: =IF(ISNUMBER(G71),(G98*G$87^2/(G$87^2-G$97*G$89/1000*(G98-G$87))-(G$94-G$70))/$H$6-1,"") -> 0.03500036832

Sheet IDC FoV Calculator English (hidden)
A1: Field of View Calculator
A3: =IF(B16=1,"IDC200.W06",IF(B16=2,"IDC200.W08","IDC200.W16")) -> IDC200.W16 | F3: Type in reading distance: | H3: 500
B6: =H3 -> 500
A8: FoV Width | F8: Type in module size: | I8: [mm]
A9: =IF($B$16=1,$B$19,IF($B$16=2,$D$19,IF($B$16=3,$F$19,""))) -> 120.287814 | H9: =IF(ISNUMBER(H8),H8*39.37,"") ->  | I9: [mil]
A13: FoV Height
A14: =IF($B$16=1,$C$19,IF($B$16=2,$E$19,IF($B$16=3,$G$19,""))) -> 75.17988376
B15: Link Website - W06 | D15: Link Website - W08 | F15: Link Website - W16
B16: 3 | C16: 2 | D16: FALSE | F16: FALSE
A17: Results
A18: reading distance [mm] | B18: =H3 -> 500 | D18: =H3 -> 500 | F18: =H3 -> 500
A19: Field of view x*y [mm] | B19: =IF(ISNUMBER(B66),$B$51/B66,"") -> 329.4400404 | C19: =IF(ISNUMBER(B66),$B$52/B66,"") -> 205.9000253 | D19: =IF(ISNUMBER(D66),$B$51/D66,"") -> 245.7383947 | E19: =IF(ISNUMBER(D66),$B$52/D66,"") -> 153.5864967 | F19: =IF(ISNUMBER(F66),$B$51/F66,"") -> 120.287814 | G19: =IF(ISNUMBER(F66),$B$52/F66,"") -> 75.17988376
A20: depth of field from…to [mm] until max. 1.5m | B20: =$H$3*$B$94+$H$3 -> 336.9923938 | C20: =IF(($H$3*$B$95+$H$3)>1500,1500,$H$3*$B$95+$H$3) -> 935.9066744 | D20: =$H$3*$D$94+$H$3 -> 394.0498168 | E20: =IF(($H$3*$D$95+$H$3)>1500,1500,$H$3*$D$95+$H$3) -> 678.8297344 | F20: =IF(ISNUMBER(F94),$H$3*$F$94+$H$3,"") -> 483.6090396 | G20: =IF(ISNUMBER(F95),$H$3*$F$95+$H$3,"") -> 517.5001842
A21: Code module size
A22: minimum module size 1D [mm] | [mil] | B22: =IF(ISNUMBER($B$66),$B$53*$B$49/$B$66,"")/1000 -> 0.3860625474 | C22: =B22*39.37 -> 15.19928249 | D22: =IF(ISNUMBER(D66),$B$53*$B$49/D66,"")/1000 -> 0.2879746813 | E22: =D22*39.37 -> 11.3375632 | F22: =IF(ISNUMBER(F19),$B$53*$B$49/F66/1000,"") -> 0.1409622821 | G22: =IF(ISNUMBER(F19),F22*39.37,"") -> 5.549685044
A23: minimum module size 2D [mm] | [mil] | B23: =IF(ISNUMBER(B66),$B$54*$B$49/B66,"")/1000 -> 0.7721250947 | C23: =B23*39.37 -> 30.39856498 | D23: =IF(ISNUMBER(D66),$B$54*$B$49/D66,"")/1000 -> 0.5759493626 | E23: =D23*39.37 -> 22.67512641 | F23: =IF(ISNUMBER(F66),$B$54*$B$49/F66/1000,"") -> 0.2819245641 | G23: =IF(ISNUMBER(F19),F23*39.37,"") -> 11.09937009
A24: Text size for OCR and OCV
A25: minimum text height [mm] | B25: =B19/$B$48*25 -> 6.434375789 | D25: =E19/D47*25 -> 4.799578022 | F25: =IF(ISNUMBER(G19),G19/F47*25,"") -> 2.349371368
A26: pixel size
A27: pixel per milimeter | B27: =B48/B19 -> 3.885380776 | D27: =D47/E19 -> 5.208791249 | F27: =F47/G19 -> 10.64114441
A46: Hilfsdaten:
A47: Bildhöhe | B47: 800 | D47: 800 | F47: 800
A48: Bildbreite | B48: 1280 | D48: 1280 | F48: 1280
A49: Pixelgrösse | B49: 3 | D49: 3 | F49: 3
A50: Abstand Gehäusefront zu Sensor [mm] | B50: 34 | D50: 34 | F50: 34
A51: Sensorbreite [mm] | B51: 3.84 | D51: 3.84 | F51: 3.84
A52: Sensorhöhe [mm] | B52: 2.4 | D52: 2.4 | F52: 2.4
A53: Min. Breite Modul 1D-Code [px] | B53: 1.5 | D53: 1.5 | F53: 1.5
A54: Min. Breite Modul 2D-Code [px] | B54: 3 | D54: 3 | F54: 3
A55: Brennweite f [mm] | B55: 6 | D55: 8 | F55: 16
A56: Hauptebene 1 [mm] | B56: 9.02 | D56: 8.28 | F56: 5.85
A57: Hauptebene 2 [mm] | B57: 16.37 | D57: 14.11 | F57: 9.67
A58: Bildebene [mm] | B58: 22.2 | D58: 22.2 | F58: 22.14
A59: Position Front Objektiv bei unendlich | B59: 22.2 | D59: 22.2 | F59: 22.14
A60: Abstand Gehäusefront zu H1 bei unendlich => g_i [mm] | B60: 20.82 | D60: 20.08 | F60: 17.71
A61: x_max [mm] | B61: 2.6 | D61: 2.6 | F61: 2.6
A62: Min. Arbeitsabstand [mm] | B62: 50 | D62: 50 | F62: 100
A64: p | B64: =$B$55-$H$3-B60 -> -514.82 | D64: =D55-$H$3-D60 -> -512.08 | F64: =F55-$H$3-F60 -> -501.71
A65: x | B65: =IF(B64^2/4-B$55^2 >=0,-B64/2-SQRT(B64^2/4-B$55^2),"") -> 0.06993685398 | D65: =IF(D64^2/4-D$55^2 >=0,-D64/2-SQRT(D64^2/4-D$55^2),"") -> 0.12501099 | F65: =IF(F64^2/4-F$55^2 >=0,-F64/2-SQRT(F64^2/4-F$55^2),"") -> 0.5107749318
A66: beta | B66: =IF(H3>49,IF(AND(ISNUMBER(B65),B65<B$61),(B$55+B65)/($H3+B$60-B65),""),"") -> 0.01165614233 | D66: =IF(AND(ISNUMBER(D65),D65<D$61,H3>49),(D$55+D65)/($H3+D$60-D65),"") -> 0.01562637375 | F66: =IF(AND(ISNUMBER(F65),F65<F$61),(F$55+F65)/($H3+F$60-F65),"") -> 0.03192343324
B67: 1D | C67: 2D | D67: 1D | E67: 2D | F67: 1D | G67: 2D
A68: beta min (min. Auflösung) | B68: =B$53*B$49/$H$8 ->  | C68: =B$54*B$49/$H$8 ->  | D68: =D$53*D$49/$H$8 ->  | E68: =D$54*D$49/$H$8 ->  | F68: =F$53*F$49/$H$8 ->  | G68: =F$54*F$49/$H$8 -> 
A69: p für x-Berechnung | B69: =(1-B68)*B$55 ->  | C69: =(1-C68)*B$55 ->  | D69: =(1-D68)*D$55 ->  | E69: =(1-E68)*D$55 ->  | F69: =(1-F68)*F$55 ->  | G69: =(1-G68)*F$55 -> 
A70: q für x-Berechnung | B70: =-B68*B$55^2 ->  | C70: =-C68*B$55^2 ->  | D70: =-D68*D$55^2 ->  | E70: =-E68*D$55^2 ->  | F70: =-F68*F$55^2 ->  | G70: =-G68*F$55^2 -> 
A71: x | B71: =-B69/2+SQRT((B69/2)^2-B70) -> 
A72: g (gesamt) | B72: =IF(B71<=B$61,(B$55^2+B$55*B71)/B71,0) ->  | C72: =IF(C71<=B$61,(B$55^2+B$55*C71)/C71,0) ->  | D72: =IF(D71<=D$61,(D$55^2+D$55*D71)/D71,0) ->  | E72: =IF(E71<=D$61,(D$55^2+D$55*E71)/E71,0) ->  | F72: =IF(F71<=F$61,(F$55^2+F$55*F71)/F71,0) ->  | G72: =IF(G71<=F$61,(F$55^2+F$55*G71)/G71,0) -> 
A73: g_a (außen) | B73: =IF(B71<=B$61,B72-B$60+B71,0) ->  | C73: =IF(C71<=B$61,C72-B$60+C71,0) ->  | D73: =IF(D71<=D$61,D72-D$60+D71,0) ->  | E73: =IF(E71<=D$61,E72-D$60+E71,0) ->  | F73: =IF(F71<=F$61,F72-F$60+F71,0) ->  | G73: =IF(G71<=F$61,G72-F$60+G71,0) -> 
A74: beta min (opt. Auflösung) | B74: =2*B$53*B$49/$H$8 ->  | C74: =2*B$54*B$49/$H$8 ->  | D74: =2*D$53*D$49/$H$8 ->  | E74: =2*D$54*D$49/$H$8 ->  | F74: =2*F$53*F$49/$H$8 ->  | G74: =2*F$54*F$49/$H$8 -> 
A75: p für x-Berechnung | B75: =(1-B74)*B$55 ->  | C75: =(1-C74)*B$55 ->  | D75: =(1-D74)*D$55 ->  | E75: =(1-E74)*D$55 ->  | F75: =(1-F74)*F$55 ->  | G75: =(1-G74)*F$55 -> 
A76: q für x-Berechnung | B76: =-B74*B$55^2 ->  | C76: =-C74*B$55^2 ->  | D76: =-D74*D$55^2 ->  | E76: =-E74*D$55^2 ->  | F76: =-F74*F$55^2 ->  | G76: =-G74*F$55^2 -> 
A77: x | B77: =-B75/2+SQRT((B75/2)^2-B76) -> 
A78: g (gesamt) | B78: =IF(B77<=B$61,(B$55^2+B$55*B77)/B77,0) ->  | C78: =IF(C77<=B$61,(B$55^2+B$55*C77)/C77,0) ->  | D78: =IF(D77<=D$61,(D$55^2+D$55*D77)/D77,0) ->  | E78: =IF(E77<=D$61,(D$55^2+D$55*E77)/E77,0) ->  | F78: =IF(F77<=F$61,(F$55^2+F$55*F77)/F77,0) ->  | G78: =IF(G77<=F$61,(F$55^2+F$55*G77)/G77,0) -> 
A79: g_a (außen) | B79: =IF(B77<=B$61,B78-B$60+B77,0) ->  | C79: =IF(C77<=B$61,C78-B$60+C77,0) ->  | D79: =IF(D77<=D$61,D78-D$60+D77,0) ->  | E79: =IF(E77<=D$61,E78-D$60+E77,0) ->  | F79: =IF(F77<=F$61,F78-F$60+F77,0) ->  | G79: =IF(G77<=F$61,G78-F$60+G77,0) -> 
A81: SCHÄRFENTIEFE
A82: Brennweite f [mm] | B82: 6 | D82: 8 | F82: 16
A83: Blende | B83: 3.5 | D83: 3.5 | F83: 1.8
A84: ø Zerstreuungskreis Code lesen [µm] | B84: 9 | D84: 9 | F84: 9
A85: Hauptebene 1 [mm] | B85: 9.02 | D85: 8.28 | F85: 5.85
A86: Hauptebene 2 [mm] | B86: 16.37 | D86: 14.11 | F86: 9.67
A87: Bildebene [mm] | B87: 22.2 | D87: 22.2 | F87: 22.14
A88: Position Front Objektiv bei unendlich | B88: 22.2 | D88: 22.2 | F88: 22.14
A89: Abstand Gehäusefront zu H1 bei unendlich => g_i [mm] | B89: 20.82 | D89: 20.08 | F89: 17.71
A90: x_max [mm] | B90: 2.6 | D90: 2.6 | F90: 2.6
A92: k eff. | B92: =$B$83*(1+$B$66) -> 3.540796498 | D92: =$D$83*(1+$D$66) -> 3.554692308 | F92: =IF(ISNUMBER(F66),$F$83*(1+$F$66),"") -> 1.85746218
A93: g | B93: =$H$3+B$89-B$65 -> 520.7500631 | D93: =$H$3+D$89-D$65 -> 519.954989 | F93: =IF(ISNUMBER(F66),$H$3+F$89-F$65,"") -> 517.1992251
A94: nah [%] | B94: =(B93*B$82^2/(B$82^2+B$92*B$84/1000*(B93-B$82))-(B$89-B$65))/$H$3-1 -> -0.3260152124 | D94: =(D93*D$82^2/(D$82^2+D$92*D$84/1000*(D93-D$82))-(D$89-D$65))/$H$3-1 -> -0.2119003664 | F94: =IF(ISNUMBER(F66),(F93*F$82^2/(F$82^2+F$92*F$84/1000*(F93-F$82))-(F$89-F$65))/$H$3-1,"") -> -0.03278192087
A95: fern [%] | B95: =(B93*B$82^2/(B$82^2-B$92*B$84/1000*(B93-B$82))-(B$89-B$65))/$H$3-1 -> 0.8718133489 | D95: =(D93*D$82^2/(D$82^2-D$92*D$84/1000*(D93-D$82))-(D$89-D$65))/$H$3-1 -> 0.3576594687 | F95: =IF(ISNUMBER(F66),(F93*F$82^2/(F$82^2-F$92*F$84/1000*(F93-F$82))-(F$89-F$65))/$H$3-1,"") -> 0.03500036832

Sheet Kalkulator (hidden)
A1: Sichtfeldrechner
F3: Leseabstand eingeben: | H3: 10
A8: Sichtfeldbreite | B8: =H3 -> 10 | F8: Modulgrösse eingeben: | H8: 200
A9: =IF($B$16=1,$B$19,IF($B$16=2,$D$19,IF($B$16=3,$F$19,""))) -> 
A13: Sichtfeldhöhe
A14: =IF($B$16=1,$C$19,IF($B$16=2,$E$19,IF($B$16=3,$G$19,""))) -> 
B16: 3 | C16: 2 | D16: FALSE | F16: FALSE
A17: Ergebnisse | H17: wenn ganze Spalte beim jew. IDC grün, dann ist IDC geeignet
A18: Leseabstand [mm] | B18: =H3 -> 10 | D18: =H3 -> 10 | F18: =H3 -> 10
A19: Sichtfeld x*y [mm] | B19: =IF(ISNUMBER(B65),$B$50/B65,"") -> 14.89481812 | C19: =IF(ISNUMBER(B65),$B$51/B65,"") -> 9.309261327 | D19: =IF(ISNUMBER(D65),$B$50/D65,"") ->  | E19: =IF(ISNUMBER(D65),$B$51/D65,"") ->  | F19: =IF(ISNUMBER(F65),$B$50/F65,"") ->  | G19: =IF(ISNUMBER(F65),$B$51/F65,"") -> 
A20: Tiefenscharfe von…bis [mm] bis max. 1.5m | B20: =$H$3*$B$93+$H$3 -> 9.268922996 | C20: =IF(($H$3*$B$94+$H$3)>1500,1500,$H$3*$B$94+$H$3) -> 10.76951313 | D20: =$H$3*$D$93+$H$3 ->  | E20: =IF(($H$3*$D$94+$H$3)>1500,1500,$H$3*$D$94+$H$3) ->  | F20: =IF(ISNUMBER(F93),$H$3*$F$93+$H$3,"") ->  | G20: =IF(ISNUMBER(F94),$H$3*$F$94+$H$3,"") -> 
A21: Modulgrösse [mm]
A22: min. Modulgrösse [µm] 1D min. / Optimum | B22: =IF(ISNUMBER(B65),$B$52*$B$48/B65,"") -> 17.45486499 | C22: =B22*2 -> 34.90972998 | D22: =IF(ISNUMBER(D65),$B$52*$B$48/D65,"") ->  | E22: =D22*2 ->  | F22: =IF(ISNUMBER(F65),$B$52*$B$48/F65,"") ->  | G22: =IF(ISNUMBER(F65),F22*2,"") -> 
A23: min. Modulgrösse [µm] 2D min. / Optimum | B23: =IF(ISNUMBER(B65),$B$53*$B$48/B65,"") -> 34.90972998 | C23: =B23*2 -> 69.81945995 | D23: =IF(ISNUMBER(D65),$B$53*$B$48/D65,"") ->  | E23: =D23*2 ->  | F23: =IF(ISNUMBER(F65),$B$53*$B$48/F65,"") ->  | G23: =IF(ISNUMBER(F65),F23*2,"") -> 
A24: Textgrösse [mm]
A25: Mindesttexthöhe | B25: =C19/$B$46*25 -> 0.1818215103 | D25: =E19/D46*25 ->  | F25: =G19/F46*25 -> 
A27: Arbeitsabstand bei gewünschter Modulgrösse
A28: Arbeitsabstand bei gew. Modulgrösse 1D (max. Entfernung/ Referenzabstand - kleiner besser) | B28: =IF(B$61<=B72,B72,"-") -> 251.9816667 | C28: =IF(B$61<=B78,B78,"-") -> 118.7833333 | D28: =IF(D$61<=D72,D72,"-") -> 343.6555556 | E28: =IF(D$61<=D78,D78,"-") -> 166.0577778 | F28: =IF(F$61<=F72,F72,"-") -> 709.7611111 | G28: =IF(F$61<=F78,F78,"-") -> 354.5655556
A29: Arbeitsabstand bei gew. Modulgrösse 2D (max./opt.) | B29: =IF(B$61<=C72,C72,"-") -> 118.7833333 | C29: =IF(B$61<=C78,C78,"-") -> 52.38666667 | D29: =IF(D$61<=E72,E72,"-") -> 166.0577778 | E29: =IF(D$61<=E78,E78,"-") -> 77.52888889 | F29: =IF(F$61<=G72,G72,"-") -> 354.5655556 | G29: =IF(F$61<=G78,G78,"-") -> 177.5077778
A33: zur Visualisierung des Arbeitsabstands bei gewünschter Modulgrösse könnte man dies grafisch wie folgt lösen: Was meint Ihr? | B33: optimaler Arbeitsbereich
E34: Referenzabstand
E35: max
A45: Hilfsdaten:
A46: Bildhöhe | B46: 1280 | D46: 1280 | F46: 1280
A47: Bildbreite | B47: 800 | D47: 800 | F47: 800
A48: Pixelgrösse | B48: 3 | D48: 3 | F48: 3
A49: Abstand Gehäusefront zu Sensor [mm] | B49: 34 | D49: 34 | F49: 34
A50: Sensorbreite [mm] | B50: 3.84 | D50: 3.84 | F50: 3.84
A51: Sensorhöhe [mm] | B51: 2.4 | D51: 2.4 | F51: 2.4
A52: Min. Breite Modul 1D-Code [px] | B52: 1.5 | D52: 1.5 | F52: 1.5
A53: Min. Breite Modul 2D-Code [px] | B53: 3 | D53: 3 | F53: 3
A54: Brennweite f [mm] | B54: 6 | D54: 8 | F54: 16
A55: Hauptebene 1 [mm] | B55: 9.02 | D55: 8.28 | F55: 5.85
A56: Hauptebene 2 [mm] | B56: 16.37 | D56: 14.11 | F56: 9.67
A57: Bildebene [mm] | B57: 22.2 | D57: 22.2 | F57: 22.14
A58: Position Front Objektiv bei unendlich | B58: 22.2 | D58: 22.2 | F58: 22.14
A59: Abstand Gehäusefront zu H1 bei unendlich => g_i [mm] | B59: 20.82 | D59: 20.08 | F59: 17.71
A60: x_max [mm] | B60: 2.6 | D60: 2.6 | F60: 2.6
A61: Min. Arbeitsabstand [mm] | B61: 50 | D61: 50 | F61: 100
A63: p | B63: =$B$54-$H$3-B59 -> -24.82 | D63: =D54-$H$3-D59 -> -22.08 | F63: =F54-$H$3-F59 -> -11.71
A64: x | B64: =IF(B63^2/4-B$54^2 >=0,-B63/2-SQRT(B63^2/4-B$54^2),"") -> 1.546846682 | D64: =IF(D63^2/4-D$54^2 >=0,-D63/2-SQRT(D63^2/4-D$54^2),"") -> 3.432004206 | F64: =IF(F63^2/4-F$54^2 >=0,-F63/2-SQRT(F63^2/4-F$54^2),"") -> 
A65: beta | B65: =IF(AND(ISNUMBER(B64),B64<B$60),(B$54+B64)/($H3+B$59-B64),"") -> 0.2578077804 | D65: =IF(AND(ISNUMBER(D64),D64<D$60),(D$54+D64)/($H3+D$59-D64),"") ->  | F65: =IF(AND(ISNUMBER(F64),F64<F$60),(F$54+F64)/($H3+F$59-F64),"") -> 
B66: 1D | C66: 2D | D66: 1D | E66: 2D | F66: 1D | G66: 2D
A67: beta min (min. Auflösung) | B67: =B$52*B$48/$H$8 -> 0.0225 | C67: =B$53*B$48/$H$8 -> 0.045 | D67: =D$52*D$48/$H$8 -> 0.0225 | E67: =D$53*D$48/$H$8 -> 0.045 | F67: =F$52*F$48/$H$8 -> 0.0225 | G67: =F$53*F$48/$H$8 -> 0.045
A68: p für x-Berechnung | B68: =(1-B67)*B$54 -> 5.865 | C68: =(1-C67)*B$54 -> 5.73 | D68: =(1-D67)*D$54 -> 7.82 | E68: =(1-E67)*D$54 -> 7.64 | F68: =(1-F67)*F$54 -> 15.64 | G68: =(1-G67)*F$54 -> 15.28
A69: q für x-Berechnung | B69: =-B67*B$54^2 -> -0.81 | C69: =-C67*B$54^2 -> -1.62 | D69: =-D67*D$54^2 -> -1.44 | E69: =-E67*D$54^2 -> -2.88 | F69: =-F67*F$54^2 -> -5.76 | G69: =-G67*F$54^2 -> -11.52
A70: x | B70: =-B68/2+SQRT((B68/2)^2-B69) -> 0.135 | C70: 0.27 | D70: 0.18 | E70: 0.36 | F70: 0.36 | G70: 0.72
A71: g (gesamt) | B71: =IF(B70<=B$60,(B$54^2+B$54*B70)/B70,0) -> 272.6666667 | C71: =IF(C70<=B$60,(B$54^2+B$54*C70)/C70,0) -> 139.3333333 | D71: =IF(D70<=D$60,(D$54^2+D$54*D70)/D70,0) -> 363.5555556 | E71: =IF(E70<=D$60,(D$54^2+D$54*E70)/E70,0) -> 185.7777778 | F71: =IF(F70<=F$60,(F$54^2+F$54*F70)/F70,0) -> 727.1111111 | G71: =IF(G70<=F$60,(F$54^2+F$54*G70)/G70,0) -> 371.5555556
A72: g_a (außen) | B72: =IF(B70<=B$60,B71-B$59+B70,0) -> 251.9816667 | C72: =IF(C70<=B$60,C71-B$59+C70,0) -> 118.7833333 | D72: =IF(D70<=D$60,D71-D$59+D70,0) -> 343.6555556 | E72: =IF(E70<=D$60,E71-D$59+E70,0) -> 166.0577778 | F72: =IF(F70<=F$60,F71-F$59+F70,0) -> 709.7611111 | G72: =IF(G70<=F$60,G71-F$59+G70,0) -> 354.5655556
A73: beta min (opt. Auflösung) | B73: =2*B$52*B$48/$H$8 -> 0.045 | C73: =2*B$53*B$48/$H$8 -> 0.09 | D73: =2*D$52*D$48/$H$8 -> 0.045 | E73: =2*D$53*D$48/$H$8 -> 0.09 | F73: =2*F$52*F$48/$H$8 -> 0.045 | G73: =2*F$53*F$48/$H$8 -> 0.09
A74: p für x-Berechnung | B74: =(1-B73)*B$54 -> 5.73 | C74: =(1-C73)*B$54 -> 5.46 | D74: =(1-D73)*D$54 -> 7.64 | E74: =(1-E73)*D$54 -> 7.28 | F74: =(1-F73)*F$54 -> 15.28 | G74: =(1-G73)*F$54 -> 14.56
A75: q für x-Berechnung | B75: =-B73*B$54^2 -> -1.62 | C75: =-C73*B$54^2 -> -3.24 | D75: =-D73*D$54^2 -> -2.88 | E75: =-E73*D$54^2 -> -5.76 | F75: =-F73*F$54^2 -> -11.52 | G75: =-G73*F$54^2 -> -23.04
A76: x | B76: =-B74/2+SQRT((B74/2)^2-B75) -> 0.27 | C76: 0.54 | D76: 0.36 | E76: 0.72 | F76: 0.72 | G76: 1.44
A77: g (gesamt) | B77: =IF(B76<=B$60,(B$54^2+B$54*B76)/B76,0) -> 139.3333333 | C77: =IF(C76<=B$60,(B$54^2+B$54*C76)/C76,0) -> 72.66666667 | D77: =IF(D76<=D$60,(D$54^2+D$54*D76)/D76,0) -> 185.7777778 | E77: =IF(E76<=D$60,(D$54^2+D$54*E76)/E76,0) -> 96.88888889 | F77: =IF(F76<=F$60,(F$54^2+F$54*F76)/F76,0) -> 371.5555556 | G77: =IF(G76<=F$60,(F$54^2+F$54*G76)/G76,0) -> 193.7777778
A78: g_a (außen) | B78: =IF(B76<=B$60,B77-B$59+B76,0) -> 118.7833333 | C78: =IF(C76<=B$60,C77-B$59+C76,0) -> 52.38666667 | D78: =IF(D76<=D$60,D77-D$59+D76,0) -> 166.0577778 | E78: =IF(E76<=D$60,E77-D$59+E76,0) -> 77.52888889 | F78: =IF(F76<=F$60,F77-F$59+F76,0) -> 354.5655556 | G78: =IF(G76<=F$60,G77-F$59+G76,0) -> 177.5077778
A80: SCHÄRFENTIEFE
A81: Brennweite f [mm] | B81: 6 | D81: 8 | F81: 16
A82: Blende | B82: 3.5 | D82: 3.5 | F82: 1.8
A83: ø Zerstreuungskreis Code lesen [µm] | B83: 9 | D83: 9 | F83: 9
A84: Hauptebene 1 [mm] | B84: 9.02 | D84: 8.28 | F84: 5.85
A85: Hauptebene 2 [mm] | B85: 16.37 | D85: 14.11 | F85: 9.67
A86: Bildebene [mm] | B86: 22.2 | D86: 22.2 | F86: 22.14
A87: Position Front Objektiv bei unendlich | B87: 22.2 | D87: 22.2 | F87: 22.14
A88: Abstand Gehäusefront zu H1 bei unendlich => g_i [mm] | B88: 20.82 | D88: 20.08 | F88: 17.71
A89: x_max [mm] | B89: 2.6 | D89: 2.6 | F89: 2.6
A91: k eff. | B91: =$B$82*(1+$B$65) -> 4.402327231 | D91: =$D$82*(1+$D$65) ->  | F91: =IF(ISNUMBER(F65),$F$82*(1+$F$65),"") -> 
A92: g | B92: =$H$3+B$88-B$64 -> 29.27315332 | D92: =$H$3+D$88-D$64 -> 26.64799579 | F92: =IF(ISNUMBER(F65),$H$3+F$88-F$64,"") -> 
A93: nah [%] | B93: =(B92*B$81^2/(B$81^2+B$91*B$83/1000*(B92-B$81))-(B$88-B$64))/$H$3-1 -> -0.07310770039 | D93: =(D92*D$81^2/(D$81^2+D$91*D$83/1000*(D92-D$81))-(D$88-D$64))/$H$3-1 ->  | F93: =IF(ISNUMBER(F65),(F92*F$81^2/(F$81^2+F$91*F$83/1000*(F92-F$81))-(F$88-F$64))/$H$3-1,"") -> 
A94: fern [%] | B94: =(B92*B$81^2/(B$81^2-B$91*B$83/1000*(B92-B$81))-(B$88-B$64))/$H$3-1 -> 0.07695131335 | D94: =(D92*D$81^2/(D$81^2-D$91*D$83/1000*(D92-D$81))-(D$88-D$64))/$H$3-1 ->  | F94: =IF(ISNUMBER(F65),(F92*F$81^2/(F$81^2-F$91*F$83/1000*(F92-F$81))-(F$88-F$64))/$H$3-1,"") -> 
